Local authority department which incurred the expenditure,Service Division,Cost Centre,Summary of the Purpose of Expenditure,Expense Type,Expense Code,Detailed Expense Type,Date of Transaction,Transaction Number,Beneficiary,Merchant Category Number,Merchant Category,Gross Amount,VAT,Net Amount
Regeneration and Local Services,Economic Development and Housing,30699,Business Growth and Innovation General,Supplies and Services,342033,Computers and Communications,01-Jun-17,6123473263,AdRoll_EMEA,7372,Computer hardware,19.5,0,19.5
Regeneration and Local Services,Economic Development and Housing,30699,Business Growth and Innovation General,Supplies and Services,342033,Computers and Communications,01-Jun-17,6123473269,AdRoll_EMEA,7372,Computer hardware,0.54,0,0.54
Regeneration and Local Services,Culture & Sport,11219,Office Services,Supplies and Services,336005,Advertising,01-Jun-17,6123473347,FACEBK H5QL6DESF2,7311,Advertising other than for staff,40,0,40
Children and Young Peoples Services,Head of Education,78411,16-19 Education & Training,Supplies and Services,340001,Postages,01-Jun-17,6127405969,ROYAL MAIL ONLINE SHOP,9402,Postages,76,0,76
Regeneration and Local Services,Direct Services,10367,C&G - South Grounds Maintenance,Supplies and Services,304259,Equipment and Materials,01-Jun-17,6127406139,SCREWFIX,5211,Equipment-purchase and rental,22.57,3.76,18.81
Regeneration and Local Services,Economic Development and Housing,30737,Durham Works Flexible Fund,Supplies and Services,328041,Clothing Uniforms and Laundry,01-Jun-17,6127406199,WWW.ASOS.COM,5651,Clothing uniforms and laundry,85.5,0,85.5
Regeneration and Local Services,Direct Services,21242,Catering - County Hall,Supplies and Services,324117,Provisions,01-Jun-17,6127406221,JR HOLLAND FOODSERVICE,5422,Catering costs - provisions,177.33,0,177.33
Regeneration and Local Services,Direct Services,21242,Catering - County Hall,Supplies and Services,324117,Provisions,01-Jun-17,6127406241,JR HOLLAND FOODSERVICE,5422,Catering costs - provisions,13.16,0,13.16
Regeneration and Local Services,Direct Services,10367,C&G - South Grounds Maintenance,Supplies and Services,304259,Equipment and Materials,01-Jun-17,6127406281,TRAVIS PERKINS,5211,Equipment-purchase and rental,47.62,7.94,39.68
Regeneration and Local Services,Culture & Sport,54812,Gala Theatre - Catering etc,Supplies and Services,324117,Provisions,01-Jun-17,6127406299,JR HOLLAND FOODSERVICE,5422,Catering costs - provisions,56.88,0,56.88
Children and Young Peoples Services,Head of Early Help Assessment and Safeguarding,88063,Bishop Auckland 0 - 5,Supplies and Services,324117,Provisions,01-Jun-17,6127406443,ASDA STORES,5411,Catering costs - provisions,3.5,0,3.5
Children and Young Peoples Services,Head of Early Help Assessment and Safeguarding,88063,Bishop Auckland 0 - 5,Supplies and Services,328041,Clothing Uniforms and Laundry,01-Jun-17,6127406449,B & M RETAIL,5310,Clothing uniforms and laundry,12.15,0,12.15
Regeneration and Local Services,Economic Development and Housing,30737,Durham Works Flexible Fund,Supplies and Services,348037,Subsistence,01-Jun-17,6127406607,WWW.SIMPLYGO.COM,4131,Subsistence,5,0,5
Children and Young Peoples Services,Head of Looked After Provision Permanence and Care Leavers,85958,Support Services,Supplies and Services,324117,Provisions,01-Jun-17,6127406681,TESCO STORES 6329,5411,Catering costs - provisions,126.09,0,126.09
Regeneration and Local Services,Culture & Sport,11060,Hardwick Park Catering,Supplies and Services,324117,Provisions,01-Jun-17,6127406753,JR HOLLAND FOODSERVICE,5422,Catering costs - provisions,28.8,0,28.8
Regeneration and Local Services,Direct Services,21234,Catering - Locomotion,Supplies and Services,324117,Provisions,01-Jun-17,6127406817,JR HOLLAND FOODSERVICE,5422,Catering costs - provisions,17.74,0,17.74
Regeneration and Local Services,Direct Services,21234,Catering - Locomotion,Supplies and Services,324117,Provisions,01-Jun-17,6127406823,JR HOLLAND FOODSERVICE,5422,Catering costs - provisions,17.4,0,17.4
Regeneration and Local Services,Direct Services,21234,Catering - Locomotion,Supplies and Services,324117,Provisions,01-Jun-17,6127406827,JR HOLLAND FOODSERVICE,5422,Catering costs - provisions,3.9,0,3.9
Regeneration and Local Services,Direct Services,10525,Catering - Green Lane,Supplies and Services,324117,Provisions,01-Jun-17,6127406911,JR HOLLAND FOODSERVICE,5422,Catering costs - provisions,51.33,0,51.33
Regeneration and Local Services,Direct Services,10525,Catering - Green Lane,Supplies and Services,324117,Provisions,01-Jun-17,6127406931,JR HOLLAND FOODSERVICE,5422,Catering costs - provisions,0.93,0,0.93
Children and Young Peoples Services,Head of Early Help Assessment and Safeguarding,71443,Stanley One Point Hub,Employees,40149,Recruitment Instruction and Training,01-Jun-17,6127407029,WESTACRES STABLES,8299,Training-all costs,255,0,255
Regeneration and Local Services,Economic Development and Housing,31576,B& B - Temp Accom,Supplies and Services,364320,Grants to Voluntary Organisations,01-Jun-17,6127407125,TRAVELODGE,3615,Accommodation assistance,41,6.83,34.17
Regeneration and Local Services,Economic Development and Housing,31576,B& B - Temp Accom,Supplies and Services,364320,Grants to Voluntary Organisations,01-Jun-17,6127407131,TRAVELODGE,3615,Accommodation assistance,41,6.83,34.17
Regeneration and Local Services,Economic Development and Housing,31576,B& B - Temp Accom,Supplies and Services,364320,Grants to Voluntary Organisations,01-Jun-17,6127407135,TRAVELODGE,3615,Accommodation assistance,46,7.67,38.33
Regeneration and Local Services,Economic Development and Housing,31576,B& B - Temp Accom,Supplies and Services,364320,Grants to Voluntary Organisations,01-Jun-17,6127407141,TRAVELODGE,3615,Accommodation assistance,46,7.67,38.33
Children and Young Peoples Services,Head of Looked After Provision Permanence and Care Leavers,85333,Coxhoe Satelite Home,Supplies and Services,324117,Provisions,01-Jun-17,6127407227,ASDA SUPERSTORE 4987,5411,Catering costs - provisions,194.69,0,194.69
Regeneration and Local Services,Culture & Sport,54235,Bp Auckland Town Hall Cafe,Supplies and Services,324117,Provisions,01-Jun-17,6127407631,JR HOLLAND FOODSERVICE,5422,Catering costs - provisions,35.53,0,35.53
Regeneration and Local Services,Technical Services,10984,Training and Development,Supplies and Services,312011,Newspapers Books and Periodicals,01-Jun-17,6127407777,Amazon EU,5969,Books-school library,242.15,0,242.15
Resources,I.C.T. Services,65487,ICT Telephony Recharges,Supplies and Services,344033,Telephones,01-Jun-17,6127407983,Amazon UK Marketplace,5942,Telephones general-all costs,41.43,0,41.43
Resources,I.C.T. Services,65487,ICT Telephony Recharges,Supplies and Services,344033,Telephones,01-Jun-17,6127407991,Amazon UK Marketplace,5942,Telephones general-all costs,41.42,0,41.42
Regeneration and Local Services,Spatial Policy Planning Assets & Environment,31069,Design & Conservation,Supplies and Services,312009,Newspapers Books and Periodicals,01-Jun-17,6127407997,RIBA ENTERPRISES LTD,5942,Newspapers books and periodicals,33,0,33
Resources,I.C.T. Services,65487,ICT Telephony Recharges,Supplies and Services,344033,Telephones,01-Jun-17,6127407999,AMAZON.CO.UK,5999,Telephones general-all costs,31.06,0,31.06
Regeneration and Local Services,Culture & Sport,10605,Woodhouse Close Leisure Complex,Supplies and Services,324117,Provisions,01-Jun-17,6127408053,JR HOLLAND FOODSERVICE,5422,Catering costs - provisions,36.52,0,36.52
Regeneration and Local Services,Economic Development and Housing,30708,VCD - Marketing & Information,Supplies and Services,372009,Subscriptions,01-Jun-17,6127408059,HOOTSUITE MEDIA INC.,7399,Subscriptions,100.85,0,100.85
Transformation and Partnerships,Partnerships & Community Engagement Div.,60472,Syrian Vulnerable Persons Scheme,Supplies and Services,308011,Furniture,01-Jun-17,6127408129,ASDA STORES LTD 4313,5411,Furniture repair and replacement,57,9.5,47.5
Regeneration and Local Services,Economic Development and Housing,30749,Employability - Youth Contract,Supplies and Services,324117,Provisions,01-Jun-17,6127408169,CO-OP GROUP 010690,5411,Catering costs - provisions,85.5,0,85.5
Regeneration and Local Services,Direct Services,21234,Catering - Locomotion,Supplies and Services,324117,Provisions,01-Jun-17,6132548419,BATLEYS PERTH,5300,Catering costs - provisions,262.74,43.79,218.95
Regeneration and Local Services,Direct Services,21234,Catering - Locomotion,Supplies and Services,324117,Provisions,01-Jun-17,000006132548419 - 1,BATLEYS PERTH,5300,Catering costs - provisions,35.6,,35.6
Children and Young Peoples Services,Head of Early Help Assessment and Safeguarding,88001,Peterlee Locality,Supplies and Services,304259,Equipment and Materials,01-Jun-17,6132548543,HARTLEPOOL BC CNP,9399,Equipment-purchase and rental,14.21,0,14.21
Regeneration and Local Services,Culture & Sport,11060,Hardwick Park Catering,Supplies and Services,324117,Provisions,01-Jun-17,6192250613,BATLEYS PERTH,5300,Catering costs - provisions,467.82,77.97,389.85
Regeneration and Local Services,Culture & Sport,11060,Hardwick Park Catering,Supplies and Services,324117,Provisions,01-Jun-17,000006192250613 - 1,BATLEYS PERTH,5300,Catering costs - provisions,251.24,,251.24
Regeneration and Local Services,Culture & Sport,11060,Hardwick Park Catering,Supplies and Services,324117,Provisions,01-Jun-17,6192250631,BATLEYS PERTH,5300,Catering costs - provisions,9.84,1.64,8.2
Regeneration and Local Services,Culture & Sport,11060,Hardwick Park Catering,Supplies and Services,324117,Provisions,01-Jun-17,000006192250631 - 1,BATLEYS PERTH,5300,Catering costs - provisions,17.13,,17.13
Regeneration and Local Services,Direct Services,21235,Catering - Wharton Park,Supplies and Services,324117,Provisions,01-Jun-17,6192251225,BATLEYS PERTH,5300,Catering costs - provisions,388.91,64.82,324.09
Children and Young Peoples Services,Head of Looked After Provision Permanence and Care Leavers,85958,Support Services,Supplies and Services,304259,Equipment and Materials,02-Jun-17,6127406683,SPORTISIMO,5941,Equipment-purchase and rental,1.89,0,1.89
Children and Young Peoples Services,Head of Early Help Assessment and Safeguarding,88001,Peterlee Locality,Supplies and Services,304403,Equipment and Materials,02-Jun-17,6127407605,AMZ buycheapDG-Ships f,5999,Other consumables,-10,0,-10
Resources,Internal Audit and Insurance,65104,Internal Audit,Supplies and Services,372009,Subscriptions,02-Jun-17,6127408005,THE INST OF INT AUDITO,8398,Subscriptions,350.55,0,350.55
Resources,Internal Audit and Insurance,65104,Internal Audit,Supplies and Services,372009,Subscriptions,02-Jun-17,6127408009,THE INST OF INT AUDITO,8398,Subscriptions,9.64,0,9.64
Regeneration and Local Services,Economic Development and Housing,30708,VCD - Marketing & Information,Supplies and Services,372009,Subscriptions,02-Jun-17,6127408067,HOOTSUITE MEDIA INC.,7399,Subscriptions,2.77,0,2.77
Children and Young Peoples Services,Head of Education,71801,Selby Cottage Childcare Centre,Supplies and Services,324117,Provisions,02-Jun-17,6132548169,TESCO STORES 2278,5411,Catering costs - provisions,8.53,0,8.53
Children and Young Peoples Services,Head of Looked After Provision Permanence and Care Leavers,85957,Secure Management,Employees,40029,Recruitment Instruction and Training,02-Jun-17,6132548185,Amazon UK Marketplace,5942,Interview expenses,39.96,0,39.96
Regeneration and Local Services,Economic Development and Housing,30699,Business Growth and Innovation General,Supplies and Services,304403,Equipment and Materials,02-Jun-17,6132548199,ADOBE CREATIVE CLOUD,5734,Other consumables,50.57,0,50.57
Regeneration and Local Services,Economic Development and Housing,30699,Business Growth and Innovation General,Supplies and Services,312011,Newspapers Books and Periodicals,02-Jun-17,6132548203,FASTHOSTS INTERNET,4816,Books-school library,59.99,0,59.99
Regeneration and Local Services,Direct Services,21242,Catering - County Hall,Supplies and Services,324117,Provisions,02-Jun-17,6132548229,JR HOLLAND FOODSERVICE,5422,Catering costs - provisions,98.29,0,98.29
Regeneration and Local Services,Direct Services,21242,Catering - County Hall,Supplies and Services,324117,Provisions,02-Jun-17,6132548233,JR HOLLAND FOODSERVICE,5422,Catering costs - provisions,44.28,0,44.28
Regeneration and Local Services,Direct Services,21242,Catering - County Hall,Supplies and Services,324117,Provisions,02-Jun-17,6132548235,JR HOLLAND FOODSERVICE,5422,Catering costs - provisions,13.16,0,13.16
Regeneration and Local Services,Direct Services,21242,Catering - County Hall,Supplies and Services,324117,Provisions,02-Jun-17,6132548239,JR HOLLAND FOODSERVICE,5422,Catering costs - provisions,9.52,0,9.52
Regeneration and Local Services,Culture & Sport,11219,Office Services,Third Party Payments,430100,Rendered by Private Contractors,02-Jun-17,6132548267,MAILCHIMP MONTHLY,7399,Payments to sub-contractors,39.37,0,39.37
Regeneration and Local Services,Economic Development and Housing,30749,Employability - Youth Contract,Supplies and Services,304999,Equipment and Materials,02-Jun-17,6132548285,WWW.HIGHSPEEDTRAINING.,8244,Misc equipment tools and materials,48,0,48
Regeneration and Local Services,Economic Development and Housing,30749,Employability - Youth Contract,Transport,235057,Public Transport,02-Jun-17,6132548287,Trainline,4112,Staff travelling,30.35,0,30.35
Regeneration and Local Services,Economic Development and Housing,30749,Employability - Youth Contract,Supplies and Services,324117,Provisions,02-Jun-17,6132548291,ASDA STORES,5411,Catering costs - provisions,44.5,0,44.5
Regeneration and Local Services,Economic Development and Housing,30749,Employability - Youth Contract,Supplies and Services,304999,Equipment and Materials,02-Jun-17,6132548295,WWW.HIGHSPEEDTRAINING.,8244,Misc equipment tools and materials,-24,0,-24
Regeneration and Local Services,Economic Development and Housing,30749,Employability - Youth Contract,Supplies and Services,328041,Clothing Uniforms and Laundry,02-Jun-17,6132548299,WWW.ASOS.COM,5651,Clothing uniforms and laundry,20,0,20
Regeneration and Local Services,Economic Development and Housing,30737,Durham Works Flexible Fund,Supplies and Services,328041,Clothing Uniforms and Laundry,02-Jun-17,6132548327,SELECT - BISHOP AUCKLA,5691,Clothing uniforms and laundry,2.99,0,2.99
Regeneration and Local Services,Economic Development and Housing,30737,Durham Works Flexible Fund,Transport,235057,Public Transport,02-Jun-17,6132548331,ARRIVA NORTH EAST,4131,Staff travelling,14.5,0,14.5
Regeneration and Local Services,Economic Development and Housing,30737,Durham Works Flexible Fund,Transport,235057,Public Transport,02-Jun-17,6132548333,ARRIVA NORTH EAST,4131,Staff travelling,85.5,0,85.5
Regeneration and Local Services,Economic Development and Housing,30737,Durham Works Flexible Fund,Supplies and Services,328041,Clothing Uniforms and Laundry,02-Jun-17,6132548335,NEW LOOK 1503,5621,Clothing uniforms and laundry,34.03,0,34.03
Regeneration and Local Services,Economic Development and Housing,30737,Durham Works Flexible Fund,Supplies and Services,328041,Clothing Uniforms and Laundry,02-Jun-17,6132548339,PEACOCK STORES LTD,5331,Clothing uniforms and laundry,5,0,5
Regeneration and Local Services,Economic Development and Housing,30737,Durham Works Flexible Fund,Supplies and Services,328041,Clothing Uniforms and Laundry,02-Jun-17,6132548341,BURTON RETAIL,5691,Clothing uniforms and laundry,12,0,12
Regeneration and Local Services,Spatial Policy Planning Assets & Environment,31204,North Pennines Nectarworks,Supplies and Services,324117,Provisions,02-Jun-17,6132548345,TESCO STORES 4358,5411,Catering costs - provisions,32.05,0,32.05
Children and Young Peoples Services,Head of Looked After Provision Permanence and Care Leavers,85332,Middlestone Moor CU,Supplies and Services,324117,Provisions,02-Jun-17,6132548347,TESCO STORES 2371,5411,Catering costs - provisions,115.81,0,115.81
Children and Young Peoples Services,Head of Looked After Provision Permanence and Care Leavers,85958,Support Services,Supplies and Services,324117,Provisions,02-Jun-17,6132548359,TESCO STORES 6329,5411,Catering costs - provisions,157.12,0,157.12
Regeneration and Local Services,Direct Services,10301,C&G - North Grounds Maintenance,Supplies and Services,304259,Equipment and Materials,02-Jun-17,6132548381,HARELAW SAWMILL,5211,Equipment-purchase and rental,322.18,0,322.18
Regeneration and Local Services,Direct Services,10301,C&G - North Grounds Maintenance,Supplies and Services,304259,Equipment and Materials,02-Jun-17,6132548387,HARELAW SAWMILL,5211,Equipment-purchase and rental,330.5,0,330.5
Regeneration and Local Services,Economic Development and Housing,30762,Organisational Training & Development,Employees,40149,Recruitment Instruction and Training,02-Jun-17,6132548399,CITB,8220,Training-all costs,30,5,25
Regeneration and Local Services,Economic Development and Housing,30762,Organisational Training & Development,Employees,40149,Recruitment Instruction and Training,02-Jun-17,6132548401,CITB,8220,Training-all costs,30,5,25
Regeneration and Local Services,Economic Development and Housing,30762,Organisational Training & Development,Employees,40149,Recruitment Instruction and Training,02-Jun-17,6132548405,CITB,8220,Training-all costs,30,5,25
Regeneration and Local Services,Economic Development and Housing,30762,Organisational Training & Development,Employees,40149,Recruitment Instruction and Training,02-Jun-17,6132548409,CITB,8220,Training-all costs,30,5,25
Regeneration and Local Services,Direct Services,21234,Catering - Locomotion,Supplies and Services,324117,Provisions,02-Jun-17,6132548413,JR HOLLAND FOODSERVICE,5422,Catering costs - provisions,50.27,0,50.27
Regeneration and Local Services,Economic Development and Housing,31576,B& B - Temp Accom,Supplies and Services,364320,Grants to Voluntary Organisations,02-Jun-17,6132548431,AMRP LEISURE LTD,5813,Accommodation assistance,50,0,50
Regeneration and Local Services,Economic Development and Housing,30749,Employability - Youth Contract,Supplies and Services,384956,Miscellaneous Expenses,02-Jun-17,6132548453,DVLA DRIVER ONLINE,9399,Licences,34,0,34
Regeneration and Local Services,Culture & Sport,11214,Volunteer & Skills,Employees,40149,Recruitment Instruction and Training,02-Jun-17,6132548481,TYNE AND WEAR SPORT,8299,Training-all costs,40,0,40
Regeneration and Local Services,Economic Development and Housing,31576,B& B - Temp Accom,Supplies and Services,364320,Grants to Voluntary Organisations,02-Jun-17,6132548485,TRAVELODGE,3615,Accommodation assistance,124,20.67,103.33
Regeneration and Local Services,Economic Development and Housing,31576,B& B - Temp Accom,Supplies and Services,364320,Grants to Voluntary Organisations,02-Jun-17,6132548489,TRAVELODGE,3615,Accommodation assistance,124,20.67,103.33
Regeneration and Local Services,Economic Development and Housing,31576,B& B - Temp Accom,Supplies and Services,364320,Grants to Voluntary Organisations,02-Jun-17,6132548491,TRAVELODGE,3615,Accommodation assistance,144,24,120
Resources,Financial Services,65180,Collections,Supplies and Services,338048,Services,02-Jun-17,6132548499,HMCOURTS-SERVICE.G,9222,Court Costs,960,0,960
Resources,Financial Services,65180,Collections,Supplies and Services,338048,Services,02-Jun-17,6132548501,HMCOURTS-SERVICE.G,9222,Court Costs,"6,291.00",0,6291
Resources,Financial Services,65180,Collections,Supplies and Services,338048,Services,02-Jun-17,6132548505,HMCOURTS-SERVICE.G,9222,Court Costs,"11,271.00",0,11271
Children and Young Peoples Services,Head of Early Help Assessment and Safeguarding,88001,Peterlee Locality,Employees,40149,Recruitment Instruction and Training,02-Jun-17,6132548547,UK DEED POLL OFFICE,8999,Training-all costs,53.97,0,53.97
Regeneration and Local Services,Direct Services,21324,Catering - Meadowfield,Supplies and Services,324117,Provisions,02-Jun-17,6132548549,JR HOLLAND FOODSERVICE,5422,Catering costs - provisions,60.06,0,60.06
Regeneration and Local Services,Direct Services,21324,Catering - Meadowfield,Supplies and Services,324117,Provisions,02-Jun-17,6132548555,JR HOLLAND FOODSERVICE,5422,Catering costs - provisions,9.87,0,9.87
Regeneration and Local Services,Technical Services,10984,Training and Development,Supplies and Services,312011,Newspapers Books and Periodicals,02-Jun-17,6132548579,Amazon EU,5969,Books-school library,302.69,0,302.69
Regeneration and Local Services,Technical Services,10984,Training and Development,Supplies and Services,312011,Newspapers Books and Periodicals,02-Jun-17,6132548583,Amazon EU,5969,Books-school library,59.94,0,59.94
Regeneration and Local Services,Economic Development and Housing,30737,Durham Works Flexible Fund,Supplies and Services,324001,Provisions,02-Jun-17,6132548605,WINE CELLAR,5921,Bar supplies,27.5,0,27.5
Children and Young Peoples Services,Head of Looked After Provision Permanence and Care Leavers,85388,Placement and Kinship Team,Supplies and Services,364320,Grants to Voluntary Organisations,02-Jun-17,6132548617,THE HONEST LAWYER,7011,Accommodation assistance,388.55,0,388.55
Resources,Legal & Democratic Services,67910,Democratic Representation,Supplies and Services,372009,Subscriptions,02-Jun-17,6132548623,WWW.ICO.GOV.UK,9399,Subscriptions,35,0,35
Resources,Legal & Democratic Services,67910,Democratic Representation,Supplies and Services,372009,Subscriptions,02-Jun-17,6132548625,WWW.ICO.GOV.UK,9399,Subscriptions,35,0,35
Resources,Legal & Democratic Services,67910,Democratic Representation,Supplies and Services,372009,Subscriptions,02-Jun-17,6132548627,WWW.ICO.GOV.UK,9399,Subscriptions,35,0,35
Resources,Legal & Democratic Services,67910,Democratic Representation,Supplies and Services,372009,Subscriptions,02-Jun-17,6132548631,WWW.ICO.GOV.UK,9399,Subscriptions,35,0,35
Resources,Legal & Democratic Services,67910,Democratic Representation,Supplies and Services,372009,Subscriptions,02-Jun-17,6132548633,WWW.ICO.GOV.UK,9399,Subscriptions,35,0,35
Resources,Legal & Democratic Services,67910,Democratic Representation,Supplies and Services,372009,Subscriptions,02-Jun-17,6132548635,WWW.ICO.GOV.UK,9399,Subscriptions,35,0,35
Resources,Legal & Democratic Services,67910,Democratic Representation,Supplies and Services,372009,Subscriptions,02-Jun-17,6132548637,WWW.ICO.GOV.UK,9399,Subscriptions,35,0,35
Resources,Legal & Democratic Services,67910,Democratic Representation,Supplies and Services,372009,Subscriptions,02-Jun-17,6132548639,WWW.ICO.GOV.UK,9399,Subscriptions,35,0,35
Resources,Legal & Democratic Services,67910,Democratic Representation,Supplies and Services,372009,Subscriptions,02-Jun-17,6132548643,WWW.ICO.GOV.UK,9399,Subscriptions,35,0,35
Resources,Legal & Democratic Services,67910,Democratic Representation,Supplies and Services,372009,Subscriptions,02-Jun-17,6132548647,WWW.ICO.GOV.UK,9399,Subscriptions,35,0,35
Resources,Legal & Democratic Services,67910,Democratic Representation,Supplies and Services,372009,Subscriptions,02-Jun-17,6132548651,WWW.ICO.GOV.UK,9399,Subscriptions,35,0,35
Resources,Legal & Democratic Services,67910,Democratic Representation,Supplies and Services,372009,Subscriptions,02-Jun-17,6132548655,WWW.ICO.GOV.UK,9399,Subscriptions,35,0,35
Resources,Legal & Democratic Services,67910,Democratic Representation,Supplies and Services,372009,Subscriptions,02-Jun-17,6132548657,WWW.ICO.GOV.UK,9399,Subscriptions,35,0,35
Resources,Legal & Democratic Services,67910,Democratic Representation,Supplies and Services,372009,Subscriptions,02-Jun-17,6132548659,WWW.ICO.GOV.UK,9399,Subscriptions,35,0,35
Resources,Legal & Democratic Services,67910,Democratic Representation,Supplies and Services,372009,Subscriptions,02-Jun-17,6132548661,WWW.ICO.GOV.UK,9399,Subscriptions,35,0,35
Resources,Legal & Democratic Services,67910,Democratic Representation,Supplies and Services,372009,Subscriptions,02-Jun-17,6132548663,WWW.ICO.GOV.UK,9399,Subscriptions,35,0,35
Resources,Legal & Democratic Services,67910,Democratic Representation,Supplies and Services,372009,Subscriptions,02-Jun-17,6132548667,WWW.ICO.GOV.UK,9399,Subscriptions,35,0,35
Resources,Financial Services,65120,Income,Supplies and Services,338064,Services,02-Jun-17,6132548671,DISCLOSURE SCOT,9399,Disclosure & Barring (DBS) Fees,25,0,25
Resources,Financial Services,65120,Income,Supplies and Services,338064,Services,02-Jun-17,6132548697,DISCLOSURE SCOT,9399,Disclosure & Barring (DBS) Fees,25,0,25
Regeneration and Local Services,Spatial Policy Planning Assets & Environment,31200,North Pennines Core,Supplies and Services,324117,Provisions,02-Jun-17,6132548707,SCOTMID CO-OP STANHOPE,5411,Catering costs - provisions,6.71,0,6.71
Regeneration and Local Services,Direct Services,21242,Catering - County Hall,Supplies and Services,324117,Provisions,02-Jun-17,6139231045,BATLEYS PERTH,5300,Catering costs - provisions,156.48,26.08,130.4
Regeneration and Local Services,Direct Services,21242,Catering - County Hall,Supplies and Services,324117,Provisions,02-Jun-17,000006139231045 - 1,BATLEYS PERTH,5300,Catering costs - provisions,112.3,,112.3
Regeneration and Local Services,Culture & Sport,11060,Hardwick Park Catering,Supplies and Services,324117,Provisions,02-Jun-17,6139231227,BATLEYS PERTH,5300,Catering costs - provisions,270.54,45.09,225.45
Regeneration and Local Services,Culture & Sport,11060,Hardwick Park Catering,Supplies and Services,324117,Provisions,02-Jun-17,000006139231227 - 1,BATLEYS PERTH,5300,Catering costs - provisions,176.52,,176.52
Regeneration and Local Services,Direct Services,10525,Catering - Green Lane,Supplies and Services,324117,Provisions,02-Jun-17,6139231297,BATLEYS PERTH,5300,Catering costs - provisions,124.5,20.75,103.75
Regeneration and Local Services,Direct Services,10525,Catering - Green Lane,Supplies and Services,324117,Provisions,02-Jun-17,000006139231297 - 1,BATLEYS PERTH,5300,Catering costs - provisions,89.04,,89.04
Regeneration and Local Services,Economic Development and Housing,30676,Business Development - Durham City Promotions,Supplies and Services,384199,Miscellaneous Expenses,02-Jun-17,6139231503,LOVE2SHOP.CO.UK,8641,Other hired and contracted services,"1,007.45",0,1007.45
Regeneration and Local Services,Culture & Sport,10605,Woodhouse Close Leisure Complex,Supplies and Services,324117,Provisions,02-Jun-17,6139231525,BATLEYS PERTH,5300,Catering costs - provisions,63,10.5,52.5
Regeneration and Local Services,Culture & Sport,10605,Woodhouse Close Leisure Complex,Supplies and Services,324117,Provisions,02-Jun-17,000006139231525 - 1,BATLEYS PERTH,5300,Catering costs - provisions,65.47,,65.47
Regeneration and Local Services,Direct Services,21242,Catering - County Hall,Supplies and Services,324117,Provisions,03-Jun-17,6132548161,TESCO STORES 2916,5411,Catering costs - provisions,4.75,0,4.75
Children and Young Peoples Services,Head of Looked After Provision Permanence and Care Leavers,85955,Auckland,Supplies and Services,384999,Miscellaneous Expenses,03-Jun-17,6132548187,Amazon UK Marketplace,5942,Other expenses,59.8,0,59.8
Children and Young Peoples Services,Head of Looked After Provision Permanence and Care Leavers,85957,Secure Management,Supplies and Services,304335,Equipment and Materials,03-Jun-17,6132548191,Amazon UK Marketplace,5942,ICT supplies etc,99.9,0,99.9
Children and Young Peoples Services,Head of Early Help Assessment and Safeguarding,71440,Barnard Castle One Point Hub,Supplies and Services,340001,Postages,03-Jun-17,6132548223,AMAZON UK PRIME AMZN.C,5968,Postages,7.99,0,7.99
Children and Young Peoples Services,Head of Early Help Assessment and Safeguarding,88033,Durham 0 - 5,Supplies and Services,304999,Equipment and Materials,03-Jun-17,6132548279,Amazon Prime,5968,Misc equipment tools and materials,7.99,0,7.99
Children and Young Peoples Services,Head of Looked After Provision Permanence and Care Leavers,85958,Support Services,Supplies and Services,324117,Provisions,03-Jun-17,6132548363,TESCO STORES 6329,5411,Catering costs - provisions,72.33,0,72.33
Children and Young Peoples Services,Head of Looked After Provision Permanence and Care Leavers,85352,Tow Law CU,Supplies and Services,324117,Provisions,03-Jun-17,6132548439,TESCO STORES 2371,5411,Catering costs - provisions,244.11,0,244.11
Regeneration and Local Services,Culture & Sport,54399,Local Delivery-Libraries,Supplies and Services,312009,Newspapers Books and Periodicals,03-Jun-17,6132548495,Amazon EU,5969,Newspapers books and periodicals,17.98,0,17.98
Regeneration and Local Services,Spatial Policy Planning Assets & Environment,31200,North Pennines Core,Supplies and Services,304403,Equipment and Materials,03-Jun-17,6151857473,Something Different,5999,Other consumables,114.9,19.15,95.75
Regeneration and Local Services,Culture & Sport,10664,Freemans Quay Leisure Centre,Supplies and Services,328041,Clothing Uniforms and Laundry,04-Jun-17,6132548283,ARGOS LTD,5310,Clothing uniforms and laundry,184.98,30.83,154.15
Children and Young Peoples Services,Head of Education,71903,EYDCP-Sustainability EDS,Supplies and Services,304403,Equipment and Materials,04-Jun-17,6132548351,AMAZON.CO.UK,5999,Other consumables,133.02,0,133.02
Regeneration and Local Services,Spatial Policy Planning Assets & Environment,31222,North Pennines Allen Valleys Landscape Partnership,Supplies and Services,324117,Provisions,04-Jun-17,6132548395,CO-OP GROUP FOOD,5411,Catering costs - provisions,10.01,0,10.01
Children and Young Peoples Services,Head of Looked After Provision Permanence and Care Leavers,85333,Coxhoe Satelite Home,Supplies and Services,324117,Provisions,04-Jun-17,6132548461,CO-OP GROUP 310016,5411,Catering costs - provisions,36.4,0,36.4
Regeneration and Local Services,Culture & Sport,11060,Hardwick Park Catering,Supplies and Services,324117,Provisions,04-Jun-17,6132548689,SAINSBURYS SACAT (2303,5411,Catering costs - provisions,16.65,0,16.65
Regeneration and Local Services,Economic Development and Housing,30699,Business Growth and Innovation General,Supplies and Services,304403,Equipment and Materials,04-Jun-17,6139230985,MEETEDGAR MONTHLY,5734,Other consumables,38.13,0,38.13
Regeneration and Local Services,Economic Development and Housing,31500,Housing Solutions - Core Team,Supplies and Services,364320,Grants to Voluntary Organisations,05-Jun-17,6139230949,TRAVELODGE,3615,Accommodation assistance,41,0,41
Regeneration and Local Services,Economic Development and Housing,31500,Housing Solutions - Core Team,Supplies and Services,364320,Grants to Voluntary Organisations,05-Jun-17,6139230953,TRAVELODGE,3615,Accommodation assistance,46,0,46
Regeneration and Local Services,Economic Development and Housing,31500,Housing Solutions - Core Team,Supplies and Services,364320,Grants to Voluntary Organisations,05-Jun-17,6139230957,TRAVELODGE,3615,Accommodation assistance,46,0,46
Children and Young Peoples Services,Head of Early Help Assessment and Safeguarding,88093,Newton Aycliffe 0 - 5,Supplies and Services,324117,Provisions,05-Jun-17,6139231009,ASDA HOME SHOPPING,5411,Catering costs - provisions,28.94,0,28.94
Regeneration and Local Services,Economic Development and Housing,30737,Durham Works Flexible Fund,Supplies and Services,344033,Telephones,05-Jun-17,6139231013,ARGOS LTD,5310,Telephones general-all costs,19.99,0,19.99
Regeneration and Local Services,Economic Development and Housing,30737,Durham Works Flexible Fund,Supplies and Services,328041,Clothing Uniforms and Laundry,05-Jun-17,6139231017,NEW LOOK 1784,5621,Clothing uniforms and laundry,51.97,0,51.97
Regeneration and Local Services,Direct Services,21242,Catering - County Hall,Supplies and Services,324117,Provisions,05-Jun-17,6139231019,WWW.ADELIEFOODS.CO.UK,5499,Catering costs - provisions,156.83,0,156.83
Regeneration and Local Services,Direct Services,21242,Catering - County Hall,Supplies and Services,324117,Provisions,05-Jun-17,6139231021,WWW.ADELIEFOODS.CO.UK,5499,Catering costs - provisions,84.09,0,84.09
Regeneration and Local Services,Direct Services,21242,Catering - County Hall,Supplies and Services,324117,Provisions,05-Jun-17,6139231025,WWW.ADELIEFOODS.CO.UK,5499,Catering costs - provisions,49.28,0,49.28
Regeneration and Local Services,Direct Services,21242,Catering - County Hall,Supplies and Services,324117,Provisions,05-Jun-17,6139231027,FREEMAN CATERING BUTCH,5422,Catering costs - provisions,102.81,0,102.81
Regeneration and Local Services,Direct Services,21242,Catering - County Hall,Supplies and Services,324117,Provisions,05-Jun-17,6139231029,FREEMAN CATERING BUTCH,5422,Catering costs - provisions,54.06,0,54.06
Regeneration and Local Services,Direct Services,21242,Catering - County Hall,Supplies and Services,324117,Provisions,05-Jun-17,6139231033,FREEMAN CATERING BUTCH,5422,Catering costs - provisions,28.33,0,28.33
Regeneration and Local Services,Direct Services,21242,Catering - County Hall,Supplies and Services,324117,Provisions,05-Jun-17,6139231035,FREEMAN CATERING BUTCH,5422,Catering costs - provisions,8.4,0,8.4
Regeneration and Local Services,Direct Services,21242,Catering - County Hall,Supplies and Services,324117,Provisions,05-Jun-17,6139231037,JR HOLLAND FOODSERVICE,5422,Catering costs - provisions,98.67,0,98.67
Regeneration and Local Services,Direct Services,21242,Catering - County Hall,Supplies and Services,324117,Provisions,05-Jun-17,6139231041,JR HOLLAND FOODSERVICE,5422,Catering costs - provisions,13.52,0,13.52
Children and Young Peoples Services,Head of Early Help Assessment and Safeguarding,88063,Bishop Auckland 0 - 5,Supplies and Services,324117,Provisions,05-Jun-17,6139231113,ASDA HOME SHOPPING,5411,Catering costs - provisions,37.6,0,37.6
Children and Young Peoples Services,Head of Early Help Assessment and Safeguarding,88063,Bishop Auckland 0 - 5,Supplies and Services,324117,Provisions,05-Jun-17,6139231115,ASDA HOME SHOPPING,5411,Catering costs - provisions,-2.3,0,-2.3
Regeneration and Local Services,Economic Development and Housing,30749,Employability - Youth Contract,Transport,235057,Public Transport,05-Jun-17,6139231119,ARRIVA NORTH EAST,4131,Staff travelling,85.5,0,85.5
Children and Young Peoples Services,Head of Education,71732,Dean Bank Childcare,Supplies and Services,324117,Provisions,05-Jun-17,6139231123,ASDA HOME SHOPPING,5411,Catering costs - provisions,70.47,0,70.47
Children and Young Peoples Services,Head of Education,71732,Dean Bank Childcare,Supplies and Services,324117,Provisions,05-Jun-17,6139231127,CO-OP GROUP 010518,5411,Catering costs - provisions,10.31,0,10.31
Regeneration and Local Services,Economic Development and Housing,30737,Durham Works Flexible Fund,Supplies and Services,328041,Clothing Uniforms and Laundry,05-Jun-17,6139231175,WWW.ASOS.COM,5651,Clothing uniforms and laundry,74,0,74
Children and Young Peoples Services,Head of Early Help Assessment and Safeguarding,71445,Chester le Street One Point Hub,Supplies and Services,308011,Furniture,05-Jun-17,6139231193,EDS BEDS LTD,5712,Furniture repair and replacement,134,0,134
Children and Young Peoples Services,Head of Early Help Assessment and Safeguarding,71445,Chester le Street One Point Hub,Supplies and Services,348037,Subsistence,05-Jun-17,6139231195,WWW.DOMINOS.CO.UK,5812,Subsistence,39.45,0,39.45
Children and Young Peoples Services,Head of Looked After Provision Permanence and Care Leavers,85958,Support Services,Supplies and Services,332047,Printing Stationery and Gen Off Exps,05-Jun-17,6139231199,CARTRIDGE SAVE,5111,Stationery,27.2,0,27.2
Regeneration and Local Services,Culture & Sport,11060,Hardwick Park Catering,Supplies and Services,324117,Provisions,05-Jun-17,6139231205,FREEMAN CATERING BUTCH,5422,Catering costs - provisions,47.79,0,47.79
Regeneration and Local Services,Culture & Sport,11060,Hardwick Park Catering,Supplies and Services,324117,Provisions,05-Jun-17,6139231209,FREEMAN CATERING BUTCH,5422,Catering costs - provisions,41.54,0,41.54
Regeneration and Local Services,Culture & Sport,11060,Hardwick Park Catering,Supplies and Services,324117,Provisions,05-Jun-17,6139231213,FREEMAN CATERING BUTCH,5422,Catering costs - provisions,35,0,35
Regeneration and Local Services,Culture & Sport,11060,Hardwick Park Catering,Supplies and Services,324117,Provisions,05-Jun-17,6139231217,FREEMAN CATERING BUTCH,5422,Catering costs - provisions,33.2,0,33.2
Regeneration and Local Services,Culture & Sport,11060,Hardwick Park Catering,Supplies and Services,324117,Provisions,05-Jun-17,6139231219,FREEMAN CATERING BUTCH,5422,Catering costs - provisions,29.36,0,29.36
Regeneration and Local Services,Culture & Sport,11060,Hardwick Park Catering,Supplies and Services,324117,Provisions,05-Jun-17,6139231223,JR HOLLAND FOODSERVICE,5422,Catering costs - provisions,59.81,0,59.81
Resources,I.C.T. Services,65335,Implementation,Supplies and Services,304639,Equipment and Materials,05-Jun-17,6139231257,AMZ replacebase,4816,Technicians-supplies,177.19,0,177.19
Regeneration and Local Services,Direct Services,21234,Catering - Locomotion,Supplies and Services,324117,Provisions,05-Jun-17,6139231265,WWW.ADELIEFOODS.CO.UK,5499,Catering costs - provisions,123.96,0,123.96
Regeneration and Local Services,Direct Services,21234,Catering - Locomotion,Supplies and Services,324117,Provisions,05-Jun-17,6139231267,WWW.ADELIEFOODS.CO.UK,5499,Catering costs - provisions,57.26,0,57.26
Regeneration and Local Services,Direct Services,21234,Catering - Locomotion,Supplies and Services,324117,Provisions,05-Jun-17,6139231269,WWW.ADELIEFOODS.CO.UK,5499,Catering costs - provisions,57.26,0,57.26
Regeneration and Local Services,Direct Services,21234,Catering - Locomotion,Supplies and Services,324117,Provisions,05-Jun-17,6139231271,WWW.ADELIEFOODS.CO.UK,5499,Catering costs - provisions,57.26,0,57.26
Regeneration and Local Services,Direct Services,21234,Catering - Locomotion,Supplies and Services,324117,Provisions,05-Jun-17,6139231275,WWW.ADELIEFOODS.CO.UK,5499,Catering costs - provisions,57.26,0,57.26
Regeneration and Local Services,Direct Services,21234,Catering - Locomotion,Supplies and Services,324117,Provisions,05-Jun-17,6139231279,WWW.ADELIEFOODS.CO.UK,5499,Catering costs - provisions,20.06,0,20.06
Regeneration and Local Services,Direct Services,21234,Catering - Locomotion,Supplies and Services,324117,Provisions,05-Jun-17,6139231281,WWW.ADELIEFOODS.CO.UK,5499,Catering costs - provisions,17.21,0,17.21
Regeneration and Local Services,Direct Services,10525,Catering - Green Lane,Supplies and Services,324117,Provisions,05-Jun-17,6139231289,WWW.ADELIEFOODS.CO.UK,5499,Catering costs - provisions,57.33,0,57.33
Regeneration and Local Services,Direct Services,10525,Catering - Green Lane,Supplies and Services,324117,Provisions,05-Jun-17,6139231291,WWW.ADELIEFOODS.CO.UK,5499,Catering costs - provisions,38.16,0,38.16
Regeneration and Local Services,Direct Services,10525,Catering - Green Lane,Supplies and Services,324117,Provisions,05-Jun-17,6139231295,WWW.ADELIEFOODS.CO.UK,5499,Catering costs - provisions,21.34,0,21.34
Regeneration and Local Services,Direct Services,21234,Catering - Locomotion,Supplies and Services,324117,Provisions,05-Jun-17,6139231317,SAINSBURYS SACAT 2199,5411,Catering costs - provisions,3.9,0,3.9
Regeneration and Local Services,Direct Services,10367,C&G - South Grounds Maintenance,Supplies and Services,324117,Provisions,05-Jun-17,6139231333,J M RAINE,5399,Catering costs - provisions,99.82,16.64,83.18
Resources,Resources Management,69000,Resources Management,Supplies and Services,324117,Provisions,05-Jun-17,6139231349,ASDA STORES LTD,5411,Catering costs - provisions,3.96,0,3.96
Regeneration and Local Services,Direct Services,10301,C&G - North Grounds Maintenance,Supplies and Services,324117,Provisions,05-Jun-17,6139231381,J VAN VLIET GATESHEAD,5399,Catering costs - provisions,142.9,23.82,119.08
Regeneration and Local Services,Culture & Sport,54235,Bp Auckland Town Hall Cafe,Supplies and Services,324117,Provisions,05-Jun-17,6139231397,JR HOLLAND FOODSERVICE,5422,Catering costs - provisions,12.27,0,12.27
Regeneration and Local Services,Direct Services,21324,Catering - Meadowfield,Supplies and Services,324117,Provisions,05-Jun-17,6139231441,WWW.ADELIEFOODS.CO.UK,5499,Catering costs - provisions,46.88,0,46.88
Regeneration and Local Services,Direct Services,21324,Catering - Meadowfield,Supplies and Services,324117,Provisions,05-Jun-17,6139231443,WWW.ADELIEFOODS.CO.UK,5499,Catering costs - provisions,37.51,0,37.51
Regeneration and Local Services,Direct Services,21324,Catering - Meadowfield,Supplies and Services,324117,Provisions,05-Jun-17,6139231447,FREEMAN CATERING BUTCH,5422,Catering costs - provisions,72.25,0,72.25
Regeneration and Local Services,Direct Services,10301,C&G - North Grounds Maintenance,Third Party Payments,430100,Rendered by Private Contractors,05-Jun-17,6139231455,JOHN WARREN (ANIMAL BY,7399,Payments to sub-contractors,24.42,4.07,20.35
Regeneration and Local Services,Culture & Sport,11086,Positive Futures,Supplies and Services,324117,Provisions,05-Jun-17,6139231491,ASDA STORES LTD,5411,Catering costs - provisions,12.9,0,12.9
Regeneration and Local Services,Direct Services,21235,Catering - Wharton Park,Supplies and Services,324117,Provisions,05-Jun-17,6139231507,JR HOLLAND FOODSERVICE,5422,Catering costs - provisions,40.77,0,40.77
Regeneration and Local Services,Culture & Sport,10605,Woodhouse Close Leisure Complex,Supplies and Services,324117,Provisions,05-Jun-17,6139231521,JR HOLLAND FOODSERVICE,5422,Catering costs - provisions,35.64,0,35.64
Transformation and Partnerships,Partnerships & Community Engagement Div.,60472,Syrian Vulnerable Persons Scheme,Supplies and Services,308011,Furniture,05-Jun-17,6139231543,Argos Durham Arnis,5310,Furniture repair and replacement,119.94,19.99,99.95
Transformation and Partnerships,Partnerships & Community Engagement Div.,60472,Syrian Vulnerable Persons Scheme,Supplies and Services,308011,Furniture,05-Jun-17,6139231545,WILKO DURHAM 426,5722,Furniture repair and replacement,27.6,4.6,23
Transformation and Partnerships,Partnerships & Community Engagement Div.,60472,Syrian Vulnerable Persons Scheme,Supplies and Services,308011,Furniture,05-Jun-17,6139231549,ASDA STORES LTD 4313,5411,Furniture repair and replacement,123.25,20.54,102.71
Regeneration and Local Services,Spatial Policy Planning Assets & Environment,31040,Building Control - Central/East Area,Supplies and Services,312009,Newspapers Books and Periodicals,05-Jun-17,6139231593,TRADA TECHNOLOGY LTD,7399,Newspapers books and periodicals,114.8,0,114.8
Regeneration and Local Services,Culture & Sport,54812,Gala Theatre - Catering etc,Supplies and Services,324117,Provisions,05-Jun-17,6142607419,BATLEYS PERTH,5300,Catering costs - provisions,25.68,4.28,21.4
Regeneration and Local Services,Culture & Sport,54812,Gala Theatre - Catering etc,Supplies and Services,324117,Provisions,05-Jun-17,000006142607419 - 1,BATLEYS PERTH,5300,Catering costs - provisions,54.36,,54.36
Regeneration and Local Services,Economic Development and Housing,30699,Business Growth and Innovation General,Supplies and Services,304403,Equipment and Materials,06-Jun-17,6139230989,ADOBE CREATIVE CLOUD,5734,Other consumables,1.05,0,1.05
Regeneration and Local Services,Culture & Sport,54233,Bp Auckland Town Hall Library,Supplies and Services,312011,Newspapers Books and Periodicals,06-Jun-17,6139231053,Amazon EU,5969,Books-school library,27.99,0,27.99
Children and Young Peoples Services,Head of Education,71801,Selby Cottage Childcare Centre,Supplies and Services,324117,Provisions,06-Jun-17,6142607261,ASDA HOME SHOPPING,5411,Catering costs - provisions,112.56,0,112.56
Children and Young Peoples Services,Head of Education,71801,Selby Cottage Childcare Centre,Supplies and Services,324117,Provisions,06-Jun-17,6142607267,TESCO STORES 2278,5411,Catering costs - provisions,7.49,0,7.49
Regeneration and Local Services,Direct Services,11170,Nei.Prot - Community Safety Ops,Supplies and Services,344033,Telephones,06-Jun-17,6142607285,Amazon UK Marketplace,5942,Telephones general-all costs,9.5,0,9.5
Resources,Legal & Democratic Services,67910,Democratic Representation,Supplies and Services,344033,Telephones,06-Jun-17,6142607287,AMZ HL Brothers,5999,Telephones general-all costs,-90,0,-90
Resources,Financial Services,65177,Assessment,Supplies and Services,384999,Miscellaneous Expenses,06-Jun-17,6142607395,TP ELECTRICAL SUPPLIES,5065,Other expenses,13.19,2.2,10.99
Regeneration and Local Services,Economic Development and Housing,30737,Durham Works Flexible Fund,Transport,230031,Contract Hire,06-Jun-17,6142607399,Trainline,4112,Pupils-transport to play fields etc,66.3,0,66.3
Regeneration and Local Services,Direct Services,21242,Catering - County Hall,Supplies and Services,324117,Provisions,06-Jun-17,6142607405,JR HOLLAND FOODSERVICE,5422,Catering costs - provisions,59.44,0,59.44
Regeneration and Local Services,Direct Services,21242,Catering - County Hall,Supplies and Services,324117,Provisions,06-Jun-17,6142607411,JR HOLLAND FOODSERVICE,5422,Catering costs - provisions,5.2,0,5.2
Regeneration and Local Services,Culture & Sport,54812,Gala Theatre - Catering etc,Supplies and Services,324117,Provisions,06-Jun-17,6142607415,JR HOLLAND FOODSERVICE,5422,Catering costs - provisions,31.34,0,31.34
Children and Young Peoples Services,Head of Looked After Provision Permanence and Care Leavers,85333,Coxhoe Satelite Home,Supplies and Services,304999,Equipment and Materials,06-Jun-17,6142607451,TALK TALK BUSINESS,5968,Misc equipment tools and materials,49.2,0,49.2
Regeneration and Local Services,Economic Development and Housing,30749,Employability - Youth Contract,Supplies and Services,328041,Clothing Uniforms and Laundry,06-Jun-17,6142607515,SHOE ZONE,5661,Clothing uniforms and laundry,17.99,0,17.99
Regeneration and Local Services,Economic Development and Housing,30749,Employability - Youth Contract,Supplies and Services,324117,Provisions,06-Jun-17,6142607519,ASDA STORES LTD,5411,Catering costs - provisions,15.05,0,15.05
Children and Young Peoples Services,Head of Education,71732,Dean Bank Childcare,Supplies and Services,312011,Newspapers Books and Periodicals,06-Jun-17,6142607533,Amazon UK Marketplace,5942,Books-school library,27.18,0,27.18
Children and Young Peoples Services,Head of Education,71732,Dean Bank Childcare,Supplies and Services,324117,Provisions,06-Jun-17,6142607537,ASDA HOME SHOPPING,5411,Catering costs - provisions,50.89,0,50.89
Regeneration and Local Services,Economic Development and Housing,30737,Durham Works Flexible Fund,Transport,235057,Public Transport,06-Jun-17,6142607549,ARRIVA NORTH EAST,4131,Staff travelling,4.5,0,4.5
Regeneration and Local Services,Economic Development and Housing,30737,Durham Works Flexible Fund,Supplies and Services,348037,Subsistence,06-Jun-17,6142607573,WWW.SIMPLYGO.COM,4131,Subsistence,5,0,5
Regeneration and Local Services,Economic Development and Housing,30737,Durham Works Flexible Fund,Supplies and Services,304335,Equipment and Materials,06-Jun-17,6142607579,CURRYS,5732,ICT supplies etc,249,41.5,207.5
Children and Young Peoples Services,Head of Early Help Assessment and Safeguarding,71445,Chester le Street One Point Hub,Supplies and Services,312011,Newspapers Books and Periodicals,06-Jun-17,6142607605,Amazon UK Marketplace,5942,Books-school library,3.69,0,3.69
Children and Young Peoples Services,Head of Early Help Assessment and Safeguarding,71445,Chester le Street One Point Hub,Supplies and Services,304259,Equipment and Materials,06-Jun-17,6142607609,WILKO.COM,5722,Equipment-purchase and rental,89.9,0,89.9
Children and Young Peoples Services,Head of Looked After Provision Permanence and Care Leavers,85958,Support Services,Supplies and Services,312011,Newspapers Books and Periodicals,06-Jun-17,6142607615,Amazon UK Marketplace,5942,Books-school library,18.3,0,18.3
Children and Young Peoples Services,Head of Looked After Provision Permanence and Care Leavers,85958,Support Services,Supplies and Services,312011,Newspapers Books and Periodicals,06-Jun-17,6142607617,Amazon UK Marketplace,5942,Books-school library,11.98,0,11.98
Children and Young Peoples Services,Head of Looked After Provision Permanence and Care Leavers,85958,Support Services,Supplies and Services,328041,Clothing Uniforms and Laundry,06-Jun-17,6142607621,ARGOS RETAIL GROUP,5310,Clothing uniforms and laundry,44.99,0,44.99
Children and Young Peoples Services,Head of Looked After Provision Permanence and Care Leavers,85958,Support Services,Supplies and Services,304259,Equipment and Materials,06-Jun-17,6142607625,WWW.FOOTASYLUM.COM,5941,Equipment-purchase and rental,35.99,0,35.99
Children and Young Peoples Services,Head of Looked After Provision Permanence and Care Leavers,85958,Support Services,Supplies and Services,342033,Computers and Communications,06-Jun-17,6142607629,VERY.CO.UK,5964,Computer hardware,41.99,0,41.99
Regeneration and Local Services,Direct Services,10367,C&G - South Grounds Maintenance,Supplies and Services,304259,Equipment and Materials,06-Jun-17,6142607635,SCREWFIX,5211,Equipment-purchase and rental,42.42,7.07,35.35
Regeneration and Local Services,Direct Services,10301,C&G - North Grounds Maintenance,Supplies and Services,304221,Equipment and Materials,06-Jun-17,6142607645,SPALDINGS LIMITED,5085,Direct materials,239.08,0,239.08
Regeneration and Local Services,Spatial Policy Planning Assets & Environment,31222,North Pennines Allen Valleys Landscape Partnership,Supplies and Services,304403,Equipment and Materials,06-Jun-17,6142607651,W E & J ROWLE,5947,Other consumables,7.99,0,7.99
Regeneration and Local Services,Culture & Sport,11060,Hardwick Park Catering,Supplies and Services,324117,Provisions,06-Jun-17,6142607659,JR HOLLAND FOODSERVICE,5422,Catering costs - provisions,50.42,0,50.42
Regeneration and Local Services,Culture & Sport,54815,Gala Theatre Stage School,Supplies and Services,304999,Equipment and Materials,06-Jun-17,6142607669,SUPERDRUG STORES PLC,5912,Misc equipment tools and materials,26.47,0,26.47
Regeneration and Local Services,Economic Development and Housing,30762,Organisational Training & Development,Employees,40149,Recruitment Instruction and Training,06-Jun-17,6142607675,CITB,8220,Training-all costs,30,0,30
Regeneration and Local Services,Economic Development and Housing,30762,Organisational Training & Development,Employees,40149,Recruitment Instruction and Training,06-Jun-17,6142607681,CITB,8220,Training-all costs,30,5,25
Regeneration and Local Services,Economic Development and Housing,30762,Organisational Training & Development,Employees,40149,Recruitment Instruction and Training,06-Jun-17,6142607683,CITB,8220,Training-all costs,30,5,25
Regeneration and Local Services,Direct Services,21234,Catering - Locomotion,Supplies and Services,324117,Provisions,06-Jun-17,6142607687,JR HOLLAND FOODSERVICE,5422,Catering costs - provisions,38.15,0,38.15
Regeneration and Local Services,Culture & Sport,11191,Wellbeing4Life,Supplies and Services,328041,Clothing Uniforms and Laundry,06-Jun-17,6142607775,W BOYES & CO LTD NEWTO,5310,Clothing uniforms and laundry,2.25,0,2.25
Regeneration and Local Services,Culture & Sport,11191,Wellbeing4Life,Supplies and Services,348037,Subsistence,06-Jun-17,6142607781,THE BLUE STONE TEA SHO,5812,Subsistence,10,0,10
Children and Young Peoples Services,Head of Early Help Assessment and Safeguarding,74000,TTF-Attachment and Results,Supplies and Services,304259,Equipment and Materials,06-Jun-17,6142607793,WILKO.COM,5722,Equipment-purchase and rental,138.5,0,138.5
Children and Young Peoples Services,Head of Early Help Assessment and Safeguarding,74000,TTF-Attachment and Results,Supplies and Services,304259,Equipment and Materials,06-Jun-17,6142607797,WILKO.COM,5722,Equipment-purchase and rental,44,0,44
Regeneration and Local Services,Economic Development and Housing,31576,B& B - Temp Accom,Supplies and Services,364320,Grants to Voluntary Organisations,06-Jun-17,6142607819,TRAVELODGE,3615,Accommodation assistance,50,8.33,41.67
Regeneration and Local Services,Economic Development and Housing,31576,B& B - Temp Accom,Supplies and Services,364320,Grants to Voluntary Organisations,06-Jun-17,6142607823,TRAVELODGE,3615,Accommodation assistance,45,7.5,37.5
Children and Young Peoples Services,Head of Education,71903,EYDCP-Sustainability EDS,Supplies and Services,328041,Clothing Uniforms and Laundry,06-Jun-17,6142607859,POUNDWORLD RETAIL,5310,Clothing uniforms and laundry,8,0,8
Children and Young Peoples Services,Head of Education,71903,EYDCP-Sustainability EDS,Supplies and Services,312011,Newspapers Books and Periodicals,06-Jun-17,6142607867,HOME BARGAINS,5251,Books-school library,14.68,0,14.68
Children and Young Peoples Services,Head of Education,71903,EYDCP-Sustainability EDS,Supplies and Services,324117,Provisions,06-Jun-17,6142607869,TESCO STORES 2371,5411,Catering costs - provisions,17.2,0,17.2
Regeneration and Local Services,Transport and Contracted Services,31701,Care Connect All Localities,Supplies and Services,304259,Equipment and Materials,06-Jun-17,6142607873,FAST KEY SERVICES LIMI,7399,Equipment-purchase and rental,186.71,31.12,155.59
Regeneration and Local Services,Direct Services,10301,C&G - North Grounds Maintenance,Third Party Payments,430100,Rendered by Private Contractors,06-Jun-17,6142607967,JOHN WARREN (ANIMAL BY,7399,Payments to sub-contractors,9.6,1.6,8
Children and Young Peoples Services,Head of Looked After Provision Permanence and Care Leavers,85331,New Lea Childrens Home,Supplies and Services,324117,Provisions,06-Jun-17,6142608021,ASDA HOME SHOPPING,5411,Catering costs - provisions,113.86,0,113.86
Transformation and Partnerships,Partnerships & Community Engagement Div.,60530,3 Towns AAP,Supplies and Services,332047,Printing Stationery and Gen Off Exps,06-Jun-17,6142608037,Amazon EU,5969,Stationery,47.88,0,47.88
Resources,I.C.T. Services,65303,Design & Print - Design,Supplies and Services,372009,Subscriptions,06-Jun-17,6142608043,APPY PIE,5734,Subscriptions,48,0,48
Resources,I.C.T. Services,69010,Administration,Transport,235057,Public Transport,06-Jun-17,6142608049,OYSTER RENEW WEB,4112,Staff travelling,-50,0,-50
Regeneration and Local Services,Economic Development and Housing,30554,International Relations,Supplies and Services,384926,Miscellaneous Expenses,06-Jun-17,6142608237,E/TUNNEL INTERNET,4789,International visits,935,0,935
Regeneration and Local Services,Economic Development and Housing,30554,International Relations,Supplies and Services,384926,Miscellaneous Expenses,06-Jun-17,6142608239,E/TUNNEL INTERNET,4789,International visits,935,0,935
Children and Young Peoples Services,Head of Early Help Assessment and Safeguarding,88073,Barnard Castle 0 - 5,Supplies and Services,308011,Furniture,06-Jun-17,6147237121,WWW.ARGOS.CO.UK,5310,Furniture repair and replacement,58.93,0,58.93
Children and Young Peoples Services,Head of Looked After Provision Permanence and Care Leavers,85958,Support Services,Supplies and Services,332047,Printing Stationery and Gen Off Exps,06-Jun-17,6147237369,TRADEINN RETAIL SERVIC,7832,Stationery,59.9,9.98,49.92
Regeneration and Local Services,Culture & Sport,11060,Hardwick Park Catering,Supplies and Services,324117,Provisions,06-Jun-17,6147237441,BATLEYS PERTH,5300,Catering costs - provisions,85.92,14.32,71.6
Regeneration and Local Services,Culture & Sport,11060,Hardwick Park Catering,Supplies and Services,324117,Provisions,06-Jun-17,000006147237441 - 1,BATLEYS PERTH,5300,Catering costs - provisions,81.16,,81.16
Regeneration and Local Services,Direct Services,21234,Catering - Locomotion,Supplies and Services,324117,Provisions,06-Jun-17,6147237477,BATLEYS PERTH,5300,Catering costs - provisions,153.84,25.64,128.2
Regeneration and Local Services,Direct Services,21234,Catering - Locomotion,Supplies and Services,324117,Provisions,06-Jun-17,000006147237477 - 1,BATLEYS PERTH,5300,Catering costs - provisions,42.49,,42.49
Regeneration and Local Services,Direct Services,10525,Catering - Green Lane,Supplies and Services,324117,Provisions,06-Jun-17,6147237513,BATLEYS PERTH,5300,Catering costs - provisions,60.48,0,60.48
Resources,Legal & Democratic Services,67910,Democratic Representation,Supplies and Services,364320,Grants to Voluntary Organisations,06-Jun-17,6147237719,CHALON COURT HOTEL,7011,Accommodation assistance,195,32.5,162.5
Regeneration and Local Services,Culture & Sport,54235,Bp Auckland Town Hall Cafe,Supplies and Services,324117,Provisions,06-Jun-17,6147237743,BATLEYS PERTH,5300,Catering costs - provisions,41.46,6.91,34.55
Regeneration and Local Services,Culture & Sport,54235,Bp Auckland Town Hall Cafe,Supplies and Services,324117,Provisions,06-Jun-17,000006147237743 - 1,BATLEYS PERTH,5300,Catering costs - provisions,185.78,,185.78
Regeneration and Local Services,Direct Services,21324,Catering - Meadowfield,Supplies and Services,324117,Provisions,06-Jun-17,6147237787,BATLEYS PERTH,5300,Catering costs - provisions,144.54,24.09,120.45
Regeneration and Local Services,Direct Services,21324,Catering - Meadowfield,Supplies and Services,324117,Provisions,06-Jun-17,000006147237787 - 1,BATLEYS PERTH,5300,Catering costs - provisions,76.51,,76.51
Children and Young Peoples Services,Head of Looked After Provision Permanence and Care Leavers,85958,Support Services,Supplies and Services,342033,Computers and Communications,06-Jun-17,6182195593,EMP Merchan,5964,Computer hardware,152.71,0,152.71
Children and Young Peoples Services,Head of Education,71732,Dean Bank Childcare,Supplies and Services,312011,Newspapers Books and Periodicals,07-Jun-17,6142607541,Amazon UK Marketplace,5942,Books-school library,100.94,0,100.94
Regeneration and Local Services,Economic Development and Housing,31576,B& B - Temp Accom,Supplies and Services,364320,Grants to Voluntary Organisations,07-Jun-17,6147236971,TRAVELODGE,3615,Accommodation assistance,50,8.33,41.67
Regeneration and Local Services,Economic Development and Housing,31576,B& B - Temp Accom,Supplies and Services,364320,Grants to Voluntary Organisations,07-Jun-17,6147236975,TRAVELODGE,3615,Accommodation assistance,45,7.5,37.5
Adult and Health Services,EnvironmentHealth & Consumer Protection,10934,Works in Default Holding Code,Income,720130,Fees and Charges,07-Jun-17,6147236981,COUNTY COURT,9222,Fees-legal,55,0,55
Resources,Legal & Democratic Services,67910,Democratic Representation,Supplies and Services,344033,Telephones,07-Jun-17,6147236987,PARCELFORCE WORLDWIDE,4214,Telephones general-all costs,89.44,0,89.44
Regeneration and Local Services,Direct Services,10383,C&G - South Street Cleansing,Supplies and Services,304259,Equipment and Materials,07-Jun-17,6147237045,S&A BUILDERS MERCHANTS,5211,Equipment-purchase and rental,21.2,3.53,17.67
Regeneration and Local Services,Direct Services,10383,C&G - South Street Cleansing,Supplies and Services,304259,Equipment and Materials,07-Jun-17,6147237049,S&A BUILDERS MERCHANTS,5211,Equipment-purchase and rental,21.2,3.53,17.67
Children and Young Peoples Services,Head of Looked After Provision Permanence and Care Leavers,85342,9 Cedar Drive Aycliffe,Supplies and Services,324117,Provisions,07-Jun-17,6147237073,TESCO STORES 2916,5411,Catering costs - provisions,172.77,0,172.77
Children and Young Peoples Services,Head of Early Help Assessment and Safeguarding,88074,Barnard Castle 5 - 19,Supplies and Services,384999,Miscellaneous Expenses,07-Jun-17,6147237127,SEWN AT PAMS,5949,Other expenses,44.15,0,44.15
Regeneration and Local Services,Economic Development and Housing,30737,Durham Works Flexible Fund,Supplies and Services,384999,Miscellaneous Expenses,07-Jun-17,6147237131,GRO HM PASSPORT OFFICE,9399,Other expenses,23.4,0,23.4
Regeneration and Local Services,Economic Development and Housing,30737,Durham Works Flexible Fund,Transport,230031,Contract Hire,07-Jun-17,6147237137,ARRIVA NORTH EAST,4131,Pupils-transport to play fields etc,80,0,80
Regeneration and Local Services,Direct Services,21242,Catering - County Hall,Supplies and Services,324117,Provisions,07-Jun-17,6147237145,WWW.ADELIEFOODS.CO.UK,5499,Catering costs - provisions,157.56,0,157.56
Regeneration and Local Services,Direct Services,21242,Catering - County Hall,Supplies and Services,324117,Provisions,07-Jun-17,6147237147,WWW.ADELIEFOODS.CO.UK,5499,Catering costs - provisions,92.17,0,92.17
Regeneration and Local Services,Direct Services,21242,Catering - County Hall,Supplies and Services,324117,Provisions,07-Jun-17,6147237153,JR HOLLAND FOODSERVICE,5422,Catering costs - provisions,103.64,0,103.64
Regeneration and Local Services,Direct Services,21242,Catering - County Hall,Supplies and Services,324117,Provisions,07-Jun-17,6147237161,JR HOLLAND FOODSERVICE,5422,Catering costs - provisions,57.99,0,57.99
Regeneration and Local Services,Direct Services,21242,Catering - County Hall,Supplies and Services,324117,Provisions,07-Jun-17,6147237167,JR HOLLAND FOODSERVICE,5422,Catering costs - provisions,31.35,0,31.35
Regeneration and Local Services,Direct Services,21242,Catering - County Hall,Supplies and Services,324117,Provisions,07-Jun-17,6147237171,JR HOLLAND FOODSERVICE,5422,Catering costs - provisions,3,0,3
Regeneration and Local Services,Spatial Policy Planning Assets & Environment,31200,North Pennines Core,Supplies and Services,304403,Equipment and Materials,07-Jun-17,6147237211,BRAINSTORM LIMITED,5999,Other consumables,199.14,33.19,165.95
Children and Young Peoples Services,Head of Looked After Provision Permanence and Care Leavers,85333,Coxhoe Satelite Home,Supplies and Services,344033,Telephones,07-Jun-17,6147237223,E E BROADBAND,4812,Telephones general-all costs,68.37,0,68.37
Regeneration and Local Services,Culture & Sport,11219,Office Services,Supplies and Services,304403,Equipment and Materials,07-Jun-17,6147237231,AMAZON.CO.UK,5999,Other consumables,30.44,0,30.44
Regeneration and Local Services,Culture & Sport,11219,Office Services,Supplies and Services,304403,Equipment and Materials,07-Jun-17,6147237235,AMAZON.CO.UK,5999,Other consumables,33.44,0,33.44
Regeneration and Local Services,Direct Services,10900,Fleet - Meadowfield Fleet,Transport,215013,Running Costs of Vehicles,07-Jun-17,6147237251,DVLA VEHICLE TAX,9399,Vehicle Excise Duty (VED),167.5,0,167.5
Regeneration and Local Services,Direct Services,10561,Fleet - Morrison Busty Fleet,Transport,215013,Running Costs of Vehicles,07-Jun-17,6147237255,DVLA VEHICLE TAX,9399,Vehicle Excise Duty (VED),202.5,0,202.5
Regeneration and Local Services,Direct Services,10900,Fleet - Meadowfield Fleet,Transport,215013,Running Costs of Vehicles,07-Jun-17,6147237261,DVLA VEHICLE TAX,9399,Vehicle Excise Duty (VED),167.5,0,167.5
Regeneration and Local Services,Direct Services,10561,Fleet - Morrison Busty Fleet,Transport,215013,Running Costs of Vehicles,07-Jun-17,6147237263,DVLA VEHICLE TAX,9399,Vehicle Excise Duty (VED),167.5,0,167.5
Children and Young Peoples Services,Head of Early Help Assessment and Safeguarding,88063,Bishop Auckland 0 - 5,Supplies and Services,324117,Provisions,07-Jun-17,6147237287,ASDA HOME SHOPPING,5411,Catering costs - provisions,27,0,27
Children and Young Peoples Services,Head of Early Help Assessment and Safeguarding,88063,Bishop Auckland 0 - 5,Supplies and Services,324117,Provisions,07-Jun-17,6147237291,ASDA HOME SHOPPING,5411,Catering costs - provisions,-1.32,0,-1.32
Regeneration and Local Services,Economic Development and Housing,30749,Employability - Youth Contract,Transport,235057,Public Transport,07-Jun-17,6147237295,ARRIVA NORTH EAST,4131,Staff travelling,7,0,7
Children and Young Peoples Services,Head of Education,71732,Dean Bank Childcare,Supplies and Services,312011,Newspapers Books and Periodicals,07-Jun-17,6147237297,Amazon UK Marketplace,5942,Books-school library,12.05,0,12.05
Children and Young Peoples Services,Head of Education,71732,Dean Bank Childcare,Supplies and Services,312011,Newspapers Books and Periodicals,07-Jun-17,6147237303,Amazon UK Marketplace,5942,Books-school library,32.55,0,32.55
Resources,Legal & Democratic Services,67910,Democratic Representation,Supplies and Services,384960,Miscellaneous Expenses,07-Jun-17,6147237329,NEWCASTLE PARK AND FLY,7523,National and major functions,4.5,0.75,3.75
Resources,Legal & Democratic Services,67910,Democratic Representation,Supplies and Services,384960,Miscellaneous Expenses,07-Jun-17,6147237333,FINBARRS RESTAURAN,5812,National and major functions,385.55,0,385.55
Children and Young Peoples Services,Head of Education,71903,EYDCP-Sustainability EDS,Supplies and Services,312011,Newspapers Books and Periodicals,07-Jun-17,6147237339,HOME BARGAINS,5251,Books-school library,24.93,4.16,20.77
Regeneration and Local Services,Direct Services,10301,C&G - North Grounds Maintenance,Supplies and Services,304403,Equipment and Materials,07-Jun-17,6147237357,BESCOL,5231,Other consumables,33.79,5.63,28.16
Regeneration and Local Services,Economic Development and Housing,30737,Durham Works Flexible Fund,Supplies and Services,384985,Miscellaneous Expenses,07-Jun-17,6147237361,LOOKFANTASTIC,7929,Miscellaneous-special facilities,137.5,0,137.5
Children and Young Peoples Services,Head of Looked After Provision Permanence and Care Leavers,85958,Support Services,Supplies and Services,304259,Equipment and Materials,07-Jun-17,6147237375,M and M Direct Ltd,5941,Equipment-purchase and rental,15.98,0,15.98
Children and Young Peoples Services,Head of Looked After Provision Permanence and Care Leavers,85958,Support Services,Supplies and Services,312011,Newspapers Books and Periodicals,07-Jun-17,6147237377,Amazon EU,5969,Books-school library,59.9,0,59.9
Children and Young Peoples Services,Head of Looked After Provision Permanence and Care Leavers,85958,Support Services,Supplies and Services,304259,Equipment and Materials,07-Jun-17,6147237381,WWW.FOOTASYLUM.COM,5941,Equipment-purchase and rental,29.98,0,29.98
Children and Young Peoples Services,Head of Looked After Provision Permanence and Care Leavers,85958,Support Services,Supplies and Services,324117,Provisions,07-Jun-17,6147237385,TESCO STORES 6329,5411,Catering costs - provisions,85.67,0,85.67
Regeneration and Local Services,Direct Services,10367,C&G - South Grounds Maintenance,Supplies and Services,304259,Equipment and Materials,07-Jun-17,6147237399,SCREWFIX,5211,Equipment-purchase and rental,12.48,2.08,10.4
Regeneration and Local Services,Culture & Sport,11060,Hardwick Park Catering,Supplies and Services,324117,Provisions,07-Jun-17,6147237419,JR HOLLAND FOODSERVICE,5422,Catering costs - provisions,136.77,0,136.77
Regeneration and Local Services,Culture & Sport,11060,Hardwick Park Catering,Supplies and Services,324117,Provisions,07-Jun-17,6147237431,JR HOLLAND FOODSERVICE,5422,Catering costs - provisions,45.3,0,45.3
Regeneration and Local Services,Culture & Sport,11060,Hardwick Park Catering,Supplies and Services,324117,Provisions,07-Jun-17,6147237449,JR HOLLAND FOODSERVICE,5422,Catering costs - provisions,-1.34,0,-1.34
Regeneration and Local Services,Direct Services,21234,Catering - Locomotion,Supplies and Services,324117,Provisions,07-Jun-17,6147237469,JR HOLLAND FOODSERVICE,5422,Catering costs - provisions,15.71,0,15.71
Regeneration and Local Services,Direct Services,10525,Catering - Green Lane,Supplies and Services,324117,Provisions,07-Jun-17,6147237507,JR HOLLAND FOODSERVICE,5422,Catering costs - provisions,49.52,0,49.52
Children and Young Peoples Services,Head of Looked After Provision Permanence and Care Leavers,85352,Tow Law CU,Supplies and Services,324117,Provisions,07-Jun-17,6147237535,TESCO STORES 2371,5411,Catering costs - provisions,237.47,0,237.47
Children and Young Peoples Services,Head of Looked After Provision Permanence and Care Leavers,85333,Coxhoe Satelite Home,Supplies and Services,324117,Provisions,07-Jun-17,6147237615,ALDI,5411,Catering costs - provisions,60.23,0,60.23
Children and Young Peoples Services,Head of Looked After Provision Permanence and Care Leavers,85333,Coxhoe Satelite Home,Supplies and Services,324117,Provisions,07-Jun-17,6147237617,ICELAND,5411,Catering costs - provisions,71.78,0,71.78
Children and Young Peoples Services,Head of Looked After Provision Permanence and Care Leavers,85333,Coxhoe Satelite Home,Supplies and Services,328041,Clothing Uniforms and Laundry,07-Jun-17,6147237623,B & M RETAIL,5310,Clothing uniforms and laundry,19.96,0,19.96
Children and Young Peoples Services,Head of Looked After Provision Permanence and Care Leavers,85333,Coxhoe Satelite Home,Supplies and Services,304259,Equipment and Materials,07-Jun-17,6147237625,SPORTSDIRECT 264,5941,Equipment-purchase and rental,22.99,0,22.99
Children and Young Peoples Services,Head of Education,71903,EYDCP-Sustainability EDS,Supplies and Services,324117,Provisions,07-Jun-17,6147237733,TESCO STORE 2638,5411,Catering costs - provisions,2,0,2
Regeneration and Local Services,Culture & Sport,54235,Bp Auckland Town Hall Cafe,Supplies and Services,324117,Provisions,07-Jun-17,6147237737,JR HOLLAND FOODSERVICE,5422,Catering costs - provisions,47.24,0,47.24
Regeneration and Local Services,Direct Services,21324,Catering - Meadowfield,Supplies and Services,324117,Provisions,07-Jun-17,6147237777,JR HOLLAND FOODSERVICE,5422,Catering costs - provisions,37.28,0,37.28
Regeneration and Local Services,Direct Services,21324,Catering - Meadowfield,Supplies and Services,324117,Provisions,07-Jun-17,6147237783,JR HOLLAND FOODSERVICE,5422,Catering costs - provisions,13.87,0,13.87
Children and Young Peoples Services,Head of Early Help Assessment and Safeguarding,71404,Laurel Avenue Childrens Centre,Supplies and Services,324117,Provisions,07-Jun-17,6147237897,TESCO STORES 2371,5411,Catering costs - provisions,10.7,0,10.7
Children and Young Peoples Services,Head of Early Help Assessment and Safeguarding,71404,Laurel Avenue Childrens Centre,Supplies and Services,324117,Provisions,07-Jun-17,6147237903,TESCO STORES 2371,5411,Catering costs - provisions,8,0,8
Regeneration and Local Services,Direct Services,21235,Catering - Wharton Park,Supplies and Services,324117,Provisions,07-Jun-17,6147237909,WWW.ADELIEFOODS.CO.UK,5499,Catering costs - provisions,68.65,0,68.65
Regeneration and Local Services,Direct Services,21235,Catering - Wharton Park,Supplies and Services,324117,Provisions,07-Jun-17,6147237913,WWW.ADELIEFOODS.CO.UK,5499,Catering costs - provisions,67.85,0,67.85
Regeneration and Local Services,Direct Services,21235,Catering - Wharton Park,Supplies and Services,324117,Provisions,07-Jun-17,6147237919,WWW.ADELIEFOODS.CO.UK,5499,Catering costs - provisions,55.2,0,55.2
Regeneration and Local Services,Direct Services,21235,Catering - Wharton Park,Supplies and Services,324117,Provisions,07-Jun-17,6147237921,WWW.ADELIEFOODS.CO.UK,5499,Catering costs - provisions,21.59,0,21.59
Regeneration and Local Services,Direct Services,21235,Catering - Wharton Park,Supplies and Services,324117,Provisions,07-Jun-17,6147237925,WWW.ADELIEFOODS.CO.UK,5499,Catering costs - provisions,15.99,0,15.99
Regeneration and Local Services,Direct Services,21235,Catering - Wharton Park,Supplies and Services,324117,Provisions,07-Jun-17,6147237929,WWW.ADELIEFOODS.CO.UK,5499,Catering costs - provisions,15.99,0,15.99
Regeneration and Local Services,Direct Services,21235,Catering - Wharton Park,Supplies and Services,324117,Provisions,07-Jun-17,6147237931,WWW.ADELIEFOODS.CO.UK,5499,Catering costs - provisions,14.51,0,14.51
Regeneration and Local Services,Direct Services,21235,Catering - Wharton Park,Supplies and Services,324117,Provisions,07-Jun-17,6147237935,WWW.ADELIEFOODS.CO.UK,5499,Catering costs - provisions,13.19,0,13.19
Regeneration and Local Services,Direct Services,21235,Catering - Wharton Park,Supplies and Services,324117,Provisions,07-Jun-17,6147237937,WWW.ADELIEFOODS.CO.UK,5499,Catering costs - provisions,12.85,0,12.85
Regeneration and Local Services,Direct Services,21235,Catering - Wharton Park,Supplies and Services,324117,Provisions,07-Jun-17,6147237941,WWW.ADELIEFOODS.CO.UK,5499,Catering costs - provisions,12.69,0,12.69
Regeneration and Local Services,Culture & Sport,10605,Woodhouse Close Leisure Complex,Supplies and Services,324117,Provisions,07-Jun-17,6147237947,JR HOLLAND FOODSERVICE,5422,Catering costs - provisions,42.41,0,42.41
Regeneration and Local Services,Culture & Sport,11219,Office Services,Supplies and Services,304403,Equipment and Materials,07-Jun-17,6151857481,AMAZON.CO.UK,5999,Other consumables,54.26,0,54.26
Regeneration and Local Services,Culture & Sport,11219,Office Services,Supplies and Services,304403,Equipment and Materials,07-Jun-17,6151857483,AMAZON.CO.UK,5999,Other consumables,25.46,0,25.46
Regeneration and Local Services,Economic Development and Housing,30554,International Relations,Supplies and Services,352001,Conference Expenses,07-Jun-17,6151857563,LUMLEY CASTLE HOTEL LT,7011,Conferencesseminars fees etc,143.4,0,143.4
Children and Young Peoples Services,Head of Looked After Provision Permanence and Care Leavers,85958,Support Services,Supplies and Services,304259,Equipment and Materials,07-Jun-17,6151857579,SPORTSDIRECT.COM,5941,Equipment-purchase and rental,69.94,11.66,58.28
Resources,I.C.T. Services,70704,ICT School Services - DLG,Supplies and Services,304335,Equipment and Materials,07-Jun-17,6151857763,CSS - COMODO GROUP IN,7399,ICT supplies etc,836.17,0,836.17
Regeneration and Local Services,Economic Development and Housing,30699,Business Growth and Innovation General,Supplies and Services,342033,Computers and Communications,08-Jun-17,6147237083,AdRoll_EMEA,7372,Computer hardware,23.71,0,23.71
Regeneration and Local Services,Economic Development and Housing,30699,Business Growth and Innovation General,Supplies and Services,304403,Equipment and Materials,08-Jun-17,6147237085,MEETEDGAR MONTHLY,5734,Other consumables,0.65,0,0.65
Regeneration and Local Services,Culture & Sport,54501,HM Prison Durham,Supplies and Services,342033,Computers and Communications,08-Jun-17,6151857415,Amazon UK Marketplace,5942,Computer hardware,11.48,0,11.48
Regeneration and Local Services,Direct Services,21242,Catering - County Hall,Supplies and Services,324117,Provisions,08-Jun-17,6151857453,JR HOLLAND FOODSERVICE,5422,Catering costs - provisions,67.47,0,67.47
Regeneration and Local Services,Direct Services,21242,Catering - County Hall,Supplies and Services,324117,Provisions,08-Jun-17,6151857455,JR HOLLAND FOODSERVICE,5422,Catering costs - provisions,13.16,0,13.16
Resources,I.C.T. Services,65464,Domains,Supplies and Services,372009,Subscriptions,08-Jun-17,6151857459,NOMINET UK,7379,Subscriptions,40.5,0,40.5
Resources,Legal & Democratic Services,67910,Democratic Representation,Supplies and Services,384960,Miscellaneous Expenses,08-Jun-17,6151857461,DOWNEYS,5812,National and major functions,62.67,0,62.67
Resources,Legal & Democratic Services,67910,Democratic Representation,Supplies and Services,384960,Miscellaneous Expenses,08-Jun-17,6151857463,DOWNEYS,5812,National and major functions,7.2,0,7.2
Resources,Legal & Democratic Services,67910,Democratic Representation,Supplies and Services,384960,Miscellaneous Expenses,08-Jun-17,6151857465,ZIZZI DURHAM,5812,National and major functions,103.65,17.28,86.37
Regeneration and Local Services,Culture & Sport,54812,Gala Theatre - Catering etc,Supplies and Services,324117,Provisions,08-Jun-17,6151857467,JR HOLLAND FOODSERVICE,5422,Catering costs - provisions,21.25,0,21.25
Children and Young Peoples Services,Head of Looked After Provision Permanence and Care Leavers,85362,LAC & Permanence Team 2,Supplies and Services,304403,Equipment and Materials,08-Jun-17,6151857471,GRO HM PASSPORT OFFICE,9399,Other consumables,18.5,0,18.5
Regeneration and Local Services,Culture & Sport,11219,Office Services,Supplies and Services,304403,Equipment and Materials,08-Jun-17,6151857479,AMAZON.CO.UK,5999,Other consumables,22.94,0,22.94
Regeneration and Local Services,Direct Services,10864,Fleet - Hackworth Road Fleet,Transport,215013,Running Costs of Vehicles,08-Jun-17,6151857491,DVLA VEHICLE TAX,9399,Vehicle Excise Duty (VED),212.5,0,212.5
Regeneration and Local Services,Direct Services,10561,Fleet - Morrison Busty Fleet,Transport,215013,Running Costs of Vehicles,08-Jun-17,6151857493,DVLA VEHICLE TAX,9399,Vehicle Excise Duty (VED),242.5,0,242.5
Regeneration and Local Services,Direct Services,10561,Fleet - Morrison Busty Fleet,Transport,215013,Running Costs of Vehicles,08-Jun-17,6151857495,DVLA VEHICLE TAX,9399,Vehicle Excise Duty (VED),242.5,0,242.5
Regeneration and Local Services,Direct Services,10561,Fleet - Morrison Busty Fleet,Transport,215013,Running Costs of Vehicles,08-Jun-17,6151857497,DVLA VEHICLE TAX,9399,Vehicle Excise Duty (VED),202.5,0,202.5
Regeneration and Local Services,Direct Services,10551,Fleet - Chilton Fleet,Transport,215013,Running Costs of Vehicles,08-Jun-17,6151857499,DVLA VEHICLE TAX,9399,Vehicle Excise Duty (VED),202.5,0,202.5
Regeneration and Local Services,Direct Services,10551,Fleet - Chilton Fleet,Transport,215013,Running Costs of Vehicles,08-Jun-17,6151857501,DVLA VEHICLE TAX,9399,Vehicle Excise Duty (VED),212.5,0,212.5
Regeneration and Local Services,Direct Services,10900,Fleet - Meadowfield Fleet,Transport,215013,Running Costs of Vehicles,08-Jun-17,6151857503,DVLA VEHICLE TAX,9399,Vehicle Excise Duty (VED),242.5,0,242.5
Regeneration and Local Services,Direct Services,10551,Fleet - Chilton Fleet,Transport,215013,Running Costs of Vehicles,08-Jun-17,6151857505,WWW.DVLA.GOV.UK,9399,Vehicle Excise Duty (VED),242.5,0,242.5
Regeneration and Local Services,Direct Services,10561,Fleet - Morrison Busty Fleet,Transport,215013,Running Costs of Vehicles,08-Jun-17,6151857507,WWW.DVLA.GOV.UK,9399,Vehicle Excise Duty (VED),242.5,0,242.5
Regeneration and Local Services,Direct Services,10900,Fleet - Meadowfield Fleet,Transport,215013,Running Costs of Vehicles,08-Jun-17,6151857509,WWW.DVLA.GOV.UK,9399,Vehicle Excise Duty (VED),242.5,0,242.5
Regeneration and Local Services,Direct Services,10551,Fleet - Chilton Fleet,Transport,215013,Running Costs of Vehicles,08-Jun-17,6151857511,WWW.DVLA.GOV.UK,9399,Vehicle Excise Duty (VED),652.5,0,652.5
Regeneration and Local Services,Direct Services,10551,Fleet - Chilton Fleet,Transport,215013,Running Costs of Vehicles,08-Jun-17,6151857513,WWW.DVLA.GOV.UK,9399,Vehicle Excise Duty (VED),652.5,0,652.5
Regeneration and Local Services,Direct Services,10551,Fleet - Chilton Fleet,Transport,215013,Running Costs of Vehicles,08-Jun-17,6151857515,WWW.DVLA.GOV.UK,9399,Vehicle Excise Duty (VED),652.5,0,652.5
Regeneration and Local Services,Direct Services,10551,Fleet - Chilton Fleet,Transport,215013,Running Costs of Vehicles,08-Jun-17,6151857517,WWW.DVLA.GOV.UK,9399,Vehicle Excise Duty (VED),652.5,0,652.5
Regeneration and Local Services,Direct Services,10561,Fleet - Morrison Busty Fleet,Transport,215013,Running Costs of Vehicles,08-Jun-17,6151857519,WWW.DVLA.GOV.UK,9399,Vehicle Excise Duty (VED),652.5,0,652.5
Regeneration and Local Services,Direct Services,10864,Fleet - Hackworth Road Fleet,Transport,215013,Running Costs of Vehicles,08-Jun-17,6151857521,WWW.DVLA.GOV.UK,9399,Vehicle Excise Duty (VED),652.5,0,652.5
Regeneration and Local Services,Direct Services,10900,Fleet - Meadowfield Fleet,Transport,215013,Running Costs of Vehicles,08-Jun-17,6151857523,WWW.DVLA.GOV.UK,9399,Vehicle Excise Duty (VED),242.5,0,242.5
Regeneration and Local Services,Direct Services,10900,Fleet - Meadowfield Fleet,Transport,215013,Running Costs of Vehicles,08-Jun-17,6151857525,WWW.DVLA.GOV.UK,9399,Vehicle Excise Duty (VED),242.5,40.42,202.08
Regeneration and Local Services,Direct Services,10551,Fleet - Chilton Fleet,Transport,215013,Running Costs of Vehicles,08-Jun-17,6151857527,WWW.DVLA.GOV.UK,9399,Vehicle Excise Duty (VED),242.5,0,242.5
Regeneration and Local Services,Direct Services,10551,Fleet - Chilton Fleet,Transport,215013,Running Costs of Vehicles,08-Jun-17,6151857529,WWW.DVLA.GOV.UK,9399,Vehicle Excise Duty (VED),652.5,0,652.5
Regeneration and Local Services,Direct Services,10561,Fleet - Morrison Busty Fleet,Transport,215013,Running Costs of Vehicles,08-Jun-17,6151857531,WWW.DVLA.GOV.UK,9399,Vehicle Excise Duty (VED),652.5,0,652.5
Regeneration and Local Services,Direct Services,10561,Fleet - Morrison Busty Fleet,Transport,215013,Running Costs of Vehicles,08-Jun-17,6151857533,WWW.DVLA.GOV.UK,9399,Vehicle Excise Duty (VED),652.5,0,652.5
Regeneration and Local Services,Direct Services,10551,Fleet - Chilton Fleet,Transport,215013,Running Costs of Vehicles,08-Jun-17,6151857535,WWW.DVLA.GOV.UK,9399,Vehicle Excise Duty (VED),652.5,0,652.5
Regeneration and Local Services,Economic Development and Housing,30749,Employability - Youth Contract,Supplies and Services,324117,Provisions,08-Jun-17,6151857537,ASDA GEORGE COM LEEDS,5411,Catering costs - provisions,14.95,0,14.95
Regeneration and Local Services,Economic Development and Housing,30749,Employability - Youth Contract,Supplies and Services,304403,Equipment and Materials,08-Jun-17,6151857539,TESCO DIRECT,5999,Other consumables,19,0,19
Regeneration and Local Services,Culture & Sport,54813,Gala Theatre - Technical,Supplies and Services,304403,Equipment and Materials,08-Jun-17,6151857553,AMAZON.CO.UK,5999,Other consumables,30.99,0,30.99
Regeneration and Local Services,Economic Development and Housing,30737,Durham Works Flexible Fund,Transport,235057,Public Transport,08-Jun-17,6151857557,ARRIVA NORTH EAST,4131,Staff travelling,7,0,7
Children and Young Peoples Services,Head of Looked After Provision Permanence and Care Leavers,85332,Middlestone Moor CU,Supplies and Services,328041,Clothing Uniforms and Laundry,08-Jun-17,6151857559,ARGOS RETAIL GROUP,5310,Clothing uniforms and laundry,218.99,0,218.99
Children and Young Peoples Services,Head of Looked After Provision Permanence and Care Leavers,85958,Support Services,Supplies and Services,328041,Clothing Uniforms and Laundry,08-Jun-17,6151857577,WWW.ARGOS.CO.UK,5310,Clothing uniforms and laundry,18.95,0,18.95
Children and Young Peoples Services,Head of Looked After Provision Permanence and Care Leavers,85958,Support Services,Supplies and Services,304403,Equipment and Materials,08-Jun-17,6151857581,APPLIANCEDIRECT CO,5734,Other consumables,106.5,0,106.5
Children and Young Peoples Services,Head of Looked After Provision Permanence and Care Leavers,85958,Support Services,Supplies and Services,324117,Provisions,08-Jun-17,6151857583,TESCO STORES 6329,5411,Catering costs - provisions,78.15,0,78.15
Children and Young Peoples Services,Head of Looked After Provision Permanence and Care Leavers,85958,Support Services,Supplies and Services,328041,Clothing Uniforms and Laundry,08-Jun-17,6151857585,ARGOS RETAIL GROUP,5310,Clothing uniforms and laundry,146.4,0,146.4
Children and Young Peoples Services,Head of Looked After Provision Permanence and Care Leavers,85958,Support Services,Supplies and Services,328041,Clothing Uniforms and Laundry,08-Jun-17,6151857587,ARGOS RETAIL GROUP,5310,Clothing uniforms and laundry,22.99,0,22.99
Regeneration and Local Services,Direct Services,10367,C&G - South Grounds Maintenance,Supplies and Services,304259,Equipment and Materials,08-Jun-17,6151857591,SCREWFIX,5211,Equipment-purchase and rental,10.18,1.7,8.48
Resources,I.C.T. Services,65335,Implementation,Supplies and Services,304639,Equipment and Materials,08-Jun-17,6151857601,Amazon UK Marketplace,5942,Technicians-supplies,12.95,0,12.95
Resources,I.C.T. Services,65335,Implementation,Supplies and Services,304639,Equipment and Materials,08-Jun-17,6151857603,WWW.ALIEXPRESS.COM,5964,Technicians-supplies,75.17,0,75.17
Resources,I.C.T. Services,65335,Implementation,Supplies and Services,304639,Equipment and Materials,08-Jun-17,6151857605,www.gedat.com,5045,Technicians-supplies,128.46,0,128.46
Regeneration and Local Services,Culture & Sport,54815,Gala Theatre Stage School,Supplies and Services,312011,Newspapers Books and Periodicals,08-Jun-17,6151857609,Amazon UK Marketplace,5942,Books-school library,29.25,0,29.25
Regeneration and Local Services,Culture & Sport,54815,Gala Theatre Stage School,Supplies and Services,312011,Newspapers Books and Periodicals,08-Jun-17,6151857613,Amazon EU,5969,Books-school library,5.98,0,5.98
Regeneration and Local Services,Culture & Sport,54815,Gala Theatre Stage School,Supplies and Services,304999,Equipment and Materials,08-Jun-17,6151857615,BIGDUG LIMITED,5072,Misc equipment tools and materials,184.68,30.78,153.9
Regeneration and Local Services,Culture & Sport,54815,Gala Theatre Stage School,Supplies and Services,304403,Equipment and Materials,08-Jun-17,6151857617,AMAZON UK RETAIL AMAZO,5999,Other consumables,7,0,7
Regeneration and Local Services,Direct Services,21234,Catering - Locomotion,Supplies and Services,324117,Provisions,08-Jun-17,6151857621,JR HOLLAND FOODSERVICE,5422,Catering costs - provisions,33.37,0,33.37
Regeneration and Local Services,Economic Development and Housing,31576,B& B - Temp Accom,Supplies and Services,364320,Grants to Voluntary Organisations,08-Jun-17,6151857629,TRAVELODGE,3615,Accommodation assistance,41,6.83,34.17
Regeneration and Local Services,Direct Services,10525,Catering - Green Lane,Supplies and Services,324117,Provisions,08-Jun-17,6151857631,JR HOLLAND FOODSERVICE,5422,Catering costs - provisions,0.83,0,0.83
Regeneration and Local Services,Direct Services,10525,Catering - Green Lane,Supplies and Services,324117,Provisions,08-Jun-17,6151857633,JR HOLLAND FOODSERVICE,5422,Catering costs - provisions,-0.83,0,-0.83
Children and Young Peoples Services,Head of Looked After Provision Permanence and Care Leavers,85331,New Lea Childrens Home,Supplies and Services,304403,Equipment and Materials,08-Jun-17,6151857755,WWW.JUSTGLOVES.CO.UK,5999,Other consumables,22.74,0,22.74
Resources,Corporate Finance,66820,Occupational Health Service,Supplies and Services,372009,Subscriptions,08-Jun-17,6151857757,FACULTY OF OCCUPATIONA,8999,Subscriptions,540,0,540
Regeneration and Local Services,Direct Services,11068,Nei.Prot - Civic Pride,Supplies and Services,332047,Printing Stationery and Gen Off Exps,08-Jun-17,6151857759,LOVE2SHOP.CO.UK,8641,Stationery,133.5,0,133.5
Resources,I.C.T. Services,65481,Technical Services,Supplies and Services,372009,Subscriptions,08-Jun-17,6151857761,WWW.JA.NET,8699,Subscriptions,192,0,192
Children and Young Peoples Services,Head of Looked After Provision Permanence and Care Leavers,85965,Barnard,Supplies and Services,304403,Equipment and Materials,08-Jun-17,6157085167,AMAZON.CO.UK,5999,Other consumables,36.9,0,36.9
Regeneration and Local Services,Direct Services,21242,Catering - County Hall,Supplies and Services,324117,Provisions,08-Jun-17,6157085263,BATLEYS PERTH,5300,Catering costs - provisions,233.82,38.97,194.85
Regeneration and Local Services,Direct Services,21242,Catering - County Hall,Supplies and Services,324117,Provisions,08-Jun-17,000006157085263 - 1,BATLEYS PERTH,5300,Catering costs - provisions,311.4,,311.4
Regeneration and Local Services,Economic Development and Housing,30749,Employability - Youth Contract,Supplies and Services,328041,Clothing Uniforms and Laundry,08-Jun-17,6157085387,MATALAN.CO.UK,5691,Clothing uniforms and laundry,96,0,96
Regeneration and Local Services,Culture & Sport,11060,Hardwick Park Catering,Supplies and Services,324117,Provisions,08-Jun-17,6157085565,BATLEYS PERTH,5300,Catering costs - provisions,560.16,93.36,466.8
Regeneration and Local Services,Culture & Sport,11060,Hardwick Park Catering,Supplies and Services,324117,Provisions,08-Jun-17,000006157085565 - 1,BATLEYS PERTH,5300,Catering costs - provisions,222.51,,222.51
Regeneration and Local Services,Culture & Sport,11060,Hardwick Park Catering,Supplies and Services,324117,Provisions,08-Jun-17,6157085583,BATLEYS PERTH,5300,Catering costs - provisions,66.17,0,66.17
Regeneration and Local Services,Culture & Sport,11060,Hardwick Park Catering,Supplies and Services,324117,Provisions,08-Jun-17,6157085589,BATLEYS PERTH,5300,Catering costs - provisions,-10.02,-1.67,-8.35
Resources,I.C.T. Services,65471,Business Development,Supplies and Services,336005,Advertising,08-Jun-17,6157085631,AMAZON.CO.UK,5999,Advertising other than for staff,9.48,0,9.48
Regeneration and Local Services,Direct Services,21234,Catering - Locomotion,Supplies and Services,324117,Provisions,08-Jun-17,6157085657,BATLEYS PERTH,5300,Catering costs - provisions,52.9,0,52.9
Regeneration and Local Services,Spatial Policy Planning Assets & Environment,31200,North Pennines Core,Transport,235057,Public Transport,08-Jun-17,6157085865,ECML DURHAM PARKING,7523,Staff travelling,20.5,0,20.5
Regeneration and Local Services,Spatial Policy Planning Assets & Environment,31200,North Pennines Core,Supplies and Services,352001,Conference Expenses,08-Jun-17,6157085871,CENTENNIAL HOTEL,7011,Conferencesseminars fees etc,85,0,85
Regeneration and Local Services,Direct Services,21235,Catering - Wharton Park,Supplies and Services,324117,Provisions,08-Jun-17,6157086133,BATLEYS PERTH,5300,Catering costs - provisions,66.36,11.06,55.3
Regeneration and Local Services,Direct Services,21235,Catering - Wharton Park,Supplies and Services,324117,Provisions,08-Jun-17,000006157086133 - 1,BATLEYS PERTH,5300,Catering costs - provisions,19.11,,19.11
Resources,I.C.T. Services,65335,Implementation,Supplies and Services,304639,Equipment and Materials,09-Jun-17,6151857607,www.gedat.com,5045,Technicians-supplies,3.53,0,3.53
Regeneration and Local Services,Culture & Sport,54815,Gala Theatre Stage School,Supplies and Services,312011,Newspapers Books and Periodicals,09-Jun-17,6151857611,Amazon UK Marketplace,5942,Books-school library,17.61,0,17.61
Resources,I.C.T. Services,70704,ICT School Services - DLG,Supplies and Services,372009,Subscriptions,09-Jun-17,6151857765,CSS - COMODO GROUP IN,7399,Subscriptions,22.99,0,22.99
Children and Young Peoples Services,Head of Education,71801,Selby Cottage Childcare Centre,Supplies and Services,304259,Equipment and Materials,09-Jun-17,6157085115,WILKO RETAIL LIMIT,5722,Equipment-purchase and rental,41.95,0,41.95
Regeneration and Local Services,Economic Development and Housing,31500,Housing Solutions - Core Team,Supplies and Services,364320,Grants to Voluntary Organisations,09-Jun-17,6157085149,TRAVELODGE,3615,Accommodation assistance,129,0,129
Regeneration and Local Services,Direct Services,10367,C&G - South Grounds Maintenance,Supplies and Services,304259,Equipment and Materials,09-Jun-17,6157085217,SCREWFIX,5211,Equipment-purchase and rental,14.58,2.43,12.15
Regeneration and Local Services,Direct Services,21242,Catering - County Hall,Supplies and Services,324117,Provisions,09-Jun-17,6157085237,FREEMAN CATERING BUTCH,5422,Catering costs - provisions,143.28,0,143.28
Regeneration and Local Services,Direct Services,21242,Catering - County Hall,Supplies and Services,324117,Provisions,09-Jun-17,6157085243,FREEMAN CATERING BUTCH,5422,Catering costs - provisions,66.4,0,66.4
Regeneration and Local Services,Direct Services,21242,Catering - County Hall,Supplies and Services,324117,Provisions,09-Jun-17,6157085249,FREEMAN CATERING BUTCH,5422,Catering costs - provisions,58.76,0,58.76
Regeneration and Local Services,Direct Services,21242,Catering - County Hall,Supplies and Services,324117,Provisions,09-Jun-17,6157085253,JR HOLLAND FOODSERVICE,5422,Catering costs - provisions,96.61,0,96.61
Regeneration and Local Services,Direct Services,21242,Catering - County Hall,Supplies and Services,324117,Provisions,09-Jun-17,6157085259,JR HOLLAND FOODSERVICE,5422,Catering costs - provisions,13.16,0,13.16
Children and Young Peoples Services,Head of Education,71732,Dean Bank Childcare,Supplies and Services,324117,Provisions,09-Jun-17,6157085399,CO-OP GROUP 010518,5411,Catering costs - provisions,7.04,0,7.04
Regeneration and Local Services,Economic Development and Housing,30737,Durham Works Flexible Fund,Transport,235057,Public Transport,09-Jun-17,6157085407,ARRIVA NORTH EAST,4131,Staff travelling,85.5,0,85.5
Children and Young Peoples Services,Head of Looked After Provision Permanence and Care Leavers,85332,Middlestone Moor CU,Supplies and Services,324117,Provisions,09-Jun-17,6157085425,TESCO STORES 2371,5411,Catering costs - provisions,87.46,0,87.46
Resources,Legal & Democratic Services,67910,Democratic Representation,Supplies and Services,384960,Miscellaneous Expenses,09-Jun-17,6157085429,THE COUNTY RESTAURANT,5812,National and major functions,181.6,0,181.6
Children and Young Peoples Services,Head of Looked After Provision Permanence and Care Leavers,85958,Support Services,Supplies and Services,324117,Provisions,09-Jun-17,6157085487,TESCO STORES 6329,5411,Catering costs - provisions,79.61,0,79.61
Regeneration and Local Services,Spatial Policy Planning Assets & Environment,31222,North Pennines Allen Valleys Landscape Partnership,Supplies and Services,328041,Clothing Uniforms and Laundry,09-Jun-17,6157085519,PAYPAL STRADEFAREA,5331,Clothing uniforms and laundry,3.76,0,3.76
Regeneration and Local Services,Culture & Sport,11060,Hardwick Park Catering,Supplies and Services,324117,Provisions,09-Jun-17,6157085527,FREEMAN CATERING BUTCH,5422,Catering costs - provisions,73.89,0,73.89
Regeneration and Local Services,Culture & Sport,11060,Hardwick Park Catering,Supplies and Services,324117,Provisions,09-Jun-17,6157085537,FREEMAN CATERING BUTCH,5422,Catering costs - provisions,58.25,0,58.25
Regeneration and Local Services,Culture & Sport,11060,Hardwick Park Catering,Supplies and Services,324117,Provisions,09-Jun-17,6157085553,FREEMAN CATERING BUTCH,5422,Catering costs - provisions,53.86,0,53.86
Regeneration and Local Services,Direct Services,10525,Catering - Green Lane,Supplies and Services,324117,Provisions,09-Jun-17,6157085681,FREEMAN CATERING BUTCH,5422,Catering costs - provisions,28.32,0,28.32
Regeneration and Local Services,Direct Services,10525,Catering - Green Lane,Supplies and Services,324117,Provisions,09-Jun-17,6157085687,JR HOLLAND FOODSERVICE,5422,Catering costs - provisions,32.44,0,32.44
Children and Young Peoples Services,Head of Early Help Assessment and Safeguarding,71443,Stanley One Point Hub,Supplies and Services,308011,Furniture,09-Jun-17,6157085729,MAGUIRES,5713,Furniture repair and replacement,150,0,150
Regeneration and Local Services,Economic Development and Housing,30749,Employability - Youth Contract,Supplies and Services,384700,Miscellaneous Expenses,09-Jun-17,6157085773,GRO HM PASSPORT OFFICE,9399,Miscellaneous grants,9.25,0,9.25
Regeneration and Local Services,Economic Development and Housing,30737,Durham Works Flexible Fund,Transport,230031,Contract Hire,09-Jun-17,6157085777,WWW.SIMPLYGO.COM,4131,Pupils-transport to play fields etc,18.9,0,18.9
Regeneration and Local Services,Economic Development and Housing,30737,Durham Works Flexible Fund,Transport,230031,Contract Hire,09-Jun-17,6157085781,WWW.SIMPLYGO.COM,4131,Pupils-transport to play fields etc,5,0,5
Regeneration and Local Services,Economic Development and Housing,30749,Employability - Youth Contract,Supplies and Services,384700,Miscellaneous Expenses,09-Jun-17,6157085783,WWW.SIMPLYGO.COM,4131,Miscellaneous grants,89,0,89
Children and Young Peoples Services,Head of Looked After Provision Permanence and Care Leavers,85333,Coxhoe Satelite Home,Supplies and Services,324117,Provisions,09-Jun-17,6157085787,ASDA SUPERSTORE 4987,5411,Catering costs - provisions,86.28,0,86.28
Children and Young Peoples Services,Head of Looked After Provision Permanence and Care Leavers,85333,Coxhoe Satelite Home,Supplies and Services,324117,Provisions,09-Jun-17,6157085791,ASDA SUPERSTORE 4987,5411,Catering costs - provisions,27.25,0,27.25
Children and Young Peoples Services,Head of Education,71903,EYDCP-Sustainability EDS,Supplies and Services,324117,Provisions,09-Jun-17,6157085969,SAINSBURYS SACAT 0776,5411,Catering costs - provisions,18.64,0,18.64
Children and Young Peoples Services,Head of Education,71903,EYDCP-Sustainability EDS,Supplies and Services,328041,Clothing Uniforms and Laundry,09-Jun-17,6157085973,THE WORKS,5310,Clothing uniforms and laundry,18.05,0,18.05
Children and Young Peoples Services,Head of Education,71903,EYDCP-Sustainability EDS,Supplies and Services,304259,Equipment and Materials,09-Jun-17,6157085977,WILKO DURHAM 426,5722,Equipment-purchase and rental,10.6,0,10.6
Regeneration and Local Services,Direct Services,21324,Catering - Meadowfield,Supplies and Services,324117,Provisions,09-Jun-17,6157085981,FREEMAN CATERING BUTCH,5422,Catering costs - provisions,65.4,0,65.4
Regeneration and Local Services,Direct Services,21324,Catering - Meadowfield,Supplies and Services,324117,Provisions,09-Jun-17,6157085987,FREEMAN CATERING BUTCH,5422,Catering costs - provisions,50.88,0,50.88
Regeneration and Local Services,Direct Services,21324,Catering - Meadowfield,Supplies and Services,324117,Provisions,09-Jun-17,6157085991,JR HOLLAND FOODSERVICE,5422,Catering costs - provisions,26.79,0,26.79
Regeneration and Local Services,Direct Services,21324,Catering - Meadowfield,Supplies and Services,324117,Provisions,09-Jun-17,6157085995,JR HOLLAND FOODSERVICE,5422,Catering costs - provisions,9.87,0,9.87
Regeneration and Local Services,Direct Services,10301,C&G - North Grounds Maintenance,Supplies and Services,304403,Equipment and Materials,09-Jun-17,6157086007,FRED WILLIAMSON,5231,Other consumables,32.74,5.46,27.28
Regeneration and Local Services,Economic Development and Housing,30737,Durham Works Flexible Fund,Supplies and Services,324001,Provisions,09-Jun-17,6157086091,WINE CELLAR,5921,Bar supplies,92,0,92
Regeneration and Local Services,Economic Development and Housing,30737,Durham Works Flexible Fund,Supplies and Services,324117,Provisions,09-Jun-17,6157086095,NEWS ON THE STREET,5411,Catering costs - provisions,59.5,0,59.5
Regeneration and Local Services,Economic Development and Housing,30737,Durham Works Flexible Fund,Supplies and Services,304259,Equipment and Materials,09-Jun-17,6157086099,SPORTSDIRECT 368,5941,Equipment-purchase and rental,31.99,0,31.99
Resources,Legal & Democratic Services,67910,Democratic Representation,Supplies and Services,372009,Subscriptions,09-Jun-17,6157086111,TEESDALE MERCURY LTD,5942,Subscriptions,125.2,0,125.2
Resources,Legal & Democratic Services,67910,Democratic Representation,Supplies and Services,384999,Miscellaneous Expenses,09-Jun-17,6157086115,NATIONAL RAILCARD,4112,Other expenses,70,0,70
Regeneration and Local Services,Culture & Sport,10605,Woodhouse Close Leisure Complex,Supplies and Services,324117,Provisions,09-Jun-17,6157086155,FREEMAN CATERING BUTCH,5422,Catering costs - provisions,69.04,0,69.04
Regeneration and Local Services,Economic Development and Housing,30737,Durham Works Flexible Fund,Transport,235057,Public Transport,09-Jun-17,6157086203,WWW.SIMPLYGO.COM,4131,Staff travelling,7.8,0,7.8
Regeneration and Local Services,Direct Services,21242,Catering - County Hall,Supplies and Services,324117,Provisions,09-Jun-17,6164104895,BATLEYS PERTH,5300,Catering costs - provisions,423.18,70.53,352.65
Regeneration and Local Services,Direct Services,21242,Catering - County Hall,Supplies and Services,324117,Provisions,09-Jun-17,000006164104895 - 1,BATLEYS PERTH,5300,Catering costs - provisions,69.29,,69.29
Regeneration and Local Services,Culture & Sport,11060,Hardwick Park Catering,Supplies and Services,324117,Provisions,09-Jun-17,6164105141,BATLEYS PERTH,5300,Catering costs - provisions,138.42,23.07,115.35
Regeneration and Local Services,Culture & Sport,11060,Hardwick Park Catering,Supplies and Services,324117,Provisions,09-Jun-17,000006164105141 - 1,BATLEYS PERTH,5300,Catering costs - provisions,197.05,,197.05
Regeneration and Local Services,Direct Services,10525,Catering - Green Lane,Supplies and Services,324117,Provisions,09-Jun-17,6164105275,BATLEYS PERTH,5300,Catering costs - provisions,109.2,18.2,91
Regeneration and Local Services,Direct Services,10525,Catering - Green Lane,Supplies and Services,324117,Provisions,09-Jun-17,000006164105275 - 1,BATLEYS PERTH,5300,Catering costs - provisions,47.27,,47.27
Regeneration and Local Services,Direct Services,10525,Catering - Green Lane,Supplies and Services,324117,Provisions,09-Jun-17,6164105299,BATLEYS PERTH,5300,Catering costs - provisions,9.65,0,9.65
Regeneration and Local Services,Economic Development and Housing,31522,GRT Site East Howle Ferryhill,Supplies and Services,384999,Miscellaneous Expenses,09-Jun-17,6164105325,WWW.VOUCHEREXPRESS.CO.,5947,Other expenses,70,0,70
Regeneration and Local Services,Culture & Sport,10605,Woodhouse Close Leisure Complex,Supplies and Services,324117,Provisions,09-Jun-17,6164105649,BATLEYS PERTH,5300,Catering costs - provisions,45.6,7.6,38
Regeneration and Local Services,Culture & Sport,10605,Woodhouse Close Leisure Complex,Supplies and Services,324117,Provisions,09-Jun-17,000006164105649 - 1,BATLEYS PERTH,5300,Catering costs - provisions,96.03,,96.03
Resources,Legal & Democratic Services,67910,Democratic Representation,Supplies and Services,384960,Miscellaneous Expenses,10-Jun-17,6157085315,CLOSEGATE HOTEL DEVELO,7011,National and major functions,376.7,62.78,313.92
Resources,Legal & Democratic Services,67910,Democratic Representation,Supplies and Services,384960,Miscellaneous Expenses,10-Jun-17,6157085323,THE KINGSLODGE INN,7011,National and major functions,"2,644.00",440.67,2203.33
Resources,Legal & Democratic Services,67910,Democratic Representation,Supplies and Services,384960,Miscellaneous Expenses,10-Jun-17,6157085329,THE KINGSLODGE INN,7011,National and major functions,132.75,22.13,110.62
Resources,Legal & Democratic Services,67910,Democratic Representation,Supplies and Services,384960,Miscellaneous Expenses,10-Jun-17,6157085431,DURHAM CATHEDRAL,8398,National and major functions,75,12.5,62.5
Resources,Legal & Democratic Services,67910,Democratic Representation,Supplies and Services,384960,Miscellaneous Expenses,10-Jun-17,6157085435,CHURCH MOUSE,5812,National and major functions,138.2,23.03,115.17
Children and Young Peoples Services,Head of Looked After Provision Permanence and Care Leavers,85958,Support Services,Supplies and Services,324117,Provisions,10-Jun-17,6157085491,TESCO STORES 6329,5411,Catering costs - provisions,74.1,0,74.1
Regeneration and Local Services,Spatial Policy Planning Assets & Environment,31200,North Pennines Core,Supplies and Services,352001,Conference Expenses,10-Jun-17,6157085601,AIRBNB HM5QJ3CJDD,7011,Conferencesseminars fees etc,292,48.67,243.33
Children and Young Peoples Services,Head of Early Help Assessment and Safeguarding,71443,Stanley One Point Hub,Supplies and Services,312011,Newspapers Books and Periodicals,10-Jun-17,6157085735,Amazon EU,5969,Books-school library,199.99,0,199.99
Resources,Resources Management,69000,Resources Management,Supplies and Services,324117,Provisions,10-Jun-17,6157085801,CO-OP GROUP 010830,5411,Catering costs - provisions,36.53,0,36.53
Transformation and Partnerships,Comms & Information Management,60270,Communications and Marketing,Supplies and Services,332002,Printing Stationery and Gen Off Exps,10-Jun-17,6157086117,Amazon UK Marketplace,5942,Estab-purchase from donations,380.74,0,380.74
Regeneration and Local Services,Technical Services,18700,Highways Services - Management and Administration,Supplies and Services,344033,Telephones,11-Jun-17,6157085145,Amazon EU,5969,Telephones general-all costs,39.98,6.66,33.32
Regeneration and Local Services,Culture & Sport,54233,Bp Auckland Town Hall Library,Supplies and Services,304403,Equipment and Materials,11-Jun-17,6157085291,AMAZON UK RETAIL AMAZO,5999,Other consumables,29.98,0,29.98
Resources,Legal & Democratic Services,67910,Democratic Representation,Supplies and Services,384960,Miscellaneous Expenses,11-Jun-17,6157085331,NEWCASTLE PARK AND FLY,7523,National and major functions,5.5,0.92,4.58
Regeneration and Local Services,Economic Development and Housing,31576,B& B - Temp Accom,Supplies and Services,364320,Grants to Voluntary Organisations,11-Jun-17,6157085765,TRAVELODGE,3615,Accommodation assistance,39,6.5,32.5
Regeneration and Local Services,Culture & Sport,11191,Wellbeing4Life,Supplies and Services,324117,Provisions,11-Jun-17,6157085813,TESCO STORES 2916,5411,Catering costs - provisions,7,0,7
Children and Young Peoples Services,Head of Early Help Assessment and Safeguarding,88061,Bishop Auckland Locality,Supplies and Services,304403,Equipment and Materials,11-Jun-17,6164104775,AMAZON UK RETAIL AMAZO,5999,Other consumables,31,0,31
Children and Young Peoples Services,Head of Education,71801,Selby Cottage Childcare Centre,Supplies and Services,324117,Provisions,12-Jun-17,6164104771,TESCO STORES 2278,5411,Catering costs - provisions,33.98,0,33.98
Children and Young Peoples Services,Head of Looked After Provision Permanence and Care Leavers,85342,9 Cedar Drive Aycliffe,Supplies and Services,324117,Provisions,12-Jun-17,6164104819,TESCO STORES 2916,5411,Catering costs - provisions,73.78,0,73.78
Regeneration and Local Services,Direct Services,10367,C&G - South Grounds Maintenance,Supplies and Services,304259,Equipment and Materials,12-Jun-17,6164104827,MKM PETERLEE,5211,Equipment-purchase and rental,150.96,25.16,125.8
Regeneration and Local Services,Direct Services,21242,Catering - County Hall,Supplies and Services,324117,Provisions,12-Jun-17,6164104859,WWW.ADELIEFOODS.CO.UK,5499,Catering costs - provisions,237.84,0,237.84
Regeneration and Local Services,Direct Services,21242,Catering - County Hall,Supplies and Services,324117,Provisions,12-Jun-17,6164104867,WWW.ADELIEFOODS.CO.UK,5499,Catering costs - provisions,123.91,0,123.91
Regeneration and Local Services,Direct Services,21242,Catering - County Hall,Supplies and Services,324117,Provisions,12-Jun-17,6164104871,WWW.ADELIEFOODS.CO.UK,5499,Catering costs - provisions,107.96,0,107.96
Regeneration and Local Services,Direct Services,21242,Catering - County Hall,Supplies and Services,324117,Provisions,12-Jun-17,6164104873,WWW.ADELIEFOODS.CO.UK,5499,Catering costs - provisions,77.41,0,77.41
Regeneration and Local Services,Direct Services,21242,Catering - County Hall,Supplies and Services,324117,Provisions,12-Jun-17,6164104875,WWW.ADELIEFOODS.CO.UK,5499,Catering costs - provisions,49.25,0,49.25
Regeneration and Local Services,Direct Services,21242,Catering - County Hall,Supplies and Services,324117,Provisions,12-Jun-17,6164104881,WWW.ADELIEFOODS.CO.UK,5499,Catering costs - provisions,17.7,0,17.7
Regeneration and Local Services,Direct Services,21242,Catering - County Hall,Supplies and Services,324117,Provisions,12-Jun-17,6164104883,JR HOLLAND FOODSERVICE,5422,Catering costs - provisions,49.8,0,49.8
Regeneration and Local Services,Direct Services,21242,Catering - County Hall,Supplies and Services,324117,Provisions,12-Jun-17,6164104889,JR HOLLAND FOODSERVICE,5422,Catering costs - provisions,13.52,0,13.52
Regeneration and Local Services,Culture & Sport,54812,Gala Theatre - Catering etc,Supplies and Services,324117,Provisions,12-Jun-17,6164104933,JR HOLLAND FOODSERVICE,5422,Catering costs - provisions,39.82,0,39.82
Regeneration and Local Services,Economic Development and Housing,31576,B& B - Temp Accom,Supplies and Services,352001,Conference Expenses,12-Jun-17,6164104941,TRAVELODGE,3615,Conferencesseminars fees etc,41,0,41
Children and Young Peoples Services,Head of Looked After Provision Permanence and Care Leavers,85361,LAC & Permanence Team 1,Supplies and Services,304403,Equipment and Materials,12-Jun-17,6164104971,GRO HM PASSPORT OFFICE,9399,Other consumables,18.5,0,18.5
Children and Young Peoples Services,Head of Looked After Provision Permanence and Care Leavers,85333,Coxhoe Satelite Home,Supplies and Services,304403,Equipment and Materials,12-Jun-17,6164104983,Norton NP248303228,5734,Other consumables,39.99,0,39.99
Regeneration and Local Services,Culture & Sport,10664,Freemans Quay Leisure Centre,Supplies and Services,304403,Equipment and Materials,12-Jun-17,6164105019,ELTONS FOOTWEAR,7251,Other consumables,30,5,25
Regeneration and Local Services,Culture & Sport,10664,Freemans Quay Leisure Centre,Supplies and Services,328041,Clothing Uniforms and Laundry,12-Jun-17,6164105023,ARGOS LTD,5310,Clothing uniforms and laundry,234.99,39.17,195.82
Children and Young Peoples Services,Head of Early Help Assessment and Safeguarding,88063,Bishop Auckland 0 - 5,Supplies and Services,324117,Provisions,12-Jun-17,6164105029,ASDA HOME SHOPPING,5411,Catering costs - provisions,4.02,0.67,3.35
Children and Young Peoples Services,Head of Early Help Assessment and Safeguarding,88063,Bishop Auckland 0 - 5,Supplies and Services,324117,Provisions,12-Jun-17,000006164105029 - 1,ASDA HOME SHOPPING,5411,Catering costs - provisions,37.09,,37.09
Regeneration and Local Services,Economic Development and Housing,30749,Employability - Youth Contract,Supplies and Services,328041,Clothing Uniforms and Laundry,12-Jun-17,6164105035,MATALAN.CO.UK,5691,Clothing uniforms and laundry,13.95,0,13.95
Children and Young Peoples Services,Head of Education,71732,Dean Bank Childcare,Supplies and Services,312011,Newspapers Books and Periodicals,12-Jun-17,6164105047,Amazon UK Marketplace,5942,Books-school library,11.4,0,11.4
Children and Young Peoples Services,Head of Education,71732,Dean Bank Childcare,Supplies and Services,312011,Newspapers Books and Periodicals,12-Jun-17,6164105053,Amazon UK Marketplace,5942,Books-school library,11.14,0,11.14
Children and Young Peoples Services,Head of Education,71732,Dean Bank Childcare,Supplies and Services,312011,Newspapers Books and Periodicals,12-Jun-17,6164105059,Amazon UK Marketplace,5942,Books-school library,41.03,0,41.03
Children and Young Peoples Services,Head of Education,71732,Dean Bank Childcare,Supplies and Services,324117,Provisions,12-Jun-17,6164105063,ASDA HOME SHOPPING,5411,Catering costs - provisions,57.23,0,57.23
Children and Young Peoples Services,Head of Education,71732,Dean Bank Childcare,Supplies and Services,324117,Provisions,12-Jun-17,6164105067,ASDA HOME SHOPPING,5411,Catering costs - provisions,-0.2,0,-0.2
Regeneration and Local Services,Economic Development and Housing,30737,Durham Works Flexible Fund,Transport,235057,Public Transport,12-Jun-17,6164105071,ARRIVA NORTH EAST,4131,Staff travelling,14.5,0,14.5
Regeneration and Local Services,Economic Development and Housing,30737,Durham Works Flexible Fund,Supplies and Services,348037,Subsistence,12-Jun-17,6164105091,WWW.SIMPLYGO.COM,4131,Subsistence,5,0,5
Children and Young Peoples Services,Head of Early Help Assessment and Safeguarding,71445,Chester le Street One Point Hub,Supplies and Services,348037,Subsistence,12-Jun-17,6164105107,WWW.DOMINOS.CO.UK,5812,Subsistence,31.45,0,31.45
Regeneration and Local Services,Direct Services,10301,C&G - North Grounds Maintenance,Supplies and Services,304403,Equipment and Materials,12-Jun-17,6164105127,BESCOL,5231,Other consumables,234.85,0,234.85
Regeneration and Local Services,Direct Services,10301,C&G - North Grounds Maintenance,Supplies and Services,304403,Equipment and Materials,12-Jun-17,6164105133,BESCOL,5231,Other consumables,77.96,0,77.96
Regeneration and Local Services,Direct Services,10301,C&G - North Grounds Maintenance,Supplies and Services,312011,Newspapers Books and Periodicals,12-Jun-17,6164105135,GRALANDS WOODWORK SUPP,5251,Books-school library,10.98,0,10.98
Regeneration and Local Services,Culture & Sport,54815,Gala Theatre Stage School,Supplies and Services,324117,Provisions,12-Jun-17,6164105183,SAINSBURYS SACAT 0776,5411,Catering costs - provisions,35.5,0,35.5
Regeneration and Local Services,Direct Services,21234,Catering - Locomotion,Supplies and Services,324117,Provisions,12-Jun-17,6164105199,WWW.ADELIEFOODS.CO.UK,5499,Catering costs - provisions,95.14,0,95.14
Regeneration and Local Services,Direct Services,21234,Catering - Locomotion,Supplies and Services,324117,Provisions,12-Jun-17,6164105205,WWW.ADELIEFOODS.CO.UK,5499,Catering costs - provisions,57.26,0,57.26
Regeneration and Local Services,Direct Services,21234,Catering - Locomotion,Supplies and Services,324117,Provisions,12-Jun-17,6164105209,WWW.ADELIEFOODS.CO.UK,5499,Catering costs - provisions,57.26,0,57.26
Regeneration and Local Services,Direct Services,21234,Catering - Locomotion,Supplies and Services,324117,Provisions,12-Jun-17,6164105213,WWW.ADELIEFOODS.CO.UK,5499,Catering costs - provisions,57.26,0,57.26
Regeneration and Local Services,Direct Services,21234,Catering - Locomotion,Supplies and Services,324117,Provisions,12-Jun-17,6164105219,WWW.ADELIEFOODS.CO.UK,5499,Catering costs - provisions,35.76,0,35.76
Regeneration and Local Services,Direct Services,10525,Catering - Green Lane,Supplies and Services,324117,Provisions,12-Jun-17,6164105265,WWW.ADELIEFOODS.CO.UK,5499,Catering costs - provisions,57.33,0,57.33
Regeneration and Local Services,Direct Services,10525,Catering - Green Lane,Supplies and Services,324117,Provisions,12-Jun-17,6164105271,WWW.ADELIEFOODS.CO.UK,5499,Catering costs - provisions,38.16,0,38.16
Regeneration and Local Services,Direct Services,10900,Fleet - Meadowfield Fleet,Supplies and Services,372009,Subscriptions,12-Jun-17,6164105307,AUTODATA LTD,5533,Subscriptions,"1,050.00",175,875
Regeneration and Local Services,Direct Services,10900,Fleet - Meadowfield Fleet,Transport,215995,Running Costs of Vehicles,12-Jun-17,6164105387,DVSA MOT COMP 2,9399,Vehicle running expenses,410,0,410
Regeneration and Local Services,Culture & Sport,54235,Bp Auckland Town Hall Cafe,Supplies and Services,324117,Provisions,12-Jun-17,6164105487,JR HOLLAND FOODSERVICE,5422,Catering costs - provisions,18.86,0,18.86
Regeneration and Local Services,Direct Services,21324,Catering - Meadowfield,Supplies and Services,324117,Provisions,12-Jun-17,6164105493,WWW.ADELIEFOODS.CO.UK,5499,Catering costs - provisions,46.88,0,46.88
Regeneration and Local Services,Direct Services,21324,Catering - Meadowfield,Supplies and Services,324117,Provisions,12-Jun-17,6164105497,WWW.ADELIEFOODS.CO.UK,5499,Catering costs - provisions,37.51,0,37.51
Regeneration and Local Services,Direct Services,21324,Catering - Meadowfield,Supplies and Services,324117,Provisions,12-Jun-17,6164105499,WWW.ADELIEFOODS.CO.UK,5499,Catering costs - provisions,33.91,0,33.91
Regeneration and Local Services,Direct Services,21324,Catering - Meadowfield,Supplies and Services,324117,Provisions,12-Jun-17,6164105501,WWW.ADELIEFOODS.CO.UK,5499,Catering costs - provisions,-37.51,0,-37.51
Regeneration and Local Services,Culture & Sport,11086,Positive Futures,Supplies and Services,324117,Provisions,12-Jun-17,6164105577,ASDA STORES LTD,5411,Catering costs - provisions,20.23,0,20.23
Regeneration and Local Services,Economic Development and Housing,30737,Durham Works Flexible Fund,Supplies and Services,324117,Provisions,12-Jun-17,6164105617,ONE STOP 2969,5411,Catering costs - provisions,59,0,59
Regeneration and Local Services,Culture & Sport,10605,Woodhouse Close Leisure Complex,Supplies and Services,324117,Provisions,12-Jun-17,6164105645,JR HOLLAND FOODSERVICE,5422,Catering costs - provisions,28.67,0,28.67
Regeneration and Local Services,Economic Development and Housing,30737,Durham Works Flexible Fund,Transport,235057,Public Transport,12-Jun-17,6164105671,WWW.SIMPLYGO.COM,4131,Staff travelling,15.6,0,15.6
Regeneration and Local Services,Economic Development and Housing,30737,Durham Works Flexible Fund,Transport,235057,Public Transport,12-Jun-17,6164105677,WWW.SIMPLYGO.COM,4131,Staff travelling,64,0,64
Regeneration and Local Services,Culture & Sport,54812,Gala Theatre - Catering etc,Supplies and Services,324117,Provisions,12-Jun-17,6167776063,BATLEYS PERTH,5300,Catering costs - provisions,55.62,9.27,46.35
Regeneration and Local Services,Culture & Sport,54812,Gala Theatre - Catering etc,Supplies and Services,324117,Provisions,12-Jun-17,000006167776063 - 1,BATLEYS PERTH,5300,Catering costs - provisions,104.7,,104.7
Regeneration and Local Services,Economic Development and Housing,31500,Housing Solutions - Core Team,Supplies and Services,364320,Grants to Voluntary Organisations,13-Jun-17,6167775943,TRAVELODGE,3615,Accommodation assistance,45,0,45
Children and Young Peoples Services,Head of Early Help Assessment and Safeguarding,88093,Newton Aycliffe 0 - 5,Supplies and Services,324117,Provisions,13-Jun-17,6167776043,ASDA HOME SHOPPING,5411,Catering costs - provisions,32.54,0,32.54
Regeneration and Local Services,Economic Development and Housing,30737,Durham Works Flexible Fund,Supplies and Services,344033,Telephones,13-Jun-17,6167776049,ARGOS LTD,5310,Telephones general-all costs,24.99,0,24.99
Children and Young Peoples Services,Head of Education,79599,Psychological-HQ,Supplies and Services,312011,Newspapers Books and Periodicals,13-Jun-17,6167776087,Amazon UK Marketplace,5942,Books-school library,53.75,0,53.75
Regeneration and Local Services,Culture & Sport,11219,Office Services,Supplies and Services,304403,Equipment and Materials,13-Jun-17,6167776133,AMAZON.CO.UK,5999,Other consumables,30.44,0,30.44
Children and Young Peoples Services,Head of Early Help Assessment and Safeguarding,88066,Bishop Auckland Teenage Parent Programme,Supplies and Services,324117,Provisions,13-Jun-17,6167776153,ASDA HOME SHOPPING,5411,Catering costs - provisions,21,3.5,17.5
Children and Young Peoples Services,Head of Early Help Assessment and Safeguarding,88063,Bishop Auckland 0 - 5,Supplies and Services,324117,Provisions,13-Jun-17,000006167776153 - 1,ASDA HOME SHOPPING,5411,Catering costs - provisions,36.73,,36.73
Children and Young Peoples Services,Head of Early Help Assessment and Safeguarding,88066,Bishop Auckland Teenage Parent Programme,Supplies and Services,324117,Provisions,13-Jun-17,6167776161,ASDA HOME SHOPPING,5411,Catering costs - provisions,-0.05,0,-0.05
Children and Young Peoples Services,Head of Education,71903,EYDCP-Sustainability EDS,Supplies and Services,384999,Miscellaneous Expenses,13-Jun-17,6167776241,JESSOPS,5946,Other expenses,11.98,2,9.98
Children and Young Peoples Services,Head of Looked After Provision Permanence and Care Leavers,85958,Support Services,Supplies and Services,312011,Newspapers Books and Periodicals,13-Jun-17,6167776265,Amazon UK Marketplace,5942,Books-school library,3.95,0,3.95
Children and Young Peoples Services,Head of Looked After Provision Permanence and Care Leavers,85958,Support Services,Supplies and Services,304259,Equipment and Materials,13-Jun-17,6167776269,M and M Direct Ltd,5941,Equipment-purchase and rental,54.96,0,54.96
Children and Young Peoples Services,Head of Looked After Provision Permanence and Care Leavers,85958,Support Services,Supplies and Services,312011,Newspapers Books and Periodicals,13-Jun-17,6167776273,Amazon UK Marketplace,5942,Books-school library,12.74,0,12.74
Children and Young Peoples Services,Head of Looked After Provision Permanence and Care Leavers,85958,Support Services,Supplies and Services,328041,Clothing Uniforms and Laundry,13-Jun-17,6167776277,WWW.FOOTLOCKER.EU,5661,Clothing uniforms and laundry,24.99,4.17,20.82
Children and Young Peoples Services,Head of Looked After Provision Permanence and Care Leavers,85958,Support Services,Supplies and Services,304259,Equipment and Materials,13-Jun-17,6167776279,WWW.FOOTASYLUM.COM,5941,Equipment-purchase and rental,189.98,0,189.98
Children and Young Peoples Services,Head of Looked After Provision Permanence and Care Leavers,85958,Support Services,Supplies and Services,342033,Computers and Communications,13-Jun-17,6167776283,VERY.CO.UK,5964,Computer hardware,51.99,0,51.99
Regeneration and Local Services,Direct Services,10301,C&G - North Grounds Maintenance,Supplies and Services,304403,Equipment and Materials,13-Jun-17,6167776311,FRED WILLIAMSON,5231,Other consumables,60.18,10.03,50.15
Regeneration and Local Services,Direct Services,10301,C&G - North Grounds Maintenance,Supplies and Services,304403,Equipment and Materials,13-Jun-17,000006167776311 - 1,FRED WILLIAMSON,5231,Other consumables,1.15,,1.15
Regeneration and Local Services,Direct Services,10301,C&G - North Grounds Maintenance,Third Party Payments,430100,Rendered by Private Contractors,13-Jun-17,6167776315,JOHN WARREN (ANIMAL BY,7399,Payments to sub-contractors,9.6,0,9.6
Regeneration and Local Services,Culture & Sport,54815,Gala Theatre Stage School,Supplies and Services,312011,Newspapers Books and Periodicals,13-Jun-17,6167776345,Amazon UK Marketplace,5942,Books-school library,12.96,0,12.96
Children and Young Peoples Services,Head of Early Help Assessment and Safeguarding,85556,Child Protection Team Stanley,Supplies and Services,304259,Equipment and Materials,13-Jun-17,6167776383,DURHAM COUNTY COUNCIL,9399,Equipment-purchase and rental,25,0,25
Children and Young Peoples Services,Head of Looked After Provision Permanence and Care Leavers,85333,Coxhoe Satelite Home,Supplies and Services,324117,Provisions,13-Jun-17,6167776391,ASDA SUPERSTORE 4987,5411,Catering costs - provisions,85.74,0,85.74
Children and Young Peoples Services,Head of Early Help Assessment and Safeguarding,74000,TTF-Attachment and Results,Supplies and Services,304259,Equipment and Materials,13-Jun-17,6167776425,WILKO.COM,5722,Equipment-purchase and rental,150,0,150
Children and Young Peoples Services,Head of Early Help Assessment and Safeguarding,88001,Peterlee Locality,Supplies and Services,328041,Clothing Uniforms and Laundry,13-Jun-17,6167776525,ARGOS RETAIL GROUP,5310,Clothing uniforms and laundry,52.48,0,52.48
Resources,Corporate Finance,65109,Pensions,Transport,235057,Public Transport,13-Jun-17,6167776667,VIRGINTRAINSEC SERVCS,4112,Staff travelling,206.5,0,206.5
Transformation and Partnerships,Partnerships & Community Engagement Div.,60472,Syrian Vulnerable Persons Scheme,Supplies and Services,308011,Furniture,13-Jun-17,6167776721,ASDA STORES LTD 4313,5411,Furniture repair and replacement,5,0.83,4.17
Regeneration and Local Services,Spatial Policy Planning Assets & Environment,31200,North Pennines Core,Supplies and Services,304403,Equipment and Materials,13-Jun-17,6167776739,W E & J ROWLE,5947,Other consumables,5,0,5
Regeneration and Local Services,Spatial Policy Planning Assets & Environment,31200,North Pennines Core,Supplies and Services,340001,Postages,13-Jun-17,6167776743,THE POST OFFICE,9402,Postages,24.96,0,24.96
Regeneration and Local Services,Spatial Policy Planning Assets & Environment,31200,North Pennines Core,Supplies and Services,324117,Provisions,13-Jun-17,6167776745,STANHOPE PAPER SHOP,5399,Catering costs - provisions,3.74,0,3.74
Regeneration and Local Services,Spatial Policy Planning Assets & Environment,31200,North Pennines Core,Supplies and Services,324117,Provisions,13-Jun-17,6167776747,SCOTMID CO-OP STANHOPE,5411,Catering costs - provisions,4.68,0,4.68
Regeneration and Local Services,Direct Services,21242,Catering - County Hall,Supplies and Services,324117,Provisions,13-Jun-17,6172071033,BATLEYS PERTH,5300,Catering costs - provisions,115.02,19.17,95.85
Regeneration and Local Services,Direct Services,21242,Catering - County Hall,Supplies and Services,324117,Provisions,13-Jun-17,000006172071033 - 1,BATLEYS PERTH,5300,Catering costs - provisions,128.45,,128.45
Regeneration and Local Services,Economic Development and Housing,30749,Employability - Youth Contract,Supplies and Services,324117,Provisions,13-Jun-17,6172071089,ASDA HOME SHOPPING,5411,Catering costs - provisions,49.89,0,49.89
Regeneration and Local Services,Direct Services,21234,Catering - Locomotion,Supplies and Services,324117,Provisions,13-Jun-17,6172071215,BATLEYS PERTH,5300,Catering costs - provisions,109.62,18.27,91.35
Regeneration and Local Services,Direct Services,21234,Catering - Locomotion,Supplies and Services,324117,Provisions,13-Jun-17,000006172071215 - 1,BATLEYS PERTH,5300,Catering costs - provisions,22.74,,22.74
Adult and Health Services,Head of Adults,53815,The Orchards Extra Care,Supplies and Services,344033,Telephones,13-Jun-17,6172071247,WWW.ARGOS.CO.UK,5310,Telephones general-all costs,23.7,3.95,19.75
Adult and Health Services,Head of Adults,53815,The Orchards Extra Care,Supplies and Services,344033,Telephones,13-Jun-17,000006172071247 - 1,WWW.ARGOS.CO.UK,5310,Telephones general-all costs,50.24,,50.24
Regeneration and Local Services,Culture & Sport,54235,Bp Auckland Town Hall Cafe,Supplies and Services,324117,Provisions,13-Jun-17,6172071389,BATLEYS PERTH,5300,Catering costs - provisions,444.78,74.13,370.65
Regeneration and Local Services,Direct Services,21324,Catering - Meadowfield,Supplies and Services,324117,Provisions,13-Jun-17,6172071427,BATLEYS PERTH,5300,Catering costs - provisions,127.98,21.33,106.65
Regeneration and Local Services,Direct Services,21324,Catering - Meadowfield,Supplies and Services,324117,Provisions,13-Jun-17,000006172071427 - 1,BATLEYS PERTH,5300,Catering costs - provisions,77.74,,77.74
Children and Young Peoples Services,Head of Looked After Provision Permanence and Care Leavers,85331,New Lea Childrens Home,Supplies and Services,328041,Clothing Uniforms and Laundry,13-Jun-17,6172071483,WWW.ARGOS.CO.UK,5310,Clothing uniforms and laundry,23.91,0,23.91
Children and Young Peoples Services,Head of Education,71801,Selby Cottage Childcare Centre,Supplies and Services,328041,Clothing Uniforms and Laundry,14-Jun-17,6172070899,ARGOS LTD,5310,Clothing uniforms and laundry,43.94,0,43.94
Children and Young Peoples Services,Head of Education,71801,Selby Cottage Childcare Centre,Supplies and Services,328041,Clothing Uniforms and Laundry,14-Jun-17,6172070901,POUNDWORLD RETAIL,5310,Clothing uniforms and laundry,15.1,0,15.1
Children and Young Peoples Services,Head of Education,71801,Selby Cottage Childcare Centre,Supplies and Services,328041,Clothing Uniforms and Laundry,14-Jun-17,6172070903,POUNDWORLD RETAIL,5310,Clothing uniforms and laundry,15.1,0,15.1
Children and Young Peoples Services,Head of Education,71801,Selby Cottage Childcare Centre,Supplies and Services,328041,Clothing Uniforms and Laundry,14-Jun-17,6172070905,B & M RETAIL,5310,Clothing uniforms and laundry,25.94,0,25.94
Children and Young Peoples Services,Head of Education,71801,Selby Cottage Childcare Centre,Supplies and Services,328041,Clothing Uniforms and Laundry,14-Jun-17,6172070909,B & M RETAIL,5310,Clothing uniforms and laundry,113.25,0,113.25
Children and Young Peoples Services,Head of Education,71801,Selby Cottage Childcare Centre,Supplies and Services,328041,Clothing Uniforms and Laundry,14-Jun-17,6172070911,B & M RETAIL,5310,Clothing uniforms and laundry,61.86,0,61.86
Children and Young Peoples Services,Head of Education,71801,Selby Cottage Childcare Centre,Supplies and Services,324117,Provisions,14-Jun-17,6172070917,ASDA HOME SHOPPING,5411,Catering costs - provisions,5,0,5
Children and Young Peoples Services,Head of Education,71801,Selby Cottage Childcare Centre,Supplies and Services,324117,Provisions,14-Jun-17,6172070921,TESCO STORES 2278,5411,Catering costs - provisions,7,1.17,5.83
Children and Young Peoples Services,Head of Education,71801,Selby Cottage Childcare Centre,Supplies and Services,324117,Provisions,14-Jun-17,6172070925,TESCO STORES 2278,5411,Catering costs - provisions,3,0,3
Adult and Health Services,EnvironmentHealth & Consumer Protection,10934,Works in Default Holding Code,Income,720130,Fees and Charges,14-Jun-17,6172070931,WWW.MONEYCLAIM.GOV,9399,Fees-legal,60,0,60
Children and Young Peoples Services,Head of Early Help Assessment and Safeguarding,71492,One Point - Central,Supplies and Services,304335,Equipment and Materials,14-Jun-17,6172070937,Amazon UK Marketplace,5942,ICT supplies etc,74.99,0,74.99
Resources,Legal & Democratic Services,67910,Democratic Representation,Supplies and Services,344033,Telephones,14-Jun-17,6172070939,Amazon UK Marketplace,5942,Telephones general-all costs,6.92,0,6.92
Regeneration and Local Services,Economic Development and Housing,31576,B& B - Temp Accom,Supplies and Services,364320,Grants to Voluntary Organisations,14-Jun-17,6172070945,TRAVELODGE,3615,Accommodation assistance,48,8,40
Children and Young Peoples Services,Head of Education,78411,16-19 Education & Training,Supplies and Services,340001,Postages,14-Jun-17,6172070957,ROYAL MAIL ONLINE SHOP,9402,Postages,340,0,340
Children and Young Peoples Services,Head of Education,78411,16-19 Education & Training,Supplies and Services,340001,Postages,14-Jun-17,6172070961,ROYAL MAIL ONLINE SHOP,9402,Postages,326,0,326
Children and Young Peoples Services,Head of Looked After Provision Permanence and Care Leavers,85342,9 Cedar Drive Aycliffe,Supplies and Services,328041,Clothing Uniforms and Laundry,14-Jun-17,6172070979,MATALAN,5691,Clothing uniforms and laundry,60.1,0,60.1
Children and Young Peoples Services,Head of Looked After Provision Permanence and Care Leavers,85342,9 Cedar Drive Aycliffe,Supplies and Services,348037,Subsistence,14-Jun-17,6172070985,COSTA COFFEE,5814,Subsistence,5.85,0,5.85
Regeneration and Local Services,Direct Services,21242,Catering - County Hall,Supplies and Services,324117,Provisions,14-Jun-17,6172071017,JR HOLLAND FOODSERVICE,5422,Catering costs - provisions,106.58,0,106.58
Regeneration and Local Services,Direct Services,21242,Catering - County Hall,Supplies and Services,324117,Provisions,14-Jun-17,6172071019,JR HOLLAND FOODSERVICE,5422,Catering costs - provisions,97.87,0,97.87
Regeneration and Local Services,Direct Services,21242,Catering - County Hall,Supplies and Services,324117,Provisions,14-Jun-17,6172071023,JR HOLLAND FOODSERVICE,5422,Catering costs - provisions,31.35,0,31.35
Regeneration and Local Services,Direct Services,21242,Catering - County Hall,Supplies and Services,324117,Provisions,14-Jun-17,6172071027,JR HOLLAND FOODSERVICE,5422,Catering costs - provisions,27.67,0,27.67
Regeneration and Local Services,Direct Services,21242,Catering - County Hall,Supplies and Services,324117,Provisions,14-Jun-17,6172071029,JR HOLLAND FOODSERVICE,5422,Catering costs - provisions,6.58,0,6.58
Regeneration and Local Services,Direct Services,10367,C&G - South Grounds Maintenance,Supplies and Services,304259,Equipment and Materials,14-Jun-17,6172071039,SCREWFIX DIRECT LT,5211,Equipment-purchase and rental,13.98,2.33,11.65
Children and Young Peoples Services,Head of Looked After Provision Permanence and Care Leavers,85351,Framwellgate Moor CU,Supplies and Services,312011,Newspapers Books and Periodicals,14-Jun-17,6172071059,Amazon UK Marketplace,5942,Books-school library,15.39,0,15.39
Children and Young Peoples Services,Head of Looked After Provision Permanence and Care Leavers,85351,Framwellgate Moor CU,Supplies and Services,304403,Equipment and Materials,14-Jun-17,6172071061,AMAZON.CO.UK,5999,Other consumables,19.99,0,19.99
Regeneration and Local Services,Culture & Sport,11219,Office Services,Supplies and Services,312011,Newspapers Books and Periodicals,14-Jun-17,6172071065,Amazon UK Marketplace,5942,Books-school library,37.47,0,37.47
Children and Young Peoples Services,Head of Early Help Assessment and Safeguarding,88063,Bishop Auckland 0 - 5,Supplies and Services,324117,Provisions,14-Jun-17,6172071077,ASDA HOME SHOPPING,5411,Catering costs - provisions,0.09,0,0.09
Children and Young Peoples Services,Head of Early Help Assessment and Safeguarding,88063,Bishop Auckland 0 - 5,Supplies and Services,324117,Provisions,14-Jun-17,6172071081,ASDA HOME SHOPPING,5411,Catering costs - provisions,3.66,0.61,3.05
Children and Young Peoples Services,Head of Early Help Assessment and Safeguarding,88063,Bishop Auckland 0 - 5,Supplies and Services,324117,Provisions,14-Jun-17,000006172071081 - 1,ASDA HOME SHOPPING,5411,Catering costs - provisions,27.52,,27.52
Children and Young Peoples Services,Head of Early Help Assessment and Safeguarding,88063,Bishop Auckland 0 - 5,Supplies and Services,324117,Provisions,14-Jun-17,6172071083,ASDA HOME SHOPPING,5411,Catering costs - provisions,-3.5,0,-3.5
Regeneration and Local Services,Economic Development and Housing,30749,Employability - Youth Contract,Supplies and Services,328041,Clothing Uniforms and Laundry,14-Jun-17,6172071085,NEW LOOK INTERNET,5621,Clothing uniforms and laundry,91.95,0,91.95
Children and Young Peoples Services,Head of Education,71732,Dean Bank Childcare,Supplies and Services,312011,Newspapers Books and Periodicals,14-Jun-17,6172071103,Amazon UK Marketplace,5942,Books-school library,5.99,0,5.99
Children and Young Peoples Services,Head of Education,71732,Dean Bank Childcare,Supplies and Services,312011,Newspapers Books and Periodicals,14-Jun-17,6172071105,Amazon UK Marketplace,5942,Books-school library,5.99,0,5.99
Children and Young Peoples Services,Head of Education,71732,Dean Bank Childcare,Supplies and Services,312011,Newspapers Books and Periodicals,14-Jun-17,6172071111,Amazon UK Marketplace,5942,Books-school library,17.92,0,17.92
Regeneration and Local Services,Culture & Sport,54813,Gala Theatre - Technical,Supplies and Services,304259,Equipment and Materials,14-Jun-17,6172071123,WWW.THOMANN.DE,5733,Equipment-purchase and rental,128.08,0,128.08
Regeneration and Local Services,Economic Development and Housing,30737,Durham Works Flexible Fund,Transport,235057,Public Transport,14-Jun-17,6172071131,ARRIVA NORTH EAST,4131,Staff travelling,4.5,0,4.5
Regeneration and Local Services,Economic Development and Housing,30737,Durham Works Flexible Fund,Transport,235057,Public Transport,14-Jun-17,6172071137,ARRIVA NORTH EAST,4131,Staff travelling,4.5,0,4.5
Regeneration and Local Services,Economic Development and Housing,30737,Durham Works Flexible Fund,Supplies and Services,324117,Provisions,14-Jun-17,6172071141,CO-OP GROUP 310015,5411,Catering costs - provisions,25,0,25
Regeneration and Local Services,Economic Development and Housing,30737,Durham Works Flexible Fund,Transport,230031,Contract Hire,14-Jun-17,6172071163,NEXUS TRAVEL SHOP,4131,Pupils-transport to play fields etc,10,0,10
Children and Young Peoples Services,Head of Early Help Assessment and Safeguarding,71445,Chester le Street One Point Hub,Supplies and Services,308011,Furniture,14-Jun-17,6172071169,FRANKS THE FLOORING ST,5713,Furniture repair and replacement,150,0,150
Children and Young Peoples Services,Head of Looked After Provision Permanence and Care Leavers,85958,Support Services,Supplies and Services,324117,Provisions,14-Jun-17,6172071171,TESCO STORES 6329,5411,Catering costs - provisions,85.1,0,85.1
Regeneration and Local Services,Spatial Policy Planning Assets & Environment,31222,North Pennines Allen Valleys Landscape Partnership,Supplies and Services,324117,Provisions,14-Jun-17,6172071183,ALLENDALE CO-OPERATIVE,5499,Catering costs - provisions,13.92,0,13.92
Regeneration and Local Services,Culture & Sport,11060,Hardwick Park Catering,Supplies and Services,324117,Provisions,14-Jun-17,6172071187,JR HOLLAND FOODSERVICE,5422,Catering costs - provisions,109.22,0,109.22
Regeneration and Local Services,Culture & Sport,11060,Hardwick Park Catering,Supplies and Services,324117,Provisions,14-Jun-17,6172071191,JR HOLLAND FOODSERVICE,5422,Catering costs - provisions,16.19,0,16.19
Regeneration and Local Services,Culture & Sport,54815,Gala Theatre Stage School,Supplies and Services,312011,Newspapers Books and Periodicals,14-Jun-17,6172071197,Amazon UK Marketplace,5942,Books-school library,3.11,0,3.11
Regeneration and Local Services,Culture & Sport,54815,Gala Theatre Stage School,Supplies and Services,312011,Newspapers Books and Periodicals,14-Jun-17,6172071199,Amazon UK Marketplace,5942,Books-school library,7.5,0,7.5
Regeneration and Local Services,Culture & Sport,54815,Gala Theatre Stage School,Supplies and Services,308011,Furniture,14-Jun-17,6172071203,IKEA LIMITED,5712,Furniture repair and replacement,160.25,26.71,133.54
Regeneration and Local Services,Direct Services,21234,Catering - Locomotion,Supplies and Services,324117,Provisions,14-Jun-17,6172071209,JR HOLLAND FOODSERVICE,5422,Catering costs - provisions,44.01,0,44.01
Regeneration and Local Services,Direct Services,21234,Catering - Locomotion,Supplies and Services,324117,Provisions,14-Jun-17,6172071211,JR HOLLAND FOODSERVICE,5422,Catering costs - provisions,3.12,0,3.12
Regeneration and Local Services,Direct Services,21234,Catering - Locomotion,Supplies and Services,324117,Provisions,14-Jun-17,6172071213,JR HOLLAND FOODSERVICE,5422,Catering costs - provisions,2.46,0,2.46
Regeneration and Local Services,Direct Services,10525,Catering - Green Lane,Supplies and Services,324117,Provisions,14-Jun-17,6172071221,JR HOLLAND FOODSERVICE,5422,Catering costs - provisions,37.36,0,37.36
Regeneration and Local Services,Direct Services,10367,C&G - South Grounds Maintenance,Supplies and Services,304259,Equipment and Materials,14-Jun-17,6172071265,SCREWFIX,5211,Equipment-purchase and rental,58.15,9.69,48.46
Children and Young Peoples Services,Head of Early Help Assessment and Safeguarding,71443,Stanley One Point Hub,Supplies and Services,328041,Clothing Uniforms and Laundry,14-Jun-17,6172071287,B & M RETAIL,5310,Clothing uniforms and laundry,99.83,0,99.83
Regeneration and Local Services,Direct Services,19100,Fleet - Strategic Fleet,Supplies and Services,312009,Newspapers Books and Periodicals,14-Jun-17,6172071301,B V R & L ASSOC LT,5969,Newspapers books and periodicals,9,1.5,7.5
Regeneration and Local Services,Direct Services,19100,Fleet - Strategic Fleet,Supplies and Services,312009,Newspapers Books and Periodicals,14-Jun-17,000006172071301 - 1,B V R & L ASSOC LT,5969,Newspapers books and periodicals,48.2,,48.2
Regeneration and Local Services,Culture & Sport,54399,Local Delivery-Libraries,Supplies and Services,312009,Newspapers Books and Periodicals,14-Jun-17,6172071317,Amazon Prime,5968,Newspapers books and periodicals,7.99,0,7.99
Regeneration and Local Services,Culture & Sport,54399,Local Delivery-Libraries,Supplies and Services,312009,Newspapers Books and Periodicals,14-Jun-17,6172071319,Amazon EU,5969,Newspapers books and periodicals,13.38,0,13.38
Regeneration and Local Services,Culture & Sport,54399,Local Delivery-Libraries,Supplies and Services,312009,Newspapers Books and Periodicals,14-Jun-17,6172071321,AMAZON UK RETAIL AMAZO,5999,Newspapers books and periodicals,9.99,0,9.99
Regeneration and Local Services,Direct Services,10301,C&G - North Grounds Maintenance,Supplies and Services,304259,Equipment and Materials,14-Jun-17,6172071355,HEXHAM MACHINERY CENTR,5261,Equipment-purchase and rental,364.32,60.72,303.6
Children and Young Peoples Services,Head of Early Help Assessment and Safeguarding,88001,Peterlee Locality,Supplies and Services,304259,Equipment and Materials,14-Jun-17,6172071379,HARTLEPOOL BC CNP,9399,Equipment-purchase and rental,14.21,0,14.21
Regeneration and Local Services,Culture & Sport,54235,Bp Auckland Town Hall Cafe,Supplies and Services,324117,Provisions,14-Jun-17,6172071387,JR HOLLAND FOODSERVICE,5422,Catering costs - provisions,39.27,0,39.27
Regeneration and Local Services,Direct Services,21324,Catering - Meadowfield,Supplies and Services,324117,Provisions,14-Jun-17,6172071419,JR HOLLAND FOODSERVICE,5422,Catering costs - provisions,34.18,0,34.18
Regeneration and Local Services,Direct Services,21324,Catering - Meadowfield,Supplies and Services,324117,Provisions,14-Jun-17,6172071423,JR HOLLAND FOODSERVICE,5422,Catering costs - provisions,13.87,0,13.87
Children and Young Peoples Services,Head of Early Help Assessment and Safeguarding,71404,Laurel Avenue Childrens Centre,Supplies and Services,308011,Furniture,14-Jun-17,6172071435,PAYPAL J B FARNABY,5932,Furniture repair and replacement,150,0,150
Children and Young Peoples Services,Head of Early Help Assessment and Safeguarding,71404,Laurel Avenue Childrens Centre,Supplies and Services,304999,Equipment and Materials,14-Jun-17,6172071437,WWW.MY-TOOL-SHED.CO.UK,5072,Misc equipment tools and materials,78.3,0,78.3
Children and Young Peoples Services,Head of Early Help Assessment and Safeguarding,71404,Laurel Avenue Childrens Centre,Supplies and Services,304259,Equipment and Materials,14-Jun-17,6172071441,FIRST TUNNELS LTD,5261,Equipment-purchase and rental,604.8,0,604.8
Children and Young Peoples Services,Head of Early Help Assessment and Safeguarding,71404,Laurel Avenue Childrens Centre,Supplies and Services,384999,Miscellaneous Expenses,14-Jun-17,6172071443,WWWSPOTTYGREENFROG,5945,Other expenses,247.92,0,247.92
Children and Young Peoples Services,Head of Early Help Assessment and Safeguarding,71404,Laurel Avenue Childrens Centre,Supplies and Services,342033,Computers and Communications,14-Jun-17,6172071445,WWW.TRAIDCRAFT.CO.UK,5964,Computer hardware,22.5,0,22.5
Children and Young Peoples Services,Head of Looked After Provision Permanence and Care Leavers,85331,New Lea Childrens Home,Supplies and Services,324117,Provisions,14-Jun-17,6172071487,ASDA HOME SHOPPING,5411,Catering costs - provisions,134.38,0,134.38
Resources,I.C.T. Services,65487,ICT Telephony Recharges,Supplies and Services,344033,Telephones,14-Jun-17,6172071493,Amazon UK Marketplace,5942,Telephones general-all costs,104.4,0,104.4
Children and Young Peoples Services,Head of Early Help Assessment and Safeguarding,85100,Child Protection & Disabilty Strategic Manager,Supplies and Services,384199,Miscellaneous Expenses,14-Jun-17,6172071497,STOCKTON BOROUGH COUNC,9399,Other hired and contracted services,7.21,0,7.21
Resources,I.C.T. Services,69010,Administration,Transport,235057,Public Transport,14-Jun-17,6172071499,OYSTER RENEW WEB,4112,Staff travelling,50,0,50
Resources,I.C.T. Services,69010,Administration,Transport,235057,Public Transport,14-Jun-17,6172071501,OYSTER RENEW WEB,4112,Staff travelling,50,0,50
Resources,I.C.T. Services,69010,Administration,Transport,235057,Public Transport,14-Jun-17,6172071503,OYSTER RENEW WEB,4112,Staff travelling,50,0,50
Regeneration and Local Services,Direct Services,21235,Catering - Wharton Park,Supplies and Services,324117,Provisions,14-Jun-17,6172071517,JR HOLLAND FOODSERVICE,5422,Catering costs - provisions,19.85,0,19.85
Regeneration and Local Services,Culture & Sport,10605,Woodhouse Close Leisure Complex,Supplies and Services,324117,Provisions,14-Jun-17,6172071521,JR HOLLAND FOODSERVICE,5422,Catering costs - provisions,30.18,0,30.18
Transformation and Partnerships,Partnerships & Community Engagement Div.,60472,Syrian Vulnerable Persons Scheme,Supplies and Services,308011,Furniture,14-Jun-17,6172071537,WILKO DURHAM 426,5722,Furniture repair and replacement,14,2.33,11.67
Regeneration and Local Services,Economic Development and Housing,30699,Business Growth and Innovation General,Supplies and Services,342033,Computers and Communications,14-Jun-17,6176665365,WATCHFULPAYPAL,7379,Computer hardware,15.7,0,15.7
Regeneration and Local Services,Culture & Sport,54812,Gala Theatre - Catering etc,Supplies and Services,324117,Provisions,14-Jun-17,6176665399,BATLEYS PERTH,5300,Catering costs - provisions,-9.83,0,-9.83
Regeneration and Local Services,Culture & Sport,54812,Gala Theatre - Catering etc,Supplies and Services,324117,Provisions,14-Jun-17,6176665401,BATLEYS PERTH,5300,Catering costs - provisions,-17.65,0,-17.65
Children and Young Peoples Services,Head of Education,71732,Dean Bank Childcare,Supplies and Services,304403,Equipment and Materials,14-Jun-17,6176665485,AMAZON.CO.UK,5999,Other consumables,34.53,0,34.53
Regeneration and Local Services,Culture & Sport,11060,Hardwick Park Catering,Supplies and Services,324117,Provisions,14-Jun-17,6176665551,BATLEYS PERTH,5300,Catering costs - provisions,-30.91,-1.45,-29.46
Regeneration and Local Services,Direct Services,10525,Catering - Green Lane,Supplies and Services,324117,Provisions,14-Jun-17,6176665583,BATLEYS PERTH,5300,Catering costs - provisions,-9.65,0,-9.65
Dedicated Schools Grant,Dedicated Schools Grant,77100,Special Equipment/Access Technology,Supplies and Services,304335,Equipment and Materials,15-Jun-17,6172070943,APPLE ONLINE STORE GBP,5732,ICT supplies etc,250,0,250
Regeneration and Local Services,Economic Development and Housing,30699,Business Growth and Innovation General,Supplies and Services,342033,Computers and Communications,15-Jun-17,6172070999,AdRoll_EMEA,7372,Computer hardware,15.65,0,15.65
Regeneration and Local Services,Economic Development and Housing,30699,Business Growth and Innovation General,Supplies and Services,342033,Computers and Communications,15-Jun-17,6172071001,WATCHFULPAYPAL,7379,Computer hardware,0.43,0,0.43
Children and Young Peoples Services,Head of Education,71732,Dean Bank Childcare,Supplies and Services,312011,Newspapers Books and Periodicals,15-Jun-17,6172071121,Amazon UK Marketplace,5942,Books-school library,14.75,0,14.75
Regeneration and Local Services,Culture & Sport,54813,Gala Theatre - Technical,Supplies and Services,304259,Equipment and Materials,15-Jun-17,6172071125,WWW.THOMANN.DE,5733,Equipment-purchase and rental,3.52,0,3.52
Children and Young Peoples Services,Head of Education,71801,Selby Cottage Childcare Centre,Supplies and Services,324117,Provisions,15-Jun-17,6176665329,ASDA HOME SHOPPING,5411,Catering costs - provisions,182.66,0,182.66
Children and Young Peoples Services,Head of Education,71801,Selby Cottage Childcare Centre,Supplies and Services,324117,Provisions,15-Jun-17,6176665333,TESCO STORES 2278,5411,Catering costs - provisions,3.4,0,3.4
Regeneration and Local Services,Economic Development and Housing,37271,Group Repair,Income,720130,Fees and Charges,15-Jun-17,6176665339,HMCOURT-SERVICES.G,9222,Fees-legal,110,0,110
Resources,I.C.T. Services,65461,Business Support,Supplies and Services,344033,Telephones,15-Jun-17,6176665343,Amazon UK Marketplace,5942,Telephones general-all costs,44.6,0,44.6
Regeneration and Local Services,Economic Development and Housing,31500,Housing Solutions - Core Team,Supplies and Services,364320,Grants to Voluntary Organisations,15-Jun-17,6176665351,TRAVELODGE,3615,Accommodation assistance,44,0,44
Regeneration and Local Services,Economic Development and Housing,30674,Business Services General,Supplies and Services,352001,Conference Expenses,15-Jun-17,6176665375,HILTON,3504,Conferencesseminars fees etc,101.25,0,101.25
Children and Young Peoples Services,Head of Education,79599,Psychological-HQ,Supplies and Services,312011,Newspapers Books and Periodicals,15-Jun-17,6176665423,Amazon UK Marketplace,5942,Books-school library,13.99,0,13.99
Children and Young Peoples Services,Head of Education,79599,Psychological-HQ,Supplies and Services,312011,Newspapers Books and Periodicals,15-Jun-17,6176665427,Amazon UK Marketplace,5942,Books-school library,38.77,0,38.77
Children and Young Peoples Services,Head of Looked After Provision Permanence and Care Leavers,85333,Coxhoe Satelite Home,Supplies and Services,304403,Equipment and Materials,15-Jun-17,6176665441,AMAZON.CO.UK,5999,Other consumables,14.45,0,14.45
Regeneration and Local Services,Direct Services,10900,Fleet - Meadowfield Fleet,Transport,215013,Running Costs of Vehicles,15-Jun-17,6176665455,POST OFFICE COUNTER,9402,Vehicle Excise Duty (VED),167.5,0,167.5
Regeneration and Local Services,Direct Services,10900,Fleet - Meadowfield Fleet,Transport,215013,Running Costs of Vehicles,15-Jun-17,6176665457,POST OFFICE COUNTER,9402,Vehicle Excise Duty (VED),167.5,0,167.5
Regeneration and Local Services,Direct Services,10900,Fleet - Meadowfield Fleet,Transport,215013,Running Costs of Vehicles,15-Jun-17,6176665459,POST OFFICE COUNTER,9402,Vehicle Excise Duty (VED),167.5,0,167.5
Regeneration and Local Services,Direct Services,10900,Fleet - Meadowfield Fleet,Transport,215013,Running Costs of Vehicles,15-Jun-17,6176665461,POST OFFICE COUNTER,9402,Vehicle Excise Duty (VED),167.5,0,167.5
Regeneration and Local Services,Economic Development and Housing,30749,Employability - Youth Contract,Employees,40149,Recruitment Instruction and Training,15-Jun-17,6176665463,CAPITA RECRUITMENT VET,8999,Training-all costs,52.1,0,52.1
Children and Young Peoples Services,Head of Education,71732,Dean Bank Childcare,Supplies and Services,312011,Newspapers Books and Periodicals,15-Jun-17,6176665475,Amazon UK Marketplace,5942,Books-school library,31.99,0,31.99
Children and Young Peoples Services,Head of Education,71732,Dean Bank Childcare,Supplies and Services,312011,Newspapers Books and Periodicals,15-Jun-17,6176665479,Amazon UK Marketplace,5942,Books-school library,6.74,0,6.74
Children and Young Peoples Services,Head of Education,71732,Dean Bank Childcare,Supplies and Services,312011,Newspapers Books and Periodicals,15-Jun-17,6176665481,Amazon UK Marketplace,5942,Books-school library,10.4,0,10.4
Children and Young Peoples Services,Head of Education,71732,Dean Bank Childcare,Supplies and Services,312011,Newspapers Books and Periodicals,15-Jun-17,6176665483,Amazon UK Marketplace,5942,Books-school library,2.18,0,2.18
Children and Young Peoples Services,Head of Education,71732,Dean Bank Childcare,Supplies and Services,328041,Clothing Uniforms and Laundry,15-Jun-17,6176665487,B&M RETAIL LTD,5310,Clothing uniforms and laundry,27.83,0,27.83
Regeneration and Local Services,Economic Development and Housing,30737,Durham Works Flexible Fund,Transport,235057,Public Transport,15-Jun-17,6176665495,ARRIVA NORTH EAST,4131,Staff travelling,7,0,7
Regeneration and Local Services,Economic Development and Housing,30554,International Relations,Transport,235057,Public Transport,15-Jun-17,6176665501,PRINCE BISHOP SHOPPING,7523,Staff travelling,3.3,0,3.3
Regeneration and Local Services,Economic Development and Housing,30552,ATLAS Regional Network,Supplies and Services,384999,Miscellaneous Expenses,15-Jun-17,6176665505,BAKER ROSS LTD,5970,Other expenses,35.93,5.99,29.94
Regeneration and Local Services,Economic Development and Housing,30737,Durham Works Flexible Fund,Supplies and Services,340001,Postages,15-Jun-17,6176665507,POST OFFICE COUNTER,9402,Postages,1.75,0,1.75
Regeneration and Local Services,Economic Development and Housing,30737,Durham Works Flexible Fund,Transport,230031,Contract Hire,15-Jun-17,6176665511,Trainline,4112,Pupils-transport to play fields etc,77.01,0,77.01
Children and Young Peoples Services,Head of Looked After Provision Permanence and Care Leavers,85958,Support Services,Supplies and Services,324117,Provisions,15-Jun-17,6176665521,TESCO STORES 6329,5411,Catering costs - provisions,123.33,0,123.33
Regeneration and Local Services,Direct Services,10301,C&G - North Grounds Maintenance,Supplies and Services,304221,Equipment and Materials,15-Jun-17,6176665539,AZTEC CHEMICALS LTD,5169,Direct materials,180,30,150
Regeneration and Local Services,Direct Services,10301,C&G - North Grounds Maintenance,Supplies and Services,304403,Equipment and Materials,15-Jun-17,6176665543,BESCOL,5231,Other consumables,64.74,10.79,53.95
Regeneration and Local Services,Culture & Sport,54815,Gala Theatre Stage School,Supplies and Services,328041,Clothing Uniforms and Laundry,15-Jun-17,6176665565,H&M 869 DURHAM,5691,Clothing uniforms and laundry,48.98,8.16,40.82
Regeneration and Local Services,Culture & Sport,54815,Gala Theatre Stage School,Supplies and Services,308011,Furniture,15-Jun-17,6176665567,IKEA ONLINE,5719,Furniture repair and replacement,207.5,34.58,172.92
Children and Young Peoples Services,Head of Looked After Provision Permanence and Care Leavers,85334,West Rainton Satelite Home,Supplies and Services,328041,Clothing Uniforms and Laundry,15-Jun-17,6176665607,ARGOS LTD,5310,Clothing uniforms and laundry,89.99,0,89.99
Children and Young Peoples Services,Head of Looked After Provision Permanence and Care Leavers,85333,Coxhoe Satelite Home,Supplies and Services,324117,Provisions,15-Jun-17,6176665619,TESCO STORES 2371,5411,Catering costs - provisions,125.71,0,125.71
Children and Young Peoples Services,Head of Early Help Assessment and Safeguarding,74000,TTF-Attachment and Results,Supplies and Services,324117,Provisions,15-Jun-17,6176665769,ASDA GEORGE COM LEEDS,5411,Catering costs - provisions,127.95,0,127.95
Resources,I.C.T. Services,65487,ICT Telephony Recharges,Supplies and Services,344033,Telephones,15-Jun-17,6176665771,Amazon UK Marketplace,5942,Telephones general-all costs,41.62,0,41.62
Resources,I.C.T. Services,65487,ICT Telephony Recharges,Supplies and Services,344033,Telephones,15-Jun-17,6176665775,Amazon UK Marketplace,5942,Telephones general-all costs,10.39,0,10.39
Resources,Legal & Democratic Services,67801,Registrars Headquarters,Supplies and Services,338064,Services,15-Jun-17,6176665777,DISCLOSURE SCOT,9399,Disclosure & Barring (DBS) Fees,25,0,25
Resources,I.C.T. Services,65487,ICT Telephony Recharges,Supplies and Services,344033,Telephones,15-Jun-17,6176665781,AMAZON.CO.UK,5999,Telephones general-all costs,41.59,0,41.59
Regeneration and Local Services,Spatial Policy Planning Assets & Environment,31200,North Pennines Core,Supplies and Services,328041,Clothing Uniforms and Laundry,15-Jun-17,6176665823,THE MUCKBOOT CO UK GBP,5661,Clothing uniforms and laundry,80,13.33,66.67
Regeneration and Local Services,Spatial Policy Planning Assets & Environment,31200,North Pennines Core,Supplies and Services,352001,Conference Expenses,15-Jun-17,6176665829,PCS DENEVIEW,7011,Conferencesseminars fees etc,90,0,90
Regeneration and Local Services,Culture & Sport,11060,Hardwick Park Catering,Supplies and Services,324117,Provisions,15-Jun-17,6182195643,BATLEYS PERTH,5300,Catering costs - provisions,57.12,9.52,47.6
Regeneration and Local Services,Culture & Sport,11060,Hardwick Park Catering,Supplies and Services,324117,Provisions,15-Jun-17,000006182195643 - 1,BATLEYS PERTH,5300,Catering costs - provisions,108.47,,108.47
Regeneration and Local Services,Culture & Sport,11060,Hardwick Park Catering,Supplies and Services,324117,Provisions,15-Jun-17,6182195651,BATLEYS PERTH,5300,Catering costs - provisions,60.78,10.13,50.65
Regeneration and Local Services,Culture & Sport,11060,Hardwick Park Catering,Supplies and Services,324117,Provisions,15-Jun-17,000006182195651 - 1,BATLEYS PERTH,5300,Catering costs - provisions,30.61,,30.61
Regeneration and Local Services,Direct Services,21234,Catering - Locomotion,Supplies and Services,324117,Provisions,15-Jun-17,6182195719,BATLEYS PERTH,5300,Catering costs - provisions,167.22,27.87,139.35
Regeneration and Local Services,Direct Services,21234,Catering - Locomotion,Supplies and Services,324117,Provisions,15-Jun-17,000006182195719 - 1,BATLEYS PERTH,5300,Catering costs - provisions,7.92,,7.92
Regeneration and Local Services,Direct Services,10367,C&G - South Grounds Maintenance,Transport,215995,Running Costs of Vehicles,15-Jun-17,6182195861,SNOWBALLS (RAILWAY,5533,Vehicle running expenses,9.59,1.6,7.99
Regeneration and Local Services,Direct Services,21235,Catering - Wharton Park,Supplies and Services,324117,Provisions,15-Jun-17,6182196105,BATLEYS PERTH,5300,Catering costs - provisions,69.78,11.63,58.15
Regeneration and Local Services,Direct Services,21235,Catering - Wharton Park,Supplies and Services,324117,Provisions,15-Jun-17,000006182196105 - 1,BATLEYS PERTH,5300,Catering costs - provisions,7.31,,7.31
Regeneration and Local Services,Direct Services,21242,Catering - County Hall,Supplies and Services,324117,Provisions,15-Jun-17,6201688741,JR HOLLAND FOODSERVICE,5422,Catering costs - provisions,44.92,0,44.92
Regeneration and Local Services,Direct Services,21242,Catering - County Hall,Supplies and Services,324117,Provisions,15-Jun-17,6201688747,JR HOLLAND FOODSERVICE,5422,Catering costs - provisions,13.16,0,13.16
Regeneration and Local Services,Culture & Sport,54812,Gala Theatre - Catering etc,Supplies and Services,324117,Provisions,15-Jun-17,6201688803,JR HOLLAND FOODSERVICE,5422,Catering costs - provisions,51.23,0,51.23
Regeneration and Local Services,Culture & Sport,11060,Hardwick Park Catering,Supplies and Services,324117,Provisions,15-Jun-17,6201688969,JR HOLLAND FOODSERVICE,5422,Catering costs - provisions,13.54,0,13.54
Regeneration and Local Services,Direct Services,21234,Catering - Locomotion,Supplies and Services,324117,Provisions,15-Jun-17,6201689031,JR HOLLAND FOODSERVICE,5422,Catering costs - provisions,52.5,0,52.5
Regeneration and Local Services,Direct Services,21234,Catering - Locomotion,Supplies and Services,324117,Provisions,15-Jun-17,6201689037,JR HOLLAND FOODSERVICE,5422,Catering costs - provisions,4.76,0,4.76
Regeneration and Local Services,Direct Services,21234,Catering - Locomotion,Supplies and Services,324117,Provisions,15-Jun-17,6201689039,JR HOLLAND FOODSERVICE,5422,Catering costs - provisions,4.09,0,4.09
Regeneration and Local Services,Economic Development and Housing,30699,Business Growth and Innovation General,Supplies and Services,342033,Computers and Communications,16-Jun-17,6176665369,AdRoll_EMEA,7372,Computer hardware,0.43,0,0.43
Children and Young Peoples Services,Head of Education,71801,Selby Cottage Childcare Centre,Supplies and Services,324117,Provisions,16-Jun-17,6182195337,TESCO STORES 2278,5411,Catering costs - provisions,7.82,0,7.82
Regeneration and Local Services,Economic Development and Housing,31576,B& B - Temp Accom,Supplies and Services,364320,Grants to Voluntary Organisations,16-Jun-17,6182195339,TRAVELODGE,3615,Accommodation assistance,135,22.5,112.5
Children and Young Peoples Services,Head of Looked After Provision Permanence and Care Leavers,85342,9 Cedar Drive Aycliffe,Employees,40149,Recruitment Instruction and Training,16-Jun-17,6182195399,PARENTPAY E-COM R,8220,Training-all costs,40,0,40
Regeneration and Local Services,Economic Development and Housing,30674,Business Services General,Transport,235057,Public Transport,16-Jun-17,6182195413,ECML NEWCASTLE PARKING,7523,Staff travelling,16,0,16
Regeneration and Local Services,Direct Services,21242,Catering - County Hall,Supplies and Services,324117,Provisions,16-Jun-17,6182195437,JR HOLLAND FOODSERVICE,5422,Catering costs - provisions,136.54,0,136.54
Regeneration and Local Services,Direct Services,21242,Catering - County Hall,Supplies and Services,324117,Provisions,16-Jun-17,6182195439,JR HOLLAND FOODSERVICE,5422,Catering costs - provisions,77.15,0,77.15
Regeneration and Local Services,Direct Services,21242,Catering - County Hall,Supplies and Services,324117,Provisions,16-Jun-17,6182195445,JR HOLLAND FOODSERVICE,5422,Catering costs - provisions,28.96,0,28.96
Regeneration and Local Services,Direct Services,21242,Catering - County Hall,Supplies and Services,324117,Provisions,16-Jun-17,6182195447,JR HOLLAND FOODSERVICE,5422,Catering costs - provisions,13.16,0,13.16
Children and Young Peoples Services,Head of Looked After Provision Permanence and Care Leavers,85361,LAC & Permanence Team 1,Supplies and Services,304403,Equipment and Materials,16-Jun-17,6182195491,GRO HM PASSPORT OFFICE,9399,Other consumables,9.25,0,9.25
Regeneration and Local Services,Direct Services,10551,Fleet - Chilton Fleet,Transport,215013,Running Costs of Vehicles,16-Jun-17,6182195513,DVLA VEHICLE TAX,9399,Vehicle Excise Duty (VED),242.5,0,242.5
Regeneration and Local Services,Economic Development and Housing,30749,Employability - Youth Contract,Supplies and Services,372009,Subscriptions,16-Jun-17,6182195523,WWW.EAZY-PRINT.COM,7338,Subscriptions,196.8,32.8,164
Regeneration and Local Services,Economic Development and Housing,30737,Durham Works Flexible Fund,Transport,230031,Contract Hire,16-Jun-17,6182195571,NEXUS TRAVEL SHOP,4131,Pupils-transport to play fields etc,30,0,30
Children and Young Peoples Services,Head of Early Help Assessment and Safeguarding,71448,Newton Aycliffe One Point Hub,Supplies and Services,304259,Equipment and Materials,16-Jun-17,6182195577,GRO HM PASSPORT OFFICE,9399,Equipment-purchase and rental,9.25,0,9.25
Children and Young Peoples Services,Head of Looked After Provision Permanence and Care Leavers,85958,Support Services,Supplies and Services,312011,Newspapers Books and Periodicals,16-Jun-17,6182195583,Amazon UK Marketplace,5942,Books-school library,44.97,0,44.97
Children and Young Peoples Services,Head of Looked After Provision Permanence and Care Leavers,85958,Support Services,Supplies and Services,312011,Newspapers Books and Periodicals,16-Jun-17,6182195585,Amazon UK Marketplace,5942,Books-school library,44.9,0,44.9
Children and Young Peoples Services,Head of Looked After Provision Permanence and Care Leavers,85958,Support Services,Supplies and Services,304403,Equipment and Materials,16-Jun-17,6182195591,ART.COM/ALLPOSTERS.COM,5999,Other consumables,13.75,2.29,11.46
Children and Young Peoples Services,Head of Looked After Provision Permanence and Care Leavers,85958,Support Services,Supplies and Services,324117,Provisions,16-Jun-17,6182195599,TESCO STORES 6329,5411,Catering costs - provisions,117.55,0,117.55
Children and Young Peoples Services,Head of Looked After Provision Permanence and Care Leavers,85958,Support Services,Supplies and Services,304259,Equipment and Materials,16-Jun-17,6182195605,WWW.FOOTASYLUM.COM,5941,Equipment-purchase and rental,43.94,0,43.94
Children and Young Peoples Services,Head of Looked After Provision Permanence and Care Leavers,85958,Support Services,Supplies and Services,304259,Equipment and Materials,16-Jun-17,6182195609,SPORTSDIRECT.COM,5941,Equipment-purchase and rental,36.97,6.16,30.81
Regeneration and Local Services,Direct Services,10301,C&G - North Grounds Maintenance,Supplies and Services,304221,Equipment and Materials,16-Jun-17,6182195631,VALE ENGINEERING (YORK,7394,Direct materials,99.54,16.59,82.95
Regeneration and Local Services,Culture & Sport,11060,Hardwick Park Catering,Supplies and Services,324117,Provisions,16-Jun-17,6182195637,JR HOLLAND FOODSERVICE,5422,Catering costs - provisions,466.16,0,466.16
Regeneration and Local Services,Culture & Sport,11060,Hardwick Park Catering,Supplies and Services,324117,Provisions,16-Jun-17,6182195639,JR HOLLAND FOODSERVICE,5422,Catering costs - provisions,43.8,0,43.8
Regeneration and Local Services,Spatial Policy Planning Assets & Environment,31200,North Pennines Core,Supplies and Services,348037,Subsistence,16-Jun-17,6182195675,THE HEMMEL CAFE,5812,Subsistence,11.7,0,11.7
Regeneration and Local Services,Spatial Policy Planning Assets & Environment,31200,North Pennines Core,Supplies and Services,348037,Subsistence,16-Jun-17,6182195679,CAFE FRESH AT BOWLEES,5814,Subsistence,35.3,0,35.3
Resources,I.C.T. Services,65335,Implementation,Supplies and Services,304639,Equipment and Materials,16-Jun-17,6182195693,Amazon UK Marketplace,5942,Technicians-supplies,15.06,0,15.06
Resources,I.C.T. Services,65335,Implementation,Supplies and Services,304639,Equipment and Materials,16-Jun-17,6182195697,Amazon UK Marketplace,5942,Technicians-supplies,8.5,0,8.5
Regeneration and Local Services,Direct Services,21234,Catering - Locomotion,Supplies and Services,324117,Provisions,16-Jun-17,6182195717,JR HOLLAND FOODSERVICE,5422,Catering costs - provisions,62.87,0,62.87
Regeneration and Local Services,Direct Services,10525,Catering - Green Lane,Supplies and Services,324117,Provisions,16-Jun-17,6182195747,JR HOLLAND FOODSERVICE,5422,Catering costs - provisions,38.3,0,38.3
Children and Young Peoples Services,Head of Early Help Assessment and Safeguarding,85556,Child Protection Team Stanley,Supplies and Services,304259,Equipment and Materials,16-Jun-17,6182195805,DURHAM COUNTY COUNCIL,9399,Equipment-purchase and rental,48,0,48
Regeneration and Local Services,Direct Services,19100,Fleet - Strategic Fleet,Third Party Payments,430100,Rendered by Private Contractors,16-Jun-17,6182195871,JAUPT,9399,Payments to sub-contractors,252,0,252
Children and Young Peoples Services,Head of Early Help Assessment and Safeguarding,88001,Peterlee Locality,Supplies and Services,304259,Equipment and Materials,16-Jun-17,6182195929,SUNDERLAND CC,9399,Equipment-purchase and rental,10,0,10
Regeneration and Local Services,Direct Services,21324,Catering - Meadowfield,Supplies and Services,324117,Provisions,16-Jun-17,6182195989,JR HOLLAND FOODSERVICE,5422,Catering costs - provisions,24.79,0,24.79
Regeneration and Local Services,Direct Services,21324,Catering - Meadowfield,Supplies and Services,324117,Provisions,16-Jun-17,6182195993,JR HOLLAND FOODSERVICE,5422,Catering costs - provisions,9.87,0,9.87
Children and Young Peoples Services,Head of Early Help Assessment and Safeguarding,74000,TTF-Attachment and Results,Supplies and Services,304403,Equipment and Materials,16-Jun-17,6182196083,TESCO - Abacus Baby,5999,Other consumables,135.95,0,135.95
Children and Young Peoples Services,Head of Early Help Assessment and Safeguarding,74000,TTF-Attachment and Results,Supplies and Services,304403,Equipment and Materials,16-Jun-17,6182196085,TESCO-Seller_IST_1_240,5999,Other consumables,8.95,0,8.95
Resources,Corporate Finance,65109,Pensions,Supplies and Services,372009,Subscriptions,16-Jun-17,6182196089,WWW.192.COM LTD,7311,Subscriptions,239.94,39.99,199.95
Regeneration and Local Services,Economic Development and Housing,30737,Durham Works Flexible Fund,Transport,235057,Public Transport,16-Jun-17,6182196145,WWW.SIMPLYGO.COM,4131,Staff travelling,6.4,0,6.4
Regeneration and Local Services,Direct Services,21242,Catering - County Hall,Supplies and Services,324117,Provisions,16-Jun-17,6189068057,BATLEYS PERTH,5300,Catering costs - provisions,143.16,23.86,119.3
Regeneration and Local Services,Direct Services,21242,Catering - County Hall,Supplies and Services,324117,Provisions,16-Jun-17,000006189068057 - 1,BATLEYS PERTH,5300,Catering costs - provisions,106.94,,106.94
Regeneration and Local Services,Culture & Sport,11060,Hardwick Park Catering,Supplies and Services,324117,Provisions,16-Jun-17,6189068297,BATLEYS PERTH,5300,Catering costs - provisions,85.98,14.33,71.65
Regeneration and Local Services,Culture & Sport,11060,Hardwick Park Catering,Supplies and Services,324117,Provisions,16-Jun-17,000006189068297 - 1,BATLEYS PERTH,5300,Catering costs - provisions,61.15,,61.15
Regeneration and Local Services,Direct Services,10525,Catering - Green Lane,Supplies and Services,324117,Provisions,16-Jun-17,6189068401,BATLEYS PERTH,5300,Catering costs - provisions,40.68,6.78,33.9
Regeneration and Local Services,Direct Services,10525,Catering - Green Lane,Supplies and Services,324117,Provisions,16-Jun-17,000006189068401 - 1,BATLEYS PERTH,5300,Catering costs - provisions,88.64,,88.64
Regeneration and Local Services,Direct Services,10525,Catering - Green Lane,Supplies and Services,324117,Provisions,16-Jun-17,6189068409,BATLEYS PERTH,5300,Catering costs - provisions,3.65,0,3.65
Regeneration and Local Services,Culture & Sport,10605,Woodhouse Close Leisure Complex,Supplies and Services,324117,Provisions,16-Jun-17,6189068761,BATLEYS PERTH,5300,Catering costs - provisions,55.2,9.2,46
Regeneration and Local Services,Culture & Sport,10605,Woodhouse Close Leisure Complex,Supplies and Services,324117,Provisions,16-Jun-17,000006189068761 - 1,BATLEYS PERTH,5300,Catering costs - provisions,89.53,,89.53
Children and Young Peoples Services,Head of Looked After Provision Permanence and Care Leavers,85361,LAC & Permanence Team 1,Supplies and Services,304403,Equipment and Materials,16-Jun-17,6245784849,GRO HM PASSPORT OFFICE,9399,Other consumables,-9.25,0,-9.25
Resources,Legal & Democratic Services,67910,Democratic Representation,Supplies and Services,344033,Telephones,17-Jun-17,6182195349,Amazon UK Marketplace,5942,Telephones general-all costs,18.49,0,18.49
Children and Young Peoples Services,Head of Looked After Provision Permanence and Care Leavers,85342,9 Cedar Drive Aycliffe,Supplies and Services,324117,Provisions,17-Jun-17,6182195393,TESCO STORES 2916,5411,Catering costs - provisions,38.23,0,38.23
Children and Young Peoples Services,Head of Looked After Provision Permanence and Care Leavers,85958,Support Services,Supplies and Services,324117,Provisions,17-Jun-17,6182195615,TESCO STORES 6329,5411,Catering costs - provisions,86.94,14.49,72.45
Children and Young Peoples Services,Head of Looked After Provision Permanence and Care Leavers,85333,Coxhoe Satelite Home,Supplies and Services,324117,Provisions,18-Jun-17,6182195853,CO-OP GROUP 310016,5411,Catering costs - provisions,20.42,0,20.42
Children and Young Peoples Services,Head of Education,71801,Selby Cottage Childcare Centre,Supplies and Services,308011,Furniture,19-Jun-17,6189067887,IKEA LIMITED,5712,Furniture repair and replacement,321.02,0,321.02
Children and Young Peoples Services,Head of Education,71801,Selby Cottage Childcare Centre,Supplies and Services,308011,Furniture,19-Jun-17,6189067893,IKEA LIMITED,5712,Furniture repair and replacement,51.74,0,51.74
Children and Young Peoples Services,Head of Education,71801,Selby Cottage Childcare Centre,Supplies and Services,324117,Provisions,19-Jun-17,6189067899,TESCO STORES 2278,5411,Catering costs - provisions,11.2,0,11.2
Children and Young Peoples Services,Head of Looked After Provision Permanence and Care Leavers,85342,9 Cedar Drive Aycliffe,Supplies and Services,324117,Provisions,19-Jun-17,6189067977,TESCO STORES 2916,5411,Catering costs - provisions,55.4,0,55.4
Children and Young Peoples Services,Head of Looked After Provision Permanence and Care Leavers,85342,9 Cedar Drive Aycliffe,Supplies and Services,324117,Provisions,19-Jun-17,6189067981,TESCO STORES 2916,5411,Catering costs - provisions,5.75,0,5.75
Regeneration and Local Services,Direct Services,21242,Catering - County Hall,Supplies and Services,324117,Provisions,19-Jun-17,6189068015,WWW.ADELIEFOODS.CO.UK,5499,Catering costs - provisions,215.64,0,215.64
Regeneration and Local Services,Direct Services,21242,Catering - County Hall,Supplies and Services,324117,Provisions,19-Jun-17,6189068019,WWW.ADELIEFOODS.CO.UK,5499,Catering costs - provisions,130.55,0,130.55
Regeneration and Local Services,Direct Services,21242,Catering - County Hall,Supplies and Services,324117,Provisions,19-Jun-17,6189068025,WWW.ADELIEFOODS.CO.UK,5499,Catering costs - provisions,103.6,0,103.6
Regeneration and Local Services,Direct Services,21242,Catering - County Hall,Supplies and Services,324117,Provisions,19-Jun-17,6189068027,WWW.ADELIEFOODS.CO.UK,5499,Catering costs - provisions,100.85,0,100.85
Regeneration and Local Services,Direct Services,21242,Catering - County Hall,Supplies and Services,324117,Provisions,19-Jun-17,6189068029,FREEMAN CATERING BUTCH,5422,Catering costs - provisions,186.27,0,186.27
Regeneration and Local Services,Direct Services,21242,Catering - County Hall,Supplies and Services,324117,Provisions,19-Jun-17,6189068035,FREEMAN CATERING BUTCH,5422,Catering costs - provisions,93.59,0,93.59
Regeneration and Local Services,Direct Services,21242,Catering - County Hall,Supplies and Services,324117,Provisions,19-Jun-17,6189068043,JR HOLLAND FOODSERVICE,5422,Catering costs - provisions,121.45,0,121.45
Regeneration and Local Services,Direct Services,21242,Catering - County Hall,Supplies and Services,324117,Provisions,19-Jun-17,6189068049,JR HOLLAND FOODSERVICE,5422,Catering costs - provisions,8.35,0,8.35
Regeneration and Local Services,Direct Services,21242,Catering - County Hall,Supplies and Services,324117,Provisions,19-Jun-17,6189068053,JR HOLLAND FOODSERVICE,5422,Catering costs - provisions,6.94,0,6.94
Children and Young Peoples Services,Head of Education,79599,Psychological-HQ,Supplies and Services,304403,Equipment and Materials,19-Jun-17,6189068083,AMAZON.CO.UK,5999,Other consumables,5.79,0,5.79
Children and Young Peoples Services,Head of Early Help Assessment and Safeguarding,88063,Bishop Auckland 0 - 5,Supplies and Services,324117,Provisions,19-Jun-17,6189068125,ASDA HOME SHOPPING,5411,Catering costs - provisions,60.63,0,60.63
Children and Young Peoples Services,Head of Early Help Assessment and Safeguarding,88063,Bishop Auckland 0 - 5,Supplies and Services,324117,Provisions,19-Jun-17,6189068129,ASDA HOME SHOPPING,5411,Catering costs - provisions,-1.35,0,-1.35
Children and Young Peoples Services,Head of Education,71732,Dean Bank Childcare,Supplies and Services,324117,Provisions,19-Jun-17,6189068133,ASDA HOME SHOPPING,5411,Catering costs - provisions,33.06,0,33.06
Children and Young Peoples Services,Head of Education,71732,Dean Bank Childcare,Supplies and Services,324117,Provisions,19-Jun-17,6189068137,ASDA HOME SHOPPING,5411,Catering costs - provisions,73.17,0,73.17
Children and Young Peoples Services,Head of Education,71732,Dean Bank Childcare,Supplies and Services,328041,Clothing Uniforms and Laundry,19-Jun-17,6189068141,B&M RETAIL LTD,5310,Clothing uniforms and laundry,14.94,0,14.94
Children and Young Peoples Services,Head of Education,71732,Dean Bank Childcare,Supplies and Services,324117,Provisions,19-Jun-17,6189068147,ASDA HOME SHOPPING,5411,Catering costs - provisions,-1.88,0,-1.88
Children and Young Peoples Services,Head of Education,71732,Dean Bank Childcare,Supplies and Services,324117,Provisions,19-Jun-17,6189068149,ASDA HOME SHOPPING,5411,Catering costs - provisions,-1.5,0,-1.5
Children and Young Peoples Services,Head of Education,71732,Dean Bank Childcare,Supplies and Services,324117,Provisions,19-Jun-17,6189068153,ASDA HOME SHOPPING,5411,Catering costs - provisions,-0.62,0,-0.62
Regeneration and Local Services,Economic Development and Housing,30737,Durham Works Flexible Fund,Transport,235057,Public Transport,19-Jun-17,6189068169,ARRIVA NORTH EAST,4131,Staff travelling,14.5,0,14.5
Regeneration and Local Services,Economic Development and Housing,30737,Durham Works Flexible Fund,Transport,235057,Public Transport,19-Jun-17,6189068173,ARRIVA NORTH EAST,4131,Staff travelling,75,0,75
Regeneration and Local Services,Direct Services,10367,C&G - South Grounds Maintenance,Supplies and Services,304259,Equipment and Materials,19-Jun-17,6189068269,HORNS GARDEN CENTR,5261,Equipment-purchase and rental,24.99,0,24.99
Regeneration and Local Services,Culture & Sport,11060,Hardwick Park Catering,Supplies and Services,324117,Provisions,19-Jun-17,6189068287,FREEMAN CATERING BUTCH,5422,Catering costs - provisions,32.14,0,32.14
Regeneration and Local Services,Culture & Sport,11060,Hardwick Park Catering,Supplies and Services,324117,Provisions,19-Jun-17,6189068289,JR HOLLAND FOODSERVICE,5422,Catering costs - provisions,52.02,0,52.02
Regeneration and Local Services,Culture & Sport,54815,Gala Theatre Stage School,Supplies and Services,328041,Clothing Uniforms and Laundry,19-Jun-17,6189068323,NEXT 0607,5651,Clothing uniforms and laundry,20.05,0,20.05
Regeneration and Local Services,Direct Services,21234,Catering - Locomotion,Supplies and Services,324117,Provisions,19-Jun-17,6189068347,WWW.ADELIEFOODS.CO.UK,5499,Catering costs - provisions,109.74,0,109.74
Regeneration and Local Services,Direct Services,21234,Catering - Locomotion,Supplies and Services,324117,Provisions,19-Jun-17,6189068351,WWW.ADELIEFOODS.CO.UK,5499,Catering costs - provisions,57.08,0,57.08
Regeneration and Local Services,Direct Services,21234,Catering - Locomotion,Supplies and Services,324117,Provisions,19-Jun-17,6189068357,WWW.ADELIEFOODS.CO.UK,5499,Catering costs - provisions,57.08,0,57.08
Regeneration and Local Services,Direct Services,21234,Catering - Locomotion,Supplies and Services,324117,Provisions,19-Jun-17,6189068361,WWW.ADELIEFOODS.CO.UK,5499,Catering costs - provisions,38.06,0,38.06
Regeneration and Local Services,Direct Services,10525,Catering - Green Lane,Supplies and Services,324117,Provisions,19-Jun-17,6189068383,WWW.ADELIEFOODS.CO.UK,5499,Catering costs - provisions,51.1,0,51.1
Regeneration and Local Services,Direct Services,10525,Catering - Green Lane,Supplies and Services,324117,Provisions,19-Jun-17,6189068389,WWW.ADELIEFOODS.CO.UK,5499,Catering costs - provisions,37.2,0,37.2
Regeneration and Local Services,Direct Services,10525,Catering - Green Lane,Supplies and Services,324117,Provisions,19-Jun-17,6189068395,FREEMAN CATERING BUTCH,5422,Catering costs - provisions,62.67,0,62.67
Children and Young Peoples Services,Head of Looked After Provision Permanence and Care Leavers,85352,Tow Law CU,Supplies and Services,324117,Provisions,19-Jun-17,6189068431,TESCO STORES 2371,5411,Catering costs - provisions,219.44,0,219.44
Regeneration and Local Services,Direct Services,10367,C&G - South Grounds Maintenance,Supplies and Services,304999,Equipment and Materials,19-Jun-17,6189068451,NEW ROW FARM NURSERIES,5193,Misc equipment tools and materials,144,24,120
Children and Young Peoples Services,Head of Early Help Assessment and Safeguarding,85556,Child Protection Team Stanley,Supplies and Services,338048,Services,19-Jun-17,6189068459,COUNTY COURT,9222,Court Costs,10,0,10
Regeneration and Local Services,Economic Development and Housing,31576,B& B - Temp Accom,Supplies and Services,364320,Grants to Voluntary Organisations,19-Jun-17,6189068513,TRAVELODGE,3615,Accommodation assistance,44,7.33,36.67
Regeneration and Local Services,Culture & Sport,54235,Bp Auckland Town Hall Cafe,Supplies and Services,324117,Provisions,19-Jun-17,6189068595,JR HOLLAND FOODSERVICE,5422,Catering costs - provisions,19.97,0,19.97
Regeneration and Local Services,Direct Services,21324,Catering - Meadowfield,Supplies and Services,324117,Provisions,19-Jun-17,6189068609,WWW.ADELIEFOODS.CO.UK,5499,Catering costs - provisions,46.88,0,46.88
Regeneration and Local Services,Direct Services,21324,Catering - Meadowfield,Supplies and Services,324117,Provisions,19-Jun-17,6189068615,WWW.ADELIEFOODS.CO.UK,5499,Catering costs - provisions,37.51,0,37.51
Regeneration and Local Services,Direct Services,21324,Catering - Meadowfield,Supplies and Services,324117,Provisions,19-Jun-17,6189068619,WWW.ADELIEFOODS.CO.UK,5499,Catering costs - provisions,25.45,0,25.45
Regeneration and Local Services,Direct Services,21324,Catering - Meadowfield,Supplies and Services,324117,Provisions,19-Jun-17,6189068621,FREEMAN CATERING BUTCH,5422,Catering costs - provisions,69.63,0,69.63
Regeneration and Local Services,Direct Services,21324,Catering - Meadowfield,Supplies and Services,324117,Provisions,19-Jun-17,6189068627,FREEMAN CATERING BUTCH,5422,Catering costs - provisions,57.64,0,57.64
Regeneration and Local Services,Direct Services,21235,Catering - Wharton Park,Supplies and Services,324117,Provisions,19-Jun-17,6189068731,JR HOLLAND FOODSERVICE,5422,Catering costs - provisions,7.38,0,7.38
Regeneration and Local Services,Culture & Sport,10605,Woodhouse Close Leisure Complex,Supplies and Services,324117,Provisions,19-Jun-17,6189068751,JR HOLLAND FOODSERVICE,5422,Catering costs - provisions,33.51,0,33.51
Children and Young Peoples Services,Head of Early Help Assessment and Safeguarding,88003,Peterlee 0 - 5,Supplies and Services,308011,Furniture,19-Jun-17,6189068831,DUNELM ONLINE ORDER,5714,Furniture repair and replacement,85.95,0,85.95
Resources,Legal & Democratic Services,67910,Democratic Representation,Supplies and Services,344033,Telephones,19-Jun-17,6192250039,AMAZON.CO.UK,5999,Telephones general-all costs,20.98,0,20.98
Regeneration and Local Services,Economic Development and Housing,30674,Business Services General,Transport,235057,Public Transport,19-Jun-17,6192250183,COPTHORNE HOTEL NE,7011,Staff travelling,4,0,4
Regeneration and Local Services,Direct Services,15005,Comeleon House Tanfield Lea,Supplies and Services,384956,Miscellaneous Expenses,19-Jun-17,6192250237,TVLICENSING.CO.UK,7392,Licences,147,0,147
Regeneration and Local Services,Culture & Sport,54812,Gala Theatre - Catering etc,Supplies and Services,324117,Provisions,19-Jun-17,6192250291,BATLEYS PERTH,5300,Catering costs - provisions,120.96,20.16,100.8
Regeneration and Local Services,Culture & Sport,54812,Gala Theatre - Catering etc,Supplies and Services,324117,Provisions,19-Jun-17,000006192250291 - 1,BATLEYS PERTH,5300,Catering costs - provisions,87.7,,87.7
Regeneration and Local Services,Culture & Sport,54812,Gala Theatre - Catering etc,Supplies and Services,324117,Provisions,19-Jun-17,6192250301,BATLEYS PERTH,5300,Catering costs - provisions,11,0,11
Regeneration and Local Services,Culture & Sport,10664,Freemans Quay Leisure Centre,Supplies and Services,384956,Miscellaneous Expenses,19-Jun-17,6192250749,TVLICENSING.CO.UK,7392,Licences,147,0,147
Children and Young Peoples Services,Head of Looked After Provision Permanence and Care Leavers,85363,LAC & Permanence Team 3,Supplies and Services,364320,Grants to Voluntary Organisations,19-Jun-17,6192251023,HERRIOTS,7011,Accommodation assistance,105,17.5,87.5
Regeneration and Local Services,Direct Services,21235,Catering - Wharton Park,Supplies and Services,324117,Provisions,19-Jun-17,6192251241,BATLEYS PERTH,5300,Catering costs - provisions,56.34,9.39,46.95
Regeneration and Local Services,Direct Services,21235,Catering - Wharton Park,Supplies and Services,324117,Provisions,19-Jun-17,000006192251241 - 1,BATLEYS PERTH,5300,Catering costs - provisions,6.67,,6.67
Adult and Health Services,Head of Adults,56601,Substance Misuse,Supplies and Services,338048,Services,20-Jun-17,6192250033,HMCOURTS-SERVICE.G,9222,Court Costs,75,0,75
Regeneration and Local Services,Economic Development and Housing,31500,Housing Solutions - Core Team,Supplies and Services,364320,Grants to Voluntary Organisations,20-Jun-17,6192250085,TRAVELODGE,3615,Accommodation assistance,48,0,48
Adult and Health Services,EnvironmentHealth & Consumer Protection,10827,Health Protection,Supplies and Services,372009,Subscriptions,20-Jun-17,6192250093,CIEH,8699,Subscriptions,60,0,60
Children and Young Peoples Services,Head of Early Help Assessment and Safeguarding,88093,Newton Aycliffe 0 - 5,Supplies and Services,324117,Provisions,20-Jun-17,6192250231,ASDA HOME SHOPPING,5411,Catering costs - provisions,31.39,0,31.39
Regeneration and Local Services,Direct Services,21242,Catering - County Hall,Supplies and Services,324117,Provisions,20-Jun-17,6192250245,WWW.ADELIEFOODS.CO.UK,5499,Catering costs - provisions,74.56,0,74.56
Regeneration and Local Services,Direct Services,21242,Catering - County Hall,Supplies and Services,324117,Provisions,20-Jun-17,6192250251,JR HOLLAND FOODSERVICE,5422,Catering costs - provisions,127.07,0,127.07
Regeneration and Local Services,Direct Services,21242,Catering - County Hall,Supplies and Services,324117,Provisions,20-Jun-17,6192250263,JR HOLLAND FOODSERVICE,5422,Catering costs - provisions,6.58,0,6.58
Regeneration and Local Services,Culture & Sport,54812,Gala Theatre - Catering etc,Supplies and Services,324117,Provisions,20-Jun-17,6192250285,JR HOLLAND FOODSERVICE,5422,Catering costs - provisions,30.79,0,30.79
Children and Young Peoples Services,Head of Education,79599,Psychological-HQ,Supplies and Services,312011,Newspapers Books and Periodicals,20-Jun-17,6192250307,Amazon EU,5969,Books-school library,11.43,0,11.43
Children and Young Peoples Services,Head of Looked After Provision Permanence and Care Leavers,85351,Framwellgate Moor CU,Supplies and Services,324117,Provisions,20-Jun-17,6192250337,ASDA HOME SHOPPING,5411,Catering costs - provisions,0.52,0,0.52
Children and Young Peoples Services,Head of Looked After Provision Permanence and Care Leavers,85351,Framwellgate Moor CU,Supplies and Services,324117,Provisions,20-Jun-17,6192250345,ASDA HOME SHOPPING,5411,Catering costs - provisions,152.11,0,152.11
Children and Young Peoples Services,Head of Education,71732,Dean Bank Childcare,Supplies and Services,312011,Newspapers Books and Periodicals,20-Jun-17,6192250427,Amazon UK Marketplace,5942,Books-school library,7.74,0,7.74
Regeneration and Local Services,Economic Development and Housing,30737,Durham Works Flexible Fund,Supplies and Services,304259,Equipment and Materials,20-Jun-17,6192250445,SPORTSDIRECT 368,5941,Equipment-purchase and rental,56.03,0,56.03
Regeneration and Local Services,Direct Services,10301,C&G - North Grounds Maintenance,Supplies and Services,304403,Equipment and Materials,20-Jun-17,6192250479,BESCOL,5231,Other consumables,44.39,7.4,36.99
Regeneration and Local Services,Economic Development and Housing,30737,Durham Works Flexible Fund,Supplies and Services,348037,Subsistence,20-Jun-17,6192250483,ARRIVA NORTH EAST,4131,Subsistence,80,0,80
Children and Young Peoples Services,Head of Looked After Provision Permanence and Care Leavers,85958,Support Services,Supplies and Services,304259,Equipment and Materials,20-Jun-17,6192250521,M and M Direct Ltd,5941,Equipment-purchase and rental,49.97,0,49.97
Children and Young Peoples Services,Head of Looked After Provision Permanence and Care Leavers,85958,Support Services,Supplies and Services,304259,Equipment and Materials,20-Jun-17,6192250527,WWW.FOOTASYLUM.COM,5941,Equipment-purchase and rental,84.98,0,84.98
Children and Young Peoples Services,Head of Looked After Provision Permanence and Care Leavers,85958,Support Services,Supplies and Services,342033,Computers and Communications,20-Jun-17,6192250537,VERY.CO.UK,5964,Computer hardware,174.98,0,174.98
Children and Young Peoples Services,Head of Looked After Provision Permanence and Care Leavers,85958,Support Services,Supplies and Services,328041,Clothing Uniforms and Laundry,20-Jun-17,6192250541,ARGOS RETAIL GROUP,5310,Clothing uniforms and laundry,29.93,0,29.93
Regeneration and Local Services,Direct Services,10301,C&G - North Grounds Maintenance,Supplies and Services,304259,Equipment and Materials,20-Jun-17,6192250555,HEXHAM MACHINERY CENTR,5261,Equipment-purchase and rental,144,24,120
Regeneration and Local Services,Culture & Sport,11060,Hardwick Park Catering,Supplies and Services,324117,Provisions,20-Jun-17,6192250563,JR HOLLAND FOODSERVICE,5422,Catering costs - provisions,25.41,0,25.41
Regeneration and Local Services,Culture & Sport,54815,Gala Theatre Stage School,Supplies and Services,328041,Clothing Uniforms and Laundry,20-Jun-17,6192250655,WWW.ASOS.COM,5651,Clothing uniforms and laundry,73,0,73
Regeneration and Local Services,Direct Services,21234,Catering - Locomotion,Supplies and Services,324117,Provisions,20-Jun-17,6192250691,JR HOLLAND FOODSERVICE,5422,Catering costs - provisions,26.45,0,26.45
Children and Young Peoples Services,Head of Looked After Provision Permanence and Care Leavers,85334,West Rainton Satelite Home,Supplies and Services,304259,Equipment and Materials,20-Jun-17,6192250717,CURRYS ONLINE,5732,Equipment-purchase and rental,739.1,0,739.1
Regeneration and Local Services,Culture & Sport,11191,Wellbeing4Life,Supplies and Services,328041,Clothing Uniforms and Laundry,20-Jun-17,6192250875,W BOYES & CO LTD NEWTO,5310,Clothing uniforms and laundry,8.4,0,8.4
Regeneration and Local Services,Culture & Sport,11191,Wellbeing4Life,Supplies and Services,348037,Subsistence,20-Jun-17,6192250881,THE BLUE STONE TEA SHO,5812,Subsistence,16.5,0,16.5
Regeneration and Local Services,Culture & Sport,11191,Wellbeing4Life,Supplies and Services,304259,Equipment and Materials,20-Jun-17,6192250887,WILKO RETAIL LIMIT,5722,Equipment-purchase and rental,21.7,3.62,18.08
Regeneration and Local Services,Culture & Sport,11191,Wellbeing4Life,Supplies and Services,384999,Miscellaneous Expenses,20-Jun-17,6192250893,CRAFTERS COMPANION LTD,5970,Other expenses,12.82,0,12.82
Children and Young Peoples Services,Head of Early Help Assessment and Safeguarding,74000,TTF-Attachment and Results,Supplies and Services,304259,Equipment and Materials,20-Jun-17,6192250913,WILKO.COM,5722,Equipment-purchase and rental,129.5,0,129.5
Regeneration and Local Services,Direct Services,10301,C&G - North Grounds Maintenance,Supplies and Services,324117,Provisions,20-Jun-17,6192250983,J VAN VLIET GATESHEAD,5399,Catering costs - provisions,176.98,29.5,147.48
Regeneration and Local Services,Direct Services,10301,C&G - North Grounds Maintenance,Supplies and Services,304259,Equipment and Materials,20-Jun-17,6192250991,EAST RIDING HORTICULTU,5261,Equipment-purchase and rental,72,0,72
Regeneration and Local Services,Economic Development and Housing,30676,Business Development - Durham City Promotions,Supplies and Services,384199,Miscellaneous Expenses,20-Jun-17,6192251021,BUYER DIRECT LTD,5399,Other hired and contracted services,128.99,0,128.99
Regeneration and Local Services,Transport and Contracted Services,31701,Care Connect All Localities,Supplies and Services,384956,Miscellaneous Expenses,20-Jun-17,6192251051,DISCLOSURE SCOT,9399,Licences,25,0,25
Regeneration and Local Services,Transport and Contracted Services,31701,Care Connect All Localities,Supplies and Services,344033,Telephones,20-Jun-17,6192251061,BT BILL PAYMENT 2,4812,Telephones general-all costs,67.07,11.18,55.89
Transformation and Partnerships,Comms & Information Management,60270,Communications and Marketing,Supplies and Services,372009,Subscriptions,20-Jun-17,6192251209,HOOTSUITE MEDIA INC.,7399,Subscriptions,5.7,0,5.7
Resources,I.C.T. Services,65487,ICT Telephony Recharges,Supplies and Services,344033,Telephones,20-Jun-17,6192251213,Amazon UK Marketplace,5942,Telephones general-all costs,104.4,0,104.4
Transformation and Partnerships,Comms & Information Management,60131,County Records,Supplies and Services,384999,Miscellaneous Expenses,20-Jun-17,6192251281,SIGNHOLDERSDIRECT,7333,Other expenses,68.04,11.34,56.7
Children and Young Peoples Services,Head of Early Help Assessment and Safeguarding,88003,Peterlee 0 - 5,Supplies and Services,328041,Clothing Uniforms and Laundry,20-Jun-17,6192251285,ARGOS RETAIL GROUP,5310,Clothing uniforms and laundry,39.99,0,39.99
Regeneration and Local Services,Culture & Sport,11060,Hardwick Park Catering,Supplies and Services,324117,Provisions,20-Jun-17,6196642115,BATLEYS PERTH,5300,Catering costs - provisions,183.9,30.65,153.25
Regeneration and Local Services,Culture & Sport,11060,Hardwick Park Catering,Supplies and Services,324117,Provisions,20-Jun-17,000006196642115 - 1,BATLEYS PERTH,5300,Catering costs - provisions,96.43,,96.43
Regeneration and Local Services,Direct Services,21234,Catering - Locomotion,Supplies and Services,324117,Provisions,20-Jun-17,6196642195,BATLEYS PERTH,5300,Catering costs - provisions,202.44,33.74,168.7
Regeneration and Local Services,Direct Services,21234,Catering - Locomotion,Supplies and Services,324117,Provisions,20-Jun-17,000006196642195 - 1,BATLEYS PERTH,5300,Catering costs - provisions,12.72,,12.72
Regeneration and Local Services,Culture & Sport,54235,Bp Auckland Town Hall Cafe,Supplies and Services,324117,Provisions,20-Jun-17,6196642363,BATLEYS PERTH,5300,Catering costs - provisions,14.22,2.37,11.85
Regeneration and Local Services,Culture & Sport,54235,Bp Auckland Town Hall Cafe,Supplies and Services,324117,Provisions,20-Jun-17,000006196642363 - 1,BATLEYS PERTH,5300,Catering costs - provisions,32.03,,32.03
Regeneration and Local Services,Direct Services,21324,Catering - Meadowfield,Supplies and Services,324117,Provisions,20-Jun-17,6196642389,BATLEYS PERTH,5300,Catering costs - provisions,149.7,24.95,124.75
Regeneration and Local Services,Direct Services,21324,Catering - Meadowfield,Supplies and Services,324117,Provisions,20-Jun-17,000006196642389 - 1,BATLEYS PERTH,5300,Catering costs - provisions,118.02,,118.02
Transformation and Partnerships,Comms & Information Management,60270,Communications and Marketing,Supplies and Services,372009,Subscriptions,21-Jun-17,6192251219,HOOTSUITE MEDIA INC.,7399,Subscriptions,0.16,0,0.16
Regeneration and Local Services,Direct Services,11067,Nei.Prot - Pest Control,Supplies and Services,344033,Telephones,21-Jun-17,6196641825,Amazon UK Marketplace,5942,Telephones general-all costs,25.43,0,25.43
Children and Young Peoples Services,Head of Early Help Assessment and Safeguarding,85100,Child Protection & Disabilty Strategic Manager,Supplies and Services,384199,Miscellaneous Expenses,21-Jun-17,6196641829,DURHAM COUNTY COUNCIL,9399,Other hired and contracted services,40,0,40
Children and Young Peoples Services,Head of Early Help Assessment and Safeguarding,88033,Durham 0 - 5,Supplies and Services,304403,Equipment and Materials,21-Jun-17,6196641833,TESCO - Childrens Room,5999,Other consumables,17.96,0,17.96
Children and Young Peoples Services,Head of Early Help Assessment and Safeguarding,88033,Durham 0 - 5,Supplies and Services,304403,Equipment and Materials,21-Jun-17,6196641835,TESCO - Seller_IST_1_2,5999,Other consumables,109.99,0,109.99
Regeneration and Local Services,Direct Services,10383,C&G - South Street Cleansing,Supplies and Services,324117,Provisions,21-Jun-17,6196641883,J M RAINE,5399,Catering costs - provisions,100.4,16.73,83.67
Regeneration and Local Services,Direct Services,10367,C&G - South Grounds Maintenance,Supplies and Services,304259,Equipment and Materials,21-Jun-17,6196641915,SCREWFIX,5211,Equipment-purchase and rental,12.99,2.17,10.82
Regeneration and Local Services,Direct Services,21242,Catering - County Hall,Supplies and Services,324117,Provisions,21-Jun-17,6196641937,JR HOLLAND FOODSERVICE,5422,Catering costs - provisions,156.81,0,156.81
Regeneration and Local Services,Direct Services,21242,Catering - County Hall,Supplies and Services,324117,Provisions,21-Jun-17,6196641945,JR HOLLAND FOODSERVICE,5422,Catering costs - provisions,31.35,0,31.35
Regeneration and Local Services,Economic Development and Housing,30554,International Relations,Supplies and Services,384926,Miscellaneous Expenses,21-Jun-17,6196641947,PHANTASIALAND,5968,International visits,883.48,0,883.48
Children and Young Peoples Services,Head of Education,79599,Psychological-HQ,Supplies and Services,304403,Equipment and Materials,21-Jun-17,6196641977,AMAZON.CO.UK,5999,Other consumables,49.6,0,49.6
Children and Young Peoples Services,Head of Looked After Provision Permanence and Care Leavers,85361,LAC & Permanence Team 1,Supplies and Services,304403,Equipment and Materials,21-Jun-17,6196642003,WWW.ADVENTUREVALLEY.CO,7999,Other consumables,27.8,0,27.8
Children and Young Peoples Services,Head of Looked After Provision Permanence and Care Leavers,85351,Framwellgate Moor CU,Supplies and Services,384999,Miscellaneous Expenses,21-Jun-17,6196642009,SILVERSTONE,7922,Other expenses,112,0,112
Children and Young Peoples Services,Head of Early Help Assessment and Safeguarding,88033,Durham 0 - 5,Supplies and Services,304259,Equipment and Materials,21-Jun-17,6196642043,WILKO.COM,5722,Equipment-purchase and rental,84,0,84
Children and Young Peoples Services,Head of Early Help Assessment and Safeguarding,88063,Bishop Auckland 0 - 5,Supplies and Services,324117,Provisions,21-Jun-17,6196642047,ASDA HOME SHOPPING,5411,Catering costs - provisions,28.18,0,28.18
Children and Young Peoples Services,Head of Early Help Assessment and Safeguarding,88063,Bishop Auckland 0 - 5,Supplies and Services,324117,Provisions,21-Jun-17,6196642051,ASDA HOME SHOPPING,5411,Catering costs - provisions,-0.45,0,-0.45
Children and Young Peoples Services,Head of Looked After Provision Permanence and Care Leavers,85958,Support Services,Supplies and Services,324117,Provisions,21-Jun-17,6196642093,TESCO STORES 6329,5411,Catering costs - provisions,66.02,0,66.02
Regeneration and Local Services,Culture & Sport,11060,Hardwick Park Catering,Supplies and Services,324117,Provisions,21-Jun-17,6196642105,JR HOLLAND FOODSERVICE,5422,Catering costs - provisions,148.86,0,148.86
Resources,I.C.T. Services,65335,Implementation,Supplies and Services,304639,Equipment and Materials,21-Jun-17,6196642133,AMZ replacebase,4816,Technicians-supplies,323.36,0,323.36
Resources,I.C.T. Services,65335,Implementation,Supplies and Services,304639,Equipment and Materials,21-Jun-17,6196642139,Amazon UK Marketplace,5942,Technicians-supplies,85,0,85
Resources,I.C.T. Services,65335,Implementation,Supplies and Services,304639,Equipment and Materials,21-Jun-17,6196642145,Amazon UK Marketplace,5942,Technicians-supplies,51.87,0,51.87
Regeneration and Local Services,Economic Development and Housing,31576,B& B - Temp Accom,Supplies and Services,364320,Grants to Voluntary Organisations,21-Jun-17,6196642211,TRAVELODGE,3615,Accommodation assistance,48,8,40
Regeneration and Local Services,Direct Services,10525,Catering - Green Lane,Supplies and Services,324117,Provisions,21-Jun-17,6196642219,JR HOLLAND FOODSERVICE,5422,Catering costs - provisions,18.69,0,18.69
Regeneration and Local Services,Direct Services,10367,C&G - South Grounds Maintenance,Supplies and Services,324117,Provisions,21-Jun-17,6196642259,J M RAINE,5399,Catering costs - provisions,78.97,13.16,65.81
Regeneration and Local Services,Direct Services,10367,C&G - South Grounds Maintenance,Supplies and Services,324117,Provisions,21-Jun-17,6196642261,J M RAINE,5399,Catering costs - provisions,42,7,35
Children and Young Peoples Services,Head of Looked After Provision Permanence and Care Leavers,85333,Coxhoe Satelite Home,Supplies and Services,324117,Provisions,21-Jun-17,6196642265,ASDA SUPERSTORE 4987,5411,Catering costs - provisions,127.67,0,127.67
Children and Young Peoples Services,Head of Early Help Assessment and Safeguarding,88001,Peterlee Locality,Supplies and Services,304259,Equipment and Materials,21-Jun-17,6196642353,HARTLEPOOL BC CNP,9399,Equipment-purchase and rental,14.21,0,14.21
Regeneration and Local Services,Culture & Sport,54235,Bp Auckland Town Hall Cafe,Supplies and Services,324117,Provisions,21-Jun-17,6196642359,JR HOLLAND FOODSERVICE,5422,Catering costs - provisions,44.1,0,44.1
Regeneration and Local Services,Direct Services,21324,Catering - Meadowfield,Supplies and Services,324117,Provisions,21-Jun-17,6196642381,JR HOLLAND FOODSERVICE,5422,Catering costs - provisions,28.1,0,28.1
Regeneration and Local Services,Direct Services,21324,Catering - Meadowfield,Supplies and Services,324117,Provisions,21-Jun-17,6196642385,JR HOLLAND FOODSERVICE,5422,Catering costs - provisions,13.87,0,13.87
Regeneration and Local Services,Economic Development and Housing,30749,Employability - Youth Contract,Supplies and Services,328041,Clothing Uniforms and Laundry,21-Jun-17,6196642467,ARGOS RETAIL GROUP,5310,Clothing uniforms and laundry,209.99,0,209.99
Regeneration and Local Services,Transport and Contracted Services,32170,Sustainable Transport,Supplies and Services,332047,Printing Stationery and Gen Off Exps,21-Jun-17,6196642513,Amazon UK Marketplace,5942,Stationery,20.5,0,20.5
Regeneration and Local Services,Direct Services,21235,Catering - Wharton Park,Supplies and Services,324117,Provisions,21-Jun-17,6196642527,JR HOLLAND FOODSERVICE,5422,Catering costs - provisions,13.7,0,13.7
Regeneration and Local Services,Direct Services,21235,Catering - Wharton Park,Supplies and Services,324117,Provisions,21-Jun-17,6196642531,JR HOLLAND FOODSERVICE,5422,Catering costs - provisions,6.88,0,6.88
Regeneration and Local Services,Culture & Sport,10605,Woodhouse Close Leisure Complex,Supplies and Services,324117,Provisions,21-Jun-17,6196642541,JR HOLLAND FOODSERVICE,5422,Catering costs - provisions,33.11,0,33.11
Adult and Health Services,Commissioning inc Supporting People,52969,Locality and Operational Support AHS,Supplies and Services,338064,Services,21-Jun-17,6196642549,DISCLOSURE SCOT,9399,Disclosure & Barring (DBS) Fees,25,0,25
Children and Young Peoples Services,Head of Early Help Assessment and Safeguarding,88003,Peterlee 0 - 5,Supplies and Services,304259,Equipment and Materials,21-Jun-17,6196642579,WILKO.COM,5722,Equipment-purchase and rental,35,0,35
Regeneration and Local Services,Economic Development and Housing,30554,International Relations,Supplies and Services,384926,Miscellaneous Expenses,22-Jun-17,6196641951,PHANTASIALAND,5968,International visits,24.3,0,24.3
Regeneration and Local Services,Direct Services,10383,C&G - South Street Cleansing,Supplies and Services,304335,Equipment and Materials,22-Jun-17,6201688579,Amazon UK Marketplace,5942,ICT supplies etc,74.99,0,74.99
Resources,Legal & Democratic Services,67910,Democratic Representation,Supplies and Services,344033,Telephones,22-Jun-17,6201688583,Amazon UK Marketplace,5942,Telephones general-all costs,18.7,0,18.7
Regeneration and Local Services,Economic Development and Housing,31576,B& B - Temp Accom,Supplies and Services,364320,Grants to Voluntary Organisations,22-Jun-17,6201688593,TRAVELODGE,3615,Accommodation assistance,42,7,35
